Workbook

Sheet 1. Information Sheet
D10: Version 1.0
B14: Input cells
B15: Drop down cells
B17: Utility Name | C17: ERTH POWER CORPORATION – GODERICH RATE ZONE
A19: Note 1
B20: For Account 1589 and Account 1588, determine if a or b below applies and select the appropriate year related to the account balance in the drop-down box to the right. | D20: Year Selected
B21: a) If the account balances were last approved on a final basis, select the year of the year-end balances that were last approved on a final basis. | D21: 2021
B22: b) If the account balances were last approved on an interim basis, and
B23: i) there are no changes to the previously approved interim balances, select the year of the year-end balances that were last approved for diposition on an interim basis. OR
B24: ii) there are changes to the previously approved interim balances, select the year of the year-end balances that were last approved for disposition on a final basis. An explanation should be provided to explain the reason for the change in the previously approved interim balances.
B25: (e.g. If the 2022 balances that were reviewed in the 2024 rate application were to be selected, select 2022)
B27: Instructions: 1) Determine which scenario above applies (a, bi or bii). Select the appropriate year to generate the appropriate GA Analysis Workform tabs, and information in the Principal Adjustments tab and Account 1588 tab. For example: • Scenario a -If 2022 balances were last approved on a final basis - Select 2022 and a GA Analysis Workform for 2023 will be generated. The input cells required in the Principal Adjustment and Account 1588 tabs will be generated accordingly as well. • Scenario bi - If 2022 balances were last approved on an interim basis and there are no changes to 2022 balances - Select 2022 and a GA Analysis Workform for 2023 will be generated. The input cells required in the Principal Adjustment and Account 1588 tabs will be generated accordingly as well. • Scenario bii - If 2022 balances were last approved on an interim basis, there are changes to 2022 balances, and 2021 balances were last approved for disposition - Select 2021 and GA Analysis Workforms for 2022 and 2023 will be generated. The input cells required in the Principal Adjustment and Account 1588 tabs will be generated accordingly as well. 2) Complete the GA Analysis Workform for each year generated. 3) Complete the Account 1588 tab. Note that the number of years that require the reasonability test to be completed are shown in the Account 1588 tab, depending on the year selected on the Information Sheet. 4) Complete the Principal Adjustments tab. Note that the number of years that require principal adjustment reconciliations are all shown in the one Principal Adjustments tab, depending on the year selected on the Information Sheet. See the separate document GA Analysis Workform Instructions for detailed instructions on how to complete the Workform and examples of reconciling items and principal adjustments.
B29: GA Analysis Workform Summary
B30: Year | C30: Annual Net Change in Expected GA Balance from GA Analysis | D30: Net Change in Principal Balance in the GL | E30: Reconciling Items | F30: Adjusted Net Change in Principal Balance in the GL | G30: Unresolved Difference | H30: $ Consumption at Actual Rate Paid | I30: Unresolved Difference as % of Expected GA Payments to IESO
B31: 2018 | I31: =IF(ISERROR(G31/H31),0,G31/H31) -> 0
B32: 2019 | C32: ='GA 2019'!$C$91 -> 0 | D32: ='GA 2019'!$C$75 -> 0 | E32: =SUM('GA 2019'!$C$76:$C$89) -> 0 | F32: ='GA 2019'!$C$90 -> 0 | G32: =F32-C32 -> 0 | H32: ='GA 2019'!$J$53 -> 0 | I32: 0
B33: 2020 | C33: ='GA 2020'!$C$91 -> 0 | D33: ='GA 2020'!$C$75 -> 0 | E33: =SUM('GA 2020'!$C$76:$C$89) -> 0 | F33: ='GA 2020'!$C$90 -> 0 | G33: =F33-C33 -> 0 | H33: ='GA 2020'!$J$53 -> 0 | I33: 0
B34: 2021 | C34: ='GA 2021'!$C$91 -> 0 | D34: ='GA 2021'!$C$75 -> 0 | E34: =SUM('GA 2021'!$C$76:$C$89) -> 0 | F34: ='GA 2021'!$C$90 -> 0 | G34: =F34-C34 -> 0 | H34: ='GA 2021'!$J$53 -> 0 | I34: 0
B35: 2022 | C35: ='GA 2022'!$C$91 -> 7153.029976 | D35: ='GA 2022'!$C$75 -> 16587.9496 | E35: =SUM('GA 2022'!$C$76:$C$89) -> -17861.31095 | F35: ='GA 2022'!$C$90 -> -1273.361355 | G35: =F35-C35 -> -8426.391331 | H35: ='GA 2022'!$J$53 -> 1332289.955 | I35: -0.006324742821
B36: 2023 | C36: ='GA 2023'!$C$91 -> 147134.33 | D36: ='GA 2023'!$C$75 -> 82471.21549 | E36: =SUM('GA 2023'!$C$76:$C$89) -> 46282.28103 | F36: ='GA 2023'!$C$90 -> 128753.4965 | G36: =F36-C36 -> -18380.83346 | H36: ='GA 2023'!$J$53 -> 1885212.643 | I36: -0.009750005405
B37: Cumulative Balance | C37: =SUM(C32:C36) -> 154287.36 | D37: 99059.16509 | E37: 28420.97008 | F37: 127480.1352 | G37: -26807.22479 | H37: 3217502.599 | I37: N/A
B40: Account 1588 Reconciliation Summary
B41: Year | C41: Account 1588 as a % of Account 4705
B42: 2018 | C42: ='Account 1588'!G15 -> 0
B43: 2019 | C43: ='Account 1588'!G16 -> 0
B44: 2020 | C44: ='Account 1588'!G17 -> 0
B45: 2021 | C45: ='Account 1588'!G18 -> 0
B46: 2022 | C46: ='Account 1588'!G19 -> -0.003945381591
B47: 2023 | C47: ='Account 1588'!G20 -> 0.002382531094
B48: Cumulative Balance | C48: ='Account 1588'!G21 -> -0.001210311778

Sheet List (hidden)
A1: Alectra Utilities Corporation-Brampton Rate Zone
A2: Alectra Utilities Corporation-Enersource Rate Zone
A3: Alectra Utilities Corporation-Horizon Utilities Rate Zone
A4: Alectra Utilities Corporation-PowerStream Rate Zone
A5: Alectra Utilities Corporation-Guelph Rate Zone
A6: Algoma Power Inc.
A7: Atikokan Hydro Inc.
A8: Bluewater Power Distribution Corporation
A9: Burlington Hydro Inc.
A10: Canadian Niagara Power Inc.
A11: Centre Wellington Hydro Ltd.
A12: Chapleau Public Utilities Corporation
A13: Cooperative Hydro Embrun Inc.
A14: E.L.K. Energy Inc.
A15: Elexicon Energy Inc.-Whitby Rate Zone
A16: Elexicon Energy Inc.-Veridian Rate Zone
A17: Enova Power Corp.-Kitchener-Wilmot Hydro Rate Zone
A18: Enova Power Corp.-Waterloo North Rate Zone
A19: Entegrus Powerlines Inc.-For Entegrus-Main Rate Zone
A20: Entegrus Powerlines Inc.-For Former St. Thomas Energy Rate Zone
A21: ENWIN Utilities Ltd.
A22: EPCOR Electricity Distribution Ontario Inc.
A23: ERTH Power Corporation - ERTH Power Main Rate Zone
A24: ERTH POWER CORPORATION – GODERICH RATE ZONE
A25: Essex Powerlines Corporation
A26: Festival Hydro Inc.
A27: Fort Frances Power Corporation
A28: GrandBridge Energy Inc.-Brantford Power Rate Zone
A29: GrandBridge Energy Inc.-Energy+ Rate Zone
A30: Greater Sudbury Hydro Inc.
A31: Grimsby Power Incorporated
A32: Halton Hills Hydro Inc.
A33: Hearst Power Distribution Co. Ltd.
A34: Hydro 2000 Inc.
A35: Hydro Hawkesbury Inc.
A36: Hydro One Networks Inc.
A37: Hydro One Networks Inc.-Former Orillia Power Distribution Corporation Service Area
A38: Hydro One Networks Inc.-Former Peterborough Distribution Inc. Service Area
A39: Hydro One Networks Inc.-Former Haldimand County Hydro Inc. Service Area
A40: Hydro One Networks Inc.-Former Norfolk Power Distribution Inc. Service Area
A41: Hydro One Networks Inc.-Former Woodstock Hydro Services Inc. Service Area
A42: Hydro One Remote Communites Inc.
A43: Hydro Ottawa Limited
A44: InnPower Corporation
A45: Kingston Hydro Corporation
A46: Lakefront Utilities Inc.
A47: Lakeland Power Distribution Ltd.
A48: London Hydro Inc.
A49: Milton Hydro Distribution Inc.
A50: Newmarket-Tay Power Distribution Ltd.-For Former Midland Power Utility Rate Zone
A51: Newmarket-Tay Power Distribution Ltd.-For Newmarket-Tay Power Main Rate Zone
A52: Niagara Peninsula Energy Inc.
A53: Niagara-on-the-Lake Hydro Inc.
A54: North Bay Hydro Distribution Limited
A55: Northern Ontario Wires Inc.
A56: Oakville Hydro Electricity Distribution Inc.
A57: Orangeville Hydro Limited
A58: Oshawa PUC Networks Inc.
A59: Ottawa River Power Corporation
A60: PUC Distribution Inc.
A61: Renfrew Hydro Inc.
A62: Rideau St. Lawrence Distribution Inc.
A63: Sioux Lookout Hydro Inc.
A64: Synergy North Corporation-Kenora Rate Zone
A65: Synergy North Corporation-Thunder Bay Rate Zone
A66: Tillsonburg Hydro Inc.
A67: Toronto Hydro-Electric System Limited
A68: Wasaga Distribution Inc.
A69: Welland Hydro-Electric System Corp.
A70: Wellington North Power Inc.
A71: Westario Power Inc.

Sheet GA Analysis (hidden)
A12: Account 1589 Global Adjustment (GA) Analysis Workform
B14: Input cells | X14: 2014
B15: Drop down cells
X16: 2015
A17: Note 1 | B17: Year(s) Requested for Disposition | X17: 2016
A20: Note 2 | B20: Consumption Data Excluding for Loss Factor (Data to agree with RRR as applicable)
B21: Year
B22: Total Metered excluding WMP | C22: C = A+B | D22: =D23+D24 -> 0 | E22: kWh | F22: 1
B23: RPP | C23: A | E23: kWh | F23: =IFERROR(D23/$D$22,0) -> 0
B24: Non RPP | C24: B = D+E | D24: =D25+D26 -> 0 | E24: kWh | F24: =IFERROR(D24/$D$22,0) -> 0
B25: Non-RPP Class A | C25: D | E25: kWh | F25: =IFERROR(D25/$D$22,0) -> 0
B26: Non-RPP Class B* | C26: E | E26: kWh | F26: =IFERROR(D26/$D$22,0) -> 0
B27: *Non-RPP Class B consumption reported in this table is not expected to directly agree with the Non-RPP Class B Including Loss Adjusted Billed Consumption in the GA Analysis of Expected Balance table below. The difference should be equal to the loss factor.
A29: Note 3 | B29: GA Billing Rate
B31: GA is billed on the
B33: GA Billing Rate Description
A43: Note 4 | B43: Analysis of Expected GA Amount
B44: Year | N44: GA Rates per IESO website
B45: Calendar Month | C45: Non-RPP Class B Including Loss Factor Billed Consumption (kWh) | D45: Deduct Previous Month Unbilled Loss Adjusted Consumption (kWh) | E45: Add Current Month Unbilled Loss Adjusted Consumption (kWh) | F45: Non-RPP Class B Including Loss Adjusted Consumption, Adjusted for Unbilled (kWh) | G45: GA Rate Billed ($/kWh) | H45: $ Consumption at GA Rate Billed | I45: GA Actual Rate Paid ($/kWh) | J45: $ Consumption at Actual Rate Paid | K45: Expected GA Variance ($) | O45: 2017 | R45: 2016 | U45: 2015
C46: F | D46: G | E46: H | F46: I = F-G+H | G46: J | H46: K = I*J | I46: L | J46: M = I*L | K46: =M-K | N46: ($/kWh) | O46: First Estimate | P46: Second Estimate | Q46: Actual | R46: First Estimate | S46: Second Estimate | T46: Actual | U46: First Estimate | V46: Second Estimate | W46: Actual
B47: January | F47: =C47-D47+E47 -> 0 | H47: =F47*G47 -> 0 | J47: =F47*I47 -> 0 | K47: =J47-H47 -> 0 | N47: January | O47: 0.06687 | P47: 0.08677 | Q47: 0.08227 | R47: 0.08423 | S47: 0.09214 | T47: 0.09179 | U47: 0.05549 | V47: 0.06161 | W47: 0.05068
B48: February | F48: =C48-D48+E48 -> 0 | H48: =F48*G48 -> 0 | J48: =F48*I48 -> 0 | K48: =J48-H48 -> 0 | N48: February | O48: 0.10559 | P48: 0.0843 | Q48: 0.08639 | R48: 0.10384 | S48: 0.09678 | T48: 0.09851 | U48: 0.06981 | V48: 0.04095 | W48: 0.03961
B49: March | F49: 0 | H49: 0 | J49: 0 | K49: 0 | N49: March | O49: 0.08409 | P49: 0.06886 | Q49: 0.07135 | R49: 0.09022 | S49: 0.10299 | T49: 0.1061 | U49: 0.03604 | V49: 0.0574 | W49: 0.0629
B50: April | F50: 0 | H50: 0 | J50: 0 | K50: 0 | N50: April | O50: 0.06874 | P50: 0.10218 | Q50: 0.10778 | R50: 0.12115 | S50: 0.11177 | T50: 0.11132 | U50: 0.06705 | V50: 0.09268 | W50: 0.09559
B51: May | F51: 0 | H51: 0 | J51: 0 | K51: 0 | N51: May | O51: 0.10623 | P51: 0.12776 | Q51: 0.12307 | R51: 0.10405 | S51: 0.11493 | T51: 0.10749 | U51: 0.09416 | V51: 0.0973 | W51: 0.09668
B52: June | F52: 0 | H52: 0 | J52: 0 | K52: 0 | N52: June | O52: 0.11954 | P52: 0.12536 | Q52: 0.11848 | R52: 0.1165 | S52: 0.0936 | T52: 0.09545 | U52: 0.09228 | V52: 0.09768 | W52: 0.0954
B53: July | F53: 0 | H53: 0 | J53: 0 | K53: 0 | N53: July | O53: 0.10652 | P53: 0.10197 | Q53: 0.1128 | R53: 0.07667 | S53: 0.08412 | T53: 0.08306 | U53: 0.08888 | V53: 0.08413 | W53: 0.07883
B54: August | F54: 0 | H54: 0 | J54: 0 | K54: 0 | N54: August | O54: 0.115 | P54: 0.10476 | Q54: 0.10109 | R54: 0.08569 | S54: 0.0705 | T54: 0.07103 | U54: 0.08805 | V54: 0.07355 | W54: 0.0801
B55: September | F55: 0 | H55: 0 | J55: 0 | K55: 0 | N55: September | O55: 0.12739 | P55: 0.09895 | Q55: 0.08864 | R55: 0.0706 | S55: 0.09148 | T55: 0.09531 | U55: 0.0827 | V55: 0.07191 | W55: 0.06703
B56: October | F56: 0 | H56: 0 | J56: 0 | K56: 0 | N56: October | O56: 0.10212 | P56: 0.11973 | Q56: 0.12563 | R56: 0.0972 | S56: 0.1178 | T56: 0.11226 | U56: 0.06371 | V56: 0.07193 | W56: 0.07544
B57: November | F57: 0 | H57: 0 | J57: 0 | K57: 0 | N57: November | O57: 0.11164 | P57: 0.09669 | Q57: 0.09704 | R57: 0.12271 | S57: 0.115 | T57: 0.11109 | U57: 0.07623 | V57: 0.12448 | W57: 0.1132
B58: December | F58: 0 | H58: 0 | J58: 0 | K58: 0 | N58: December | O58: 0.08391 | P58: 0.09669 | Q58: 0.09207 | R58: 0.10594 | S58: 0.07872 | T58: 0.08708 | U58: 0.11462 | V58: 0.08809 | W58: 0.09471
B59: Net Change in Expected GA Balance in the Year (i.e. Transactions in the Year) | C59: =SUM(C47:C58) -> 0 | D59: =SUM(D47:D58) -> 0 | E59: =SUM(E47:E58) -> 0 | F59: =SUM(F47:F58) -> 0 | H59: =SUM(H47:H58) -> 0 | J59: =SUM(J47:J58) -> 0 | K59: =SUM(K47:K58) -> 0
A62: Note 5 | B62: Reconciling Items
B64: Item | C64: Applicability of Reconciling Item (Y/N) | D64: Amount (Quantify if it is a significant reconciling item) | E64: Explanation
A65: Net Change in Principal Balance in the GL (i.e. Transactions in the Year)
A66: 1a | B66: Remove impacts to GA from prior year RPP Settlement true up process that are booked in current year
A67: 1b | B67: Add impacts to GA from current year RPP Settlement true up process that are booked in subsequent year
A68: 2a | B68: Remove prior year end unbilled to actual revenue differences
A69: 2b | B69: Add current year end unbilled to actual revenue differences
A70: 3a | B70: Remove difference between prior year accrual to forecast from long term load transfers
A71: 3b | B71: Add difference between current year accrual to forecast from long term load transfers
A72: 4 | B72: Remove GA balances pertaining to Class A customers
A73: 5 | B73: Significant prior period billing adjustments included in current year GL balance but would not be included in the billing consumption used in the GA Analysis
A74: 6 | B74: Differences in GA IESO posted rate and rate charged on IESO invoice
A75: 7
A76: 8
A77: 9
A78: 10
A79: Note 6 | B79: Adjusted Net Change in Principal Balance in the GL | D79: =SUM(D65:D78) -> 0
B80: Net Change in Expected GA Balance in the Year Per Analysis | D80: =K59 -> 0
B81: Unresolved Difference | D81: =D79-D80 -> 0
B82: Unresolved Difference as % of Expected GA Payments to IESO | D82: =IF(ISERROR(D81/J59),0,D81/J59) -> 0 | E82: =IF(AND(D82<0.01,D82>-0.01),"","Unresolved differences of greater than + or - 1% should be explained") -> 
A85: Note 7 | B85: Summary of GA (if multiple years requested for disposition)
B87: Year | C87: Annual Net Change in Expected GA Balance from GA Analysis (cell K59) | D87: Net Change in Principal Balance in the GL (cell D65) | E87: Reconciling Items (sum of cells D66 to D78) | F87: Adjusted Net Change in Principal Balance in the GL | G87: Unresolved Difference | H87: Payments to IESO (cell J59) | I87: Unresolved Difference as % of Expected GA Payments to IESO
F88: =SUM(D88:E88) -> 0 | G88: =F88-C88 -> 0 | I88: =IF(ISERROR(G88/H88),0,G88/H88) -> 0
F89: =SUM(D89:E89) -> 0 | G89: =F89-C89 -> 0 | I89: =IF(ISERROR(G89/H89),0,G89/H89) -> 0
F90: =SUM(D90:E90) -> 0 | G90: =F90-C90 -> 0 | I90: =IF(ISERROR(G90/H90),0,G90/H90) -> 0
F91: =SUM(D91:E91) -> 0 | G91: =F91-C91 -> 0 | I91: =IF(ISERROR(G91/H91),0,G91/H91) -> 0
B92: Cumulative Balance | C92: =SUM(C88:C91) -> 0 | D92: 0 | E92: 0 | F92: 0 | G92: =SUM(G88:G91) -> 0 | H92: 0 | I92: N/A
B95: Additional Notes and Comments

Sheet GA 2016 (hidden)
A12: Note 2 | B12: Consumption Data Excluding for Loss Factor (Data to agree with RRR as applicable)
B13: Year | D13: 2016
B14: Total Metered excluding WMP | C14: C = A+B | D14: =D15+D16 -> 0 | E14: kWh | F14: 1
B15: RPP | C15: A | E15: kWh | F15: =IFERROR(D15/$D$14,0) -> 0
B16: Non RPP | C16: B = D+E | D16: =D17+D18 -> 0 | E16: kWh | F16: =IFERROR(D16/$D$14,0) -> 0
B17: Non-RPP Class A | C17: D | E17: kWh | F17: =IFERROR(D17/$D$14,0) -> 0
B18: Non-RPP Class B* | C18: E | E18: kWh | F18: =IFERROR(D18/$D$14,0) -> 0
B19: *Non-RPP Class B consumption reported in this table is not expected to directly agree with the Non-RPP Class B Including Loss Adjusted Billed Consumption in the GA Analysis of Expected Balance table below. The difference should be equal to the loss factor.
A21: Note 3 | B21: GA Billing Rate
B23: GA is billed on the
B25: Please confirm that the same GA rate is used to bill all customer classes. If not, please provide further details
B27: Please confirm that the GA Rate used for unbilled revenue is the same as the one used for billed revenue in any paticular month
A37: Note 4 | B37: Analysis of Expected GA Amount
B38: Year | C38: 2016
B39: Calendar Month | C39: Non-RPP Class B Including Loss Factor Billed Consumption (kWh) | D39: Deduct Previous Month Unbilled Loss Adjusted Consumption (kWh) | E39: Add Current Month Unbilled Loss Adjusted Consumption (kWh) | F39: Non-RPP Class B Including Loss Adjusted Consumption, Adjusted for Unbilled (kWh) | G39: GA Rate Billed ($/kWh) | H39: $ Consumption at GA Rate Billed | I39: GA Actual Rate Paid ($/kWh) | J39: $ Consumption at Actual Rate Paid | K39: Expected GA Price Variance ($)
C40: F | D40: G | E40: H | F40: I = F-G+H | G40: J | H40: K = I*J | I40: L | J40: M = I*L | K40: N=M-K
B41: January | F41: =C41-D41+E41 -> 0 | G41: =IF($C$23="1st Estimate",'GA Rates'!R4,IF($C$23="2nd Estimate",'GA Rates'!S4,IF($C$23="Actual",'GA Rates'!T4,0))) -> 0 | H41: =F41*G41 -> 0 | I41: ='GA Rates'!T4 -> 0.09179 | J41: =F41*I41 -> 0 | K41: =J41-H41 -> 0
B42: February | F42: =C42-D42+E42 -> 0 | G42: =IF($C$23="1st Estimate",'GA Rates'!R5,IF($C$23="2nd Estimate",'GA Rates'!S5,IF($C$23="Actual",'GA Rates'!T5,0))) -> 0 | H42: =F42*G42 -> 0 | I42: ='GA Rates'!T5 -> 0.09851 | J42: =F42*I42 -> 0 | K42: =J42-H42 -> 0
B43: March | F43: 0 | G43: =IF($C$23="1st Estimate",'GA Rates'!R6,IF($C$23="2nd Estimate",'GA Rates'!S6,IF($C$23="Actual",'GA Rates'!T6,0))) -> 0 | H43: 0 | I43: ='GA Rates'!T6 -> 0.1061 | J43: 0 | K43: 0
B44: April | F44: 0 | G44: =IF($C$23="1st Estimate",'GA Rates'!R7,IF($C$23="2nd Estimate",'GA Rates'!S7,IF($C$23="Actual",'GA Rates'!T7,0))) -> 0 | H44: 0 | I44: ='GA Rates'!T7 -> 0.11132 | J44: 0 | K44: 0
B45: May | F45: 0 | G45: =IF($C$23="1st Estimate",'GA Rates'!R8,IF($C$23="2nd Estimate",'GA Rates'!S8,IF($C$23="Actual",'GA Rates'!T8,0))) -> 0 | H45: 0 | I45: ='GA Rates'!T8 -> 0.10749 | J45: 0 | K45: 0
B46: June | F46: 0 | G46: =IF($C$23="1st Estimate",'GA Rates'!R9,IF($C$23="2nd Estimate",'GA Rates'!S9,IF($C$23="Actual",'GA Rates'!T9,0))) -> 0 | H46: 0 | I46: ='GA Rates'!T9 -> 0.09545 | J46: 0 | K46: 0
B47: July | F47: 0 | G47: =IF($C$23="1st Estimate",'GA Rates'!R10,IF($C$23="2nd Estimate",'GA Rates'!S10,IF($C$23="Actual",'GA Rates'!T10,0))) -> 0 | H47: 0 | I47: ='GA Rates'!T10 -> 0.08306 | J47: 0 | K47: 0
B48: August | F48: 0 | G48: =IF($C$23="1st Estimate",'GA Rates'!R11,IF($C$23="2nd Estimate",'GA Rates'!S11,IF($C$23="Actual",'GA Rates'!T11,0))) -> 0 | H48: 0 | I48: ='GA Rates'!T11 -> 0.07103 | J48: 0 | K48: 0
B49: September | F49: 0 | G49: =IF($C$23="1st Estimate",'GA Rates'!R12,IF($C$23="2nd Estimate",'GA Rates'!S12,IF($C$23="Actual",'GA Rates'!T12,0))) -> 0 | H49: 0 | I49: ='GA Rates'!T12 -> 0.09531 | J49: 0 | K49: 0
B50: October | F50: 0 | G50: =IF($C$23="1st Estimate",'GA Rates'!R13,IF($C$23="2nd Estimate",'GA Rates'!S13,IF($C$23="Actual",'GA Rates'!T13,0))) -> 0 | H50: 0 | I50: ='GA Rates'!T13 -> 0.11226 | J50: 0 | K50: 0
B51: November | F51: 0 | G51: =IF($C$23="1st Estimate",'GA Rates'!R14,IF($C$23="2nd Estimate",'GA Rates'!S14,IF($C$23="Actual",'GA Rates'!T14,0))) -> 0 | H51: 0 | I51: ='GA Rates'!T14 -> 0.11109 | J51: 0 | K51: 0
B52: December | F52: 0 | G52: =IF($C$23="1st Estimate",'GA Rates'!R15,IF($C$23="2nd Estimate",'GA Rates'!S15,IF($C$23="Actual",'GA Rates'!T15,0))) -> 0 | H52: 0 | I52: ='GA Rates'!T15 -> 0.08708 | J52: 0 | K52: 0
B53: Net Change in Expected GA Balance in the Year (i.e. Transactions in the Year) | C53: =SUM(C41:C52) -> 0 | D53: =SUM(D41:D52) -> 0 | E53: =SUM(E41:E52) -> 0 | F53: =SUM(F41:F52) -> 0 | H53: =SUM(H41:H52) -> 0 | J53: =SUM(J41:J52) -> 0 | K53: =SUM(K41:K52) -> 0
G55: Annual Non-RPP Class B Wholesale kWh * | H55: Annual Non-RPP Class B Retail billed kWh | I55: Annual Unaccounted for Energy Loss kWh | J55: Weighted Average GA Actual Rate Paid ($/kWh)** | K55: Expected GA Volume Variance ($)
G56: O | H56: P | I56: Q=O-P | J56: R | K56: P= Q*R
H57: =F53 -> 0 | I57: =G57-H57 -> 0 | K57: =I57*J57 -> 0
G58: *Equal to (AQEW - Class A + embedded generation kWh)*(Non-RPP Class B retail kwh/Total retail Class B kWh)
G59: **Equal to annual Non-RPP Class B $ GA paid (i.e. non-RPP portion of CT 148 on IESO invoice) divided by Non-RPP Class B Wholesale kWh (as quantified in column O of the table above)
J60: Total Expected GA Variance | K60: =K53+K57 -> 0
H61: Calculated Loss Factor | K61: =IFERROR(F53/D18,0) -> 0
H62: Most Recent Approved Loss Factor for Secondary Metered Customer < 5,000kW
H63: Difference | K63: =K61-K62 -> 0
B64: a) Please provide an explanation in the text box below if columns G and H for unbilled consumption are not used in the table above.
F65: b) Please provide an explanation in the text box below if the difference in loss factor is greater than 1%
A72: Note 5 | B72: Reconciling Items
B74: Item | C74: Amount | D74: Explanation | I74: Principal Adjustments
A75: Net Change in Principal Balance in the GL (i.e. Transactions in the Year) | I75: Principal Adjustment on DVA Continuity Schedule | J75: If "no", please provide an explanation
A76: 1a | B76: CT 148 True-up of GA Charges based on Actual Non-RPP Volumes - prior year
A77: 1b | B77: CT 148 True-up of GA Charges based on Actual Non-RPP Volumes - current year
A78: 2a | B78: Remove prior year end unbilled to actual revenue differences
A79: 2b | B79: Add current year end unbilled to actual revenue differences
A80: 3a | B80: Remove difference between prior year accrual/forecast to actual from long term load transfers
A81: 3b | B81: Add difference between current year accrual/forecast to actual from long term load transfers
A82: 4 | B82: Remove GA balances pertaining to Class A customers
A83: 5a | B83: Significant prior period billing adjustments recorded in current year
A84: 5b | B84: Significant current period billing adjustments recorded in other year(s)
A85: 6 | B85: Differences in GA IESO posted rate and rate charged on IESO invoice
A86: 7
A87: 8
A88: 9
A89: 10
A90: Note 6 | B90: Adjusted Net Change in Principal Balance in the GL | C90: =SUM(C75:C89) -> 0
B91: Net Change in Expected GA Balance in the Year Per Analysis | C91: =K60 -> 0
B92: Unresolved Difference | C92: =C90-C91 -> 0
B93: Unresolved Difference as % of Expected GA Payments to IESO | C93: =IF(ISERROR(C92/J53),0,C92/J53) -> 0 | D93: =IF(AND(C93<0.01,C93>-0.01),"","Unresolved differences of greater than + or - 1% should be explained") -> 

Sheet GA 2015 (hidden)
A12: Note 2 | B12: Consumption Data Excluding for Loss Factor (Data to agree with RRR as applicable)
B13: Year | D13: 2015
B14: Total Metered excluding WMP | C14: C = A+B | E14: kWh | F14: 1
B15: RPP | C15: A | E15: kWh | F15: =IFERROR(D15/$D$14,0) -> 0
B16: Non RPP | C16: B = D+E | E16: kWh | F16: =IFERROR(D16/$D$14,0) -> 0
B17: Non-RPP Class A | C17: D | E17: kWh | F17: =IFERROR(D17/$D$14,0) -> 0
B18: Non-RPP Class B* | C18: E | E18: kWh | F18: =IFERROR(D18/$D$14,0) -> 0
B19: *Non-RPP Class B consumption reported in this table is not expected to directly agree with the Non-RPP Class B Including Loss Adjusted Billed Consumption in the GA Analysis of Expected Balance table below. The difference should be equal to the loss factor.
A21: Note 3 | B21: GA Billing Rate
B23: GA is billed on the
B25: Please confirm that the same GA rate is used to bill all customer classes. If not, please provide further details
B27: Please confirm that the GA Rate used for unbilled revenue is the same as the one used for billed revenue in any paticular month
A37: Note 4 | B37: Analysis of Expected GA Amount
B38: Year | C38: 2017
B39: Calendar Month | C39: Non-RPP Class B Including Loss Factor Billed Consumption (kWh) | D39: Deduct Previous Month Unbilled Loss Adjusted Consumption (kWh) | E39: Add Current Month Unbilled Loss Adjusted Consumption (kWh) | F39: Non-RPP Class B Including Loss Adjusted Consumption, Adjusted for Unbilled (kWh) | G39: GA Rate Billed ($/kWh) | H39: $ Consumption at GA Rate Billed | I39: GA Actual Rate Paid ($/kWh) | J39: $ Consumption at Actual Rate Paid | K39: Expected GA Price Variance ($)
C40: F | D40: G | E40: H | F40: I = F-G+H | G40: J | H40: K = I*J | I40: L | J40: M = I*L | K40: N=M-K
B41: January | F41: =C41-D41+E41 -> 0 | G41: =IF($C$23="1st Estimate",'GA Rates'!V4,IF($C$23="2nd Estimate",'GA Rates'!W4,IF($C$23="Actual",'GA Rates'!X4,0))) -> 0 | H41: =F41*G41 -> 0 | I41: ='GA Rates'!X4 -> 0.05068 | J41: =F41*I41 -> 0 | K41: =J41-H41 -> 0
B42: February | F42: =C42-D42+E42 -> 0 | G42: =IF($C$23="1st Estimate",'GA Rates'!V5,IF($C$23="2nd Estimate",'GA Rates'!W5,IF($C$23="Actual",'GA Rates'!X5,0))) -> 0 | H42: =F42*G42 -> 0 | I42: ='GA Rates'!X5 -> 0.03961 | J42: =F42*I42 -> 0 | K42: =J42-H42 -> 0
B43: March | F43: 0 | G43: =IF($C$23="1st Estimate",'GA Rates'!V6,IF($C$23="2nd Estimate",'GA Rates'!W6,IF($C$23="Actual",'GA Rates'!X6,0))) -> 0 | H43: 0 | I43: ='GA Rates'!X6 -> 0.0629 | J43: 0 | K43: 0
B44: April | F44: 0 | G44: =IF($C$23="1st Estimate",'GA Rates'!V7,IF($C$23="2nd Estimate",'GA Rates'!W7,IF($C$23="Actual",'GA Rates'!X7,0))) -> 0 | H44: 0 | I44: ='GA Rates'!X7 -> 0.09559 | J44: 0 | K44: 0
B45: May | F45: 0 | G45: =IF($C$23="1st Estimate",'GA Rates'!V8,IF($C$23="2nd Estimate",'GA Rates'!W8,IF($C$23="Actual",'GA Rates'!X8,0))) -> 0 | H45: 0 | I45: ='GA Rates'!X8 -> 0.09668 | J45: 0 | K45: 0
B46: June | F46: 0 | G46: =IF($C$23="1st Estimate",'GA Rates'!V9,IF($C$23="2nd Estimate",'GA Rates'!W9,IF($C$23="Actual",'GA Rates'!X9,0))) -> 0 | H46: 0 | I46: ='GA Rates'!X9 -> 0.0954 | J46: 0 | K46: 0
B47: July | F47: 0 | G47: =IF($C$23="1st Estimate",'GA Rates'!V10,IF($C$23="2nd Estimate",'GA Rates'!W10,IF($C$23="Actual",'GA Rates'!X10,0))) -> 0 | H47: 0 | I47: ='GA Rates'!X10 -> 0.07883 | J47: 0 | K47: 0
B48: August | F48: 0 | G48: =IF($C$23="1st Estimate",'GA Rates'!V11,IF($C$23="2nd Estimate",'GA Rates'!W11,IF($C$23="Actual",'GA Rates'!X11,0))) -> 0 | H48: 0 | I48: ='GA Rates'!X11 -> 0.0801 | J48: 0 | K48: 0
B49: September | F49: 0 | G49: =IF($C$23="1st Estimate",'GA Rates'!V12,IF($C$23="2nd Estimate",'GA Rates'!W12,IF($C$23="Actual",'GA Rates'!X12,0))) -> 0 | H49: 0 | I49: ='GA Rates'!X12 -> 0.06703 | J49: 0 | K49: 0
B50: October | F50: 0 | G50: =IF($C$23="1st Estimate",'GA Rates'!V13,IF($C$23="2nd Estimate",'GA Rates'!W13,IF($C$23="Actual",'GA Rates'!X13,0))) -> 0 | H50: 0 | I50: ='GA Rates'!X13 -> 0.07544 | J50: 0 | K50: 0
B51: November | F51: 0 | G51: =IF($C$23="1st Estimate",'GA Rates'!V14,IF($C$23="2nd Estimate",'GA Rates'!W14,IF($C$23="Actual",'GA Rates'!X14,0))) -> 0 | H51: 0 | I51: ='GA Rates'!X14 -> 0.1132 | J51: 0 | K51: 0
B52: December | F52: 0 | G52: =IF($C$23="1st Estimate",'GA Rates'!V15,IF($C$23="2nd Estimate",'GA Rates'!W15,IF($C$23="Actual",'GA Rates'!X15,0))) -> 0 | H52: 0 | I52: ='GA Rates'!X15 -> 0.09471 | J52: 0 | K52: 0
B53: Net Change in Expected GA Balance in the Year (i.e. Transactions in the Year) | C53: =SUM(C41:C52) -> 0 | D53: =SUM(D41:D52) -> 0 | E53: =SUM(E41:E52) -> 0 | F53: =SUM(F41:F52) -> 0 | H53: =SUM(H41:H52) -> 0 | J53: =SUM(J41:J52) -> 0 | K53: =SUM(K41:K52) -> 0
G55: Annual Non-RPP Class B Wholesale kWh * | H55: Annual Non-RPP Class B Retail billed kWh | I55: Annual Unaccounted for Energy Loss kWh | J55: Weighted Average GA Actual Rate Paid ($/kWh)** | K55: Expected GA Volume Variance ($)
G56: O | H56: P | I56: Q=O-P | J56: R | K56: P= Q*R
H57: =F53 -> 0 | I57: =G57-H57 -> 0 | K57: =I57*J57 -> 0
G58: *Equal to (AQEW - Class A + embedded generation kWh)*(Non-RPP Class B retail kwh/Total retail Class B kWh)
G59: **Equal to annual Non-RPP Class B $ GA paid (i.e. non-RPP portion of CT 148 on IESO invoice) divided by Non-RPP Class B Wholesale kWh (as quantified in column O of the table above)
J60: Total Expected GA Variance | K60: =K53+K57 -> 0
H61: Calculated Loss Factor | K61: =IFERROR(F53/D18,0) -> 0
H62: Most Recent Approved Loss Factor for Secondary Metered Customer < 5,000kW
H63: Difference | K63: =K61-K62 -> 0
B64: a) Please provide an explanation in the text box below if columns G and H for unbilled consumption are not used in the table above.
F65: b) Please provide an explanation in the text box below if the difference in loss factor is greater than 1%
A72: Note 5 | B72: Reconciling Items
B74: Item | C74: Amount | D74: Explanation | I74: Principal Adjustments
A75: Net Change in Principal Balance in the GL (i.e. Transactions in the Year) | I75: Principal Adjustment on DVA Continuity Schedule | J75: If "no", please provide an explanation
A76: 1a | B76: CT 148 True-up of GA Charges based on Actual Non-RPP Volumes - prior year
A77: 1b | B77: CT 148 True-up of GA Charges based on Actual Non-RPP Volumes - current year
A78: 2a | B78: Remove prior year end unbilled to actual revenue differences
A79: 2b | B79: Add current year end unbilled to actual revenue differences
A80: 3a | B80: Remove difference between prior year accrual/forecast to actual from long term load transfers
A81: 3b | B81: Add difference between current year accrual/forecast to actual from long term load transfers
A82: 4 | B82: Remove GA balances pertaining to Class A customers
A83: 5a | B83: Significant prior period billing adjustments recorded in current year
A84: 5b | B84: Significant current period billing adjustments recorded in other year(s)
A85: 6 | B85: Differences in GA IESO posted rate and rate charged on IESO invoice
A86: 7
A87: 8
A88: 9
A89: 10
A90: Note 6 | B90: Adjusted Net Change in Principal Balance in the GL | C90: =SUM(C75:C89) -> 0
B91: Net Change in Expected GA Balance in the Year Per Analysis | C91: =K60 -> 0
B92: Unresolved Difference | C92: =C90-C91 -> 0
B93: Unresolved Difference as % of Expected GA Payments to IESO | C93: =IF(ISERROR(C92/J53),0,C92/J53) -> 0 | D93: =IF(AND(C93<0.01,C93>-0.01),"","Unresolved differences of greater than + or - 1% should be explained") -> 

Sheet GA 2019 (hidden)
A12: Note 2 | B12: Consumption Data Excluding for Loss Factor (Data to agree with RRR as applicable)
B13: Year | D13: 2019
B14: Total Metered excluding WMP | C14: C = A+B | D14: =VLOOKUP('1. Information Sheet'!$C$17,RRR_2019!$B$4:$U$68,19,FALSE) ->  | E14: kWh | F14: 1
B15: RPP | C15: A | D15: =VLOOKUP('1. Information Sheet'!$C$17,RRR_2019!$B$4:$U$68,7,FALSE) ->  | E15: kWh | F15: =IFERROR(D15/$D$14,0) -> 0
B16: Non RPP | C16: B = D+E | D16: =VLOOKUP('1. Information Sheet'!$C$17,RRR_2019!$B$4:$U$68,20,FALSE) ->  | E16: kWh | F16: =IFERROR(D16/$D$14,0) -> 0
B17: Non-RPP Class A | C17: D | D17: =VLOOKUP('1. Information Sheet'!$C$17,RRR_2019!$B$4:$U$68,13,FALSE) ->  | E17: kWh | F17: =IFERROR(D17/$D$14,0) -> 0
B18: Non-RPP Class B* | C18: E | D18: =D16-D17 ->  | E18: kWh | F18: =IFERROR(D18/$D$14,0) -> 0
B19: *Non-RPP Class B consumption reported in this table is not expected to directly agree with the Non-RPP Class B Including Loss Adjusted Billed Consumption in the GA Analysis of Expected Balance table below. The difference should be equal to the loss factor.
A21: Note 3 | B21: GA Billing Rate
B23: GA is billed on the
B25: Please confirm that the same GA rate is used to bill all customer classes. If not, please provide further details
B27: Please confirm that the GA Rate used for unbilled revenue is the same as the one used for billed revenue in any paticular month
A37: Note 4 | B37: Analysis of Expected GA Amount
B38: Year | C38: 2019
B39: Calendar Month | C39: Non-RPP Class B Including Loss Factor Billed Consumption (kWh) | D39: Deduct Previous Month Unbilled Loss Adjusted Consumption (kWh) | E39: Add Current Month Unbilled Loss Adjusted Consumption (kWh) | F39: Non-RPP Class B Including Loss Adjusted Consumption, Adjusted for Unbilled (kWh) | G39: GA Rate Billed ($/kWh) | H39: $ Consumption at GA Rate Billed | I39: GA Actual Rate Paid ($/kWh) | J39: $ Consumption at Actual Rate Paid | K39: Expected GA Price Variance ($)
C40: F | D40: G | E40: H | F40: I = F-G+H | G40: J | H40: K = I*J | I40: L | J40: M = I*L | K40: N=M-K
B41: January | F41: =C41-D41+E41 -> 0 | G41: =IF($C$23="1st Estimate",'GA Rates'!F4,IF($C$23="2nd Estimate",'GA Rates'!G4,IF($C$23="Actual",'GA Rates'!H4,0))) -> 0 | H41: =F41*G41 -> 0 | I41: ='GA Rates'!H4 -> 0.08092 | J41: =F41*I41 -> 0 | K41: =J41-H41 -> 0
B42: February | F42: =C42-D42+E42 -> 0 | G42: =IF($C$23="1st Estimate",'GA Rates'!F5,IF($C$23="2nd Estimate",'GA Rates'!G5,IF($C$23="Actual",'GA Rates'!H5,0))) -> 0 | H42: =F42*G42 -> 0 | I42: ='GA Rates'!H5 -> 0.08812 | J42: =F42*I42 -> 0 | K42: =J42-H42 -> 0
B43: March | F43: 0 | G43: =IF($C$23="1st Estimate",'GA Rates'!F6,IF($C$23="2nd Estimate",'GA Rates'!G6,IF($C$23="Actual",'GA Rates'!H6,0))) -> 0 | H43: 0 | I43: ='GA Rates'!H6 -> 0.08041 | J43: 0 | K43: 0
B44: April | F44: 0 | G44: =IF($C$23="1st Estimate",'GA Rates'!F7,IF($C$23="2nd Estimate",'GA Rates'!G7,IF($C$23="Actual",'GA Rates'!H7,0))) -> 0 | H44: 0 | I44: ='GA Rates'!H7 -> 0.12333 | J44: 0 | K44: 0
B45: May | F45: 0 | G45: =IF($C$23="1st Estimate",'GA Rates'!F8,IF($C$23="2nd Estimate",'GA Rates'!G8,IF($C$23="Actual",'GA Rates'!H8,0))) -> 0 | H45: 0 | I45: ='GA Rates'!H8 -> 0.12604 | J45: 0 | K45: 0
B46: June | F46: 0 | G46: =IF($C$23="1st Estimate",'GA Rates'!F9,IF($C$23="2nd Estimate",'GA Rates'!G9,IF($C$23="Actual",'GA Rates'!H9,0))) -> 0 | H46: 0 | I46: ='GA Rates'!H9 -> 0.13728 | J46: 0 | K46: 0
B47: July | F47: 0 | G47: =IF($C$23="1st Estimate",'GA Rates'!F10,IF($C$23="2nd Estimate",'GA Rates'!G10,IF($C$23="Actual",'GA Rates'!H10,0))) -> 0 | H47: 0 | I47: ='GA Rates'!H10 -> 0.09645 | J47: 0 | K47: 0
B48: August | F48: 0 | G48: =IF($C$23="1st Estimate",'GA Rates'!F11,IF($C$23="2nd Estimate",'GA Rates'!G11,IF($C$23="Actual",'GA Rates'!H11,0))) -> 0 | H48: 0 | I48: ='GA Rates'!H11 -> 0.12607 | J48: 0 | K48: 0
B49: September | F49: 0 | G49: =IF($C$23="1st Estimate",'GA Rates'!F12,IF($C$23="2nd Estimate",'GA Rates'!G12,IF($C$23="Actual",'GA Rates'!H12,0))) -> 0 | H49: 0 | I49: ='GA Rates'!H12 -> 0.12263 | J49: 0 | K49: 0
B50: October | F50: 0 | G50: =IF($C$23="1st Estimate",'GA Rates'!F13,IF($C$23="2nd Estimate",'GA Rates'!G13,IF($C$23="Actual",'GA Rates'!H13,0))) -> 0 | H50: 0 | I50: ='GA Rates'!H13 -> 0.1368 | J50: 0 | K50: 0
B51: November | F51: 0 | G51: =IF($C$23="1st Estimate",'GA Rates'!F14,IF($C$23="2nd Estimate",'GA Rates'!G14,IF($C$23="Actual",'GA Rates'!H14,0))) -> 0 | H51: 0 | I51: ='GA Rates'!H14 -> 0.09953 | J51: 0 | K51: 0
B52: December | F52: 0 | G52: =IF($C$23="1st Estimate",'GA Rates'!F15,IF($C$23="2nd Estimate",'GA Rates'!G15,IF($C$23="Actual",'GA Rates'!H15,0))) -> 0 | H52: 0 | I52: ='GA Rates'!H15 -> 0.09321 | J52: 0 | K52: 0
B53: Net Change in Expected GA Balance in the Year (i.e. Transactions in the Year) | C53: =SUM(C41:C52) -> 0 | D53: =SUM(D41:D52) -> 0 | E53: =SUM(E41:E52) -> 0 | F53: =SUM(F41:F52) -> 0 | H53: =SUM(H41:H52) -> 0 | J53: =SUM(J41:J52) -> 0 | K53: =SUM(K41:K52) -> 0
G55: Annual Non-RPP Class B Wholesale kWh * | H55: Annual Non-RPP Class B Retail billed kWh | I55: Annual Unaccounted for Energy Loss kWh | J55: Weighted Average GA Actual Rate Paid ($/kWh)** | K55: Expected GA Volume Variance ($)
G56: O | H56: P | I56: Q=O-P | J56: R | K56: P= Q*R
H57: =F53 -> 0 | I57: =G57-H57 -> 0 | K57: =I57*J57 -> 0
G58: *Equal to (AQEW - Class A + embedded generation kWh)*(Non-RPP Class B retail kwh/Total retail Class B kWh)
G59: **Equal to annual Non-RPP Class B $ GA paid (i.e. non-RPP portion of CT 148 on IESO invoice) divided by Non-RPP Class B Wholesale kWh (as quantified in column O in the table above)
J60: Total Expected GA Variance | K60: =K53+K57 -> 0
H61: Calculated Loss Factor | K61: =IFERROR(F53/D18,0) -> 0
H62: Most Recent Approved Loss Factor for Secondary Metered Customer < 5,000kW
H63: Difference | K63: =K61-K62 -> 0
B64: a) Please provide an explanation in the text box below if columns G and H for unbilled consumption are not used in the table above.
F65: b) Please provide an explanation in the text box below if the difference in loss factor is greater than 1%
A72: Note 5 | B72: Reconciling Items
B74: Item | C74: Amount | D74: Explanation | I74: Principal Adjustments
A75: Net Change in Principal Balance in the GL (i.e. Transactions in the Year) | I75: Principal Adjustment on DVA Continuity Schedule | J75: If "no", please provide an explanation
A76: 1a | B76: CT 148 True-up of GA Charges based on Actual Non-RPP Volumes - prior year
A77: 1b | B77: CT 148 True-up of GA Charges based on Actual Non-RPP Volumes - current year
A78: 2a | B78: Remove prior year end unbilled to actual revenue differences
A79: 2b | B79: Add current year end unbilled to actual revenue differences
A80: 3a | B80: Remove difference between prior year accrual/unbilled to actual from load transfers
A81: 3b | B81: Add difference between current year accrual/unbilled to actual from load transfers
A82: 4a | B82: Significant prior period billing adjustments recorded in current year
A83: 4b | B83: Significant current period billing adjustments recorded in other year(s)
A84: 5 | B84: CT 2148 for prior period corrections
A85: 6
A86: 7
A87: 8
A88: 9
A89: 10
A90: Note 6 | B90: Adjusted Net Change in Principal Balance in the GL | C90: =SUM(C75:C89) -> 0
B91: Net Change in Expected GA Balance in the Year Per Analysis | C91: =K60 -> 0
B92: Unresolved Difference | C92: =C90-C91 -> 0
B93: Unresolved Difference as % of Expected GA Payments to IESO | C93: =IF(ISERROR(C92/J53),0,C92/J53) -> 0 | D93: =IF(AND(C93<0.01,C93>-0.01),"","Unresolved differences of greater than + or - 1% should be explained") -> 

Sheet GA 2020 (hidden)
A12: Note 2 | B12: Consumption Data Excluding for Loss Factor (Data to agree with RRR as applicable)
B13: Year | D13: 2020
B14: Total Metered excluding WMP | C14: C = A+B | D14: =VLOOKUP('1. Information Sheet'!$C$17,RRR_2020!$B$4:$U$68,19,FALSE) ->  | E14: kWh | F14: 1
B15: RPP | C15: A | D15: =VLOOKUP('1. Information Sheet'!$C$17,RRR_2020!$B$4:$U$68,7,FALSE) ->  | E15: kWh | F15: =IFERROR(D15/$D$14,0) -> 0
B16: Non RPP | C16: B = D+E | D16: =VLOOKUP('1. Information Sheet'!$C$17,RRR_2020!$B$4:$U$68,20,FALSE) ->  | E16: kWh | F16: =IFERROR(D16/$D$14,0) -> 0
B17: Non-RPP Class A | C17: D | D17: =VLOOKUP('1. Information Sheet'!$C$17,RRR_2020!$B$4:$U$68,13,FALSE) ->  | E17: kWh | F17: =IFERROR(D17/$D$14,0) -> 0
B18: Non-RPP Class B* | C18: E | D18: =D16-D17 ->  | E18: kWh | F18: =IFERROR(D18/$D$14,0) -> 0
B19: *Non-RPP Class B consumption reported in this table is not expected to directly agree with the Non-RPP Class B Including Loss Adjusted Billed Consumption in the GA Analysis of Expected Balance table below. The difference should be equal to the loss factor.
A21: Note 3 | B21: GA Billing Rate
B23: GA is billed on the | D23: Note that the GA actual rates for April to June 2020 are based on the unadjusted GA rates, without the impacts of the GA deferral.
B25: Please confirm that the adjusted GA rate was used to bill customers from April to June 2020. For the months of April to June 2020, the IESO provided adjusted GA rates, which reflected the deferral of a portion of the GA as per the May 1, 2020 Emergency Order, and unadjusted GA rates which did not consider the GA deferral.
B27: Please confirm that the same GA rate is used to bill all customer classes. If not, please provide further details
B29: Please confirm that the GA Rate used for unbilled revenue is the same as the one used for billed revenue in any paticular month
A37: Note 4 | B37: Analysis of Expected GA Amount
B38: Year | C38: 2020
B39: Calendar Month | C39: Non-RPP Class B Including Loss Factor Billed Consumption (kWh) | D39: Deduct Previous Month Unbilled Loss Adjusted Consumption (kWh) | E39: Add Current Month Unbilled Loss Adjusted Consumption (kWh) | F39: Non-RPP Class B Including Loss Adjusted Consumption, Adjusted for Unbilled (kWh) | G39: GA Rate Billed ($/kWh) | H39: $ Consumption at GA Rate Billed | I39: GA Actual Rate Paid ($/kWh) | J39: $ Consumption at Actual Rate Paid | K39: Expected GA Price Variance ($)
C40: F | D40: G | E40: H | F40: I = F-G+H | G40: J | H40: K = I*J | I40: L | J40: M = I*L | K40: N=M-K
B41: January | F41: =C41-D41+E41 -> 0 | G41: =IF($C$23="1st Estimate",'GA Rates'!B4,IF($C$23="2nd Estimate",'GA Rates'!C4,IF($C$23="Actual",'GA Rates'!D4,0))) -> 0 | H41: =F41*G41 -> 0 | I41: ='GA Rates'!D4 -> 0.10232 | J41: =F41*I41 -> 0 | K41: =J41-H41 -> 0
B42: February | F42: =C42-D42+E42 -> 0 | G42: =IF($C$23="1st Estimate",'GA Rates'!B5,IF($C$23="2nd Estimate",'GA Rates'!C5,IF($C$23="Actual",'GA Rates'!D5,0))) -> 0 | H42: =F42*G42 -> 0 | I42: ='GA Rates'!D5 -> 0.11331 | J42: =F42*I42 -> 0 | K42: =J42-H42 -> 0
B43: March | F43: 0 | G43: =IF($C$23="1st Estimate",'GA Rates'!B6,IF($C$23="2nd Estimate",'GA Rates'!C6,IF($C$23="Actual",'GA Rates'!D6,0))) -> 0 | H43: 0 | I43: ='GA Rates'!D6 -> 0.11942 | J43: 0 | K43: 0
B44: April | F44: 0 | G44: =IF($C$23="1st Estimate",'GA Rates'!B7,IF($C$23="2nd Estimate",'GA Rates'!C7,IF($C$23="Actual",'GA Rates'!D7,0))) -> 0 | H44: 0 | I44: ='GA Rates'!D7 -> 0.115 | J44: 0 | K44: 0
B45: May | F45: 0 | G45: =IF($C$23="1st Estimate",'GA Rates'!B8,IF($C$23="2nd Estimate",'GA Rates'!C8,IF($C$23="Actual",'GA Rates'!D8,0))) -> 0 | H45: 0 | I45: ='GA Rates'!D8 -> 0.115 | J45: 0 | K45: 0
B46: June | F46: 0 | G46: =IF($C$23="1st Estimate",'GA Rates'!B9,IF($C$23="2nd Estimate",'GA Rates'!C9,IF($C$23="Actual",'GA Rates'!D9,0))) -> 0 | H46: 0 | I46: ='GA Rates'!D9 -> 0.115 | J46: 0 | K46: 0
B47: July | F47: 0 | G47: =IF($C$23="1st Estimate",'GA Rates'!B10,IF($C$23="2nd Estimate",'GA Rates'!C10,IF($C$23="Actual",'GA Rates'!D10,0))) -> 0 | H47: 0 | I47: ='GA Rates'!D10 -> 0.09902 | J47: 0 | K47: 0
B48: August | F48: 0 | G48: =IF($C$23="1st Estimate",'GA Rates'!B11,IF($C$23="2nd Estimate",'GA Rates'!C11,IF($C$23="Actual",'GA Rates'!D11,0))) -> 0 | H48: 0 | I48: ='GA Rates'!D11 -> 0.10348 | J48: 0 | K48: 0
B49: September | F49: 0 | G49: =IF($C$23="1st Estimate",'GA Rates'!B12,IF($C$23="2nd Estimate",'GA Rates'!C12,IF($C$23="Actual",'GA Rates'!D12,0))) -> 0 | H49: 0 | I49: ='GA Rates'!D12 -> 0.12176 | J49: 0 | K49: 0
B50: October | F50: 0 | G50: =IF($C$23="1st Estimate",'GA Rates'!B13,IF($C$23="2nd Estimate",'GA Rates'!C13,IF($C$23="Actual",'GA Rates'!D13,0))) -> 0 | H50: 0 | I50: ='GA Rates'!D13 -> 0.12806 | J50: 0 | K50: 0
B51: November | F51: 0 | G51: =IF($C$23="1st Estimate",'GA Rates'!B14,IF($C$23="2nd Estimate",'GA Rates'!C14,IF($C$23="Actual",'GA Rates'!D14,0))) -> 0 | H51: 0 | I51: ='GA Rates'!D14 -> 0.11705 | J51: 0 | K51: 0
B52: December | F52: 0 | G52: =IF($C$23="1st Estimate",'GA Rates'!B15,IF($C$23="2nd Estimate",'GA Rates'!C15,IF($C$23="Actual",'GA Rates'!D15,0))) -> 0 | H52: 0 | I52: ='GA Rates'!D15 -> 0.10558 | J52: 0 | K52: 0
B53: Net Change in Expected GA Balance in the Year (i.e. Transactions in the Year) | C53: =SUM(C41:C52) -> 0 | D53: =SUM(D41:D52) -> 0 | E53: =SUM(E41:E52) -> 0 | F53: =SUM(F41:F52) -> 0 | H53: =SUM(H41:H52) -> 0 | J53: =SUM(J41:J52) -> 0 | K53: =SUM(K41:K52) -> 0
G55: Annual Non-RPP Class B Wholesale kWh * | H55: Annual Non-RPP Class B Retail billed kWh** | I55: Annual Unaccounted for Energy Loss kWh | J55: Weighted Average GA Actual Rate Paid ($/kWh)*** | K55: Expected GA Volume Variance ($)
G56: O | H56: P | I56: Q=O-P | J56: R | K56: P= Q*R
I57: =G57-H57 -> 0 | K57: =I57*J57 -> 0
G58: *Equal to (AQEW - Class A + embedded generation kWh)*(Non-RPP Class B retail kwh/Total retail Class B kWh). Note that if a reconciling item for #5 Impacts from GA deferral is quantified, then the the data for April to June 2020 should be excluded as the line loss volume variance would be reflected in the reconciling item. **Should equal to the total Non-RPP Class B Including Loss Adjusted Consmption, Adjusted for Unbilled (i.e. cell F53), unless a reconciling item for #5 Impacts from GA deferral is quantified. If the reconciling item is quantified, then the data from April to June 2020 should be excluded (i.e. cell F53 minus F44 to F46).
G59: ***Equal to annual Non-RPP Class B $ GA paid (i.e. non-RPP portion of CT 148 on IESO invoice) divided by Non-RPP Class B Wholesale kWh (as quantified in column O in the table above). Note if a reconciling item for #5 Impacts from GA deferral is quantified, then the data for April to June 2020 should be excluded as the line loss volume variance would be reflected in the reconciling item.
J60: Total Expected GA Variance | K60: =K53+K57 -> 0
H61: Calculated Loss Factor | K61: =IFERROR(F53/D18,0) -> 0
H62: Most Recent Approved Loss Factor for Secondary Metered Customer < 5,000kW
H63: Difference | K63: =K61-K62 -> 0
B64: a) Please provide an explanation in the text box below if columns G and H for unbilled consumption are not used in the table above.
F65: b) Please provide an explanation in the text box below if the difference in loss factor is greater than 1%
A72: Note 5 | B72: Reconciling Items
B74: Item | C74: Amount | D74: Explanation | I74: Principal Adjustments
A75: Net Change in Principal Balance in the GL (i.e. Transactions in the Year) | I75: Principal Adjustment on DVA Continuity Schedule | J75: If "no", please provide an explanation
A76: 1a | B76: CT 148 True-up of GA Charges based on Actual Non-RPP Volumes - prior year
A77: 1b | B77: CT 148 True-up of GA Charges based on Actual Non-RPP Volumes - current year
A78: 2a | B78: Remove prior year end unbilled to actual revenue differences
A79: 2b | B79: Add current year end unbilled to actual revenue differences
A80: 3a | B80: Significant prior period billing adjustments recorded in current year
A81: 3b | B81: Significant current period billing adjustments recorded in other year(s)
A82: 4 | B82: CT 2148 for prior period corrections
A83: 5 | B83: Impacts of GA deferral
A84: 6
A85: 7
A86: 8
A87: 9
A88: 10
A89: 11
A90: Note 6 | B90: Adjusted Net Change in Principal Balance in the GL | C90: =SUM(C75:C89) -> 0
B91: Net Change in Expected GA Balance in the Year Per Analysis | C91: =K60 -> 0
B92: Unresolved Difference | C92: =C90-C91 -> 0
B93: Unresolved Difference as % of Expected GA Payments to IESO | C93: =IF(ISERROR(C92/J53),0,C92/J53) -> 0 | D93: =IF(AND(C93<0.01,C93>-0.01),"","Unresolved differences of greater than + or - 1% should be explained") -> 

Sheet GA 2021 (hidden)
A12: Note 2 | B12: Consumption Data Excluding for Loss Factor (Data to agree with RRR as applicable)
B13: Year | D13: 2021
B14: Total Metered excluding WMP | C14: C = A+B | D14: =VLOOKUP('1. Information Sheet'!$C$17,RRR_2021!$B$4:$U$68,19,FALSE) ->  | E14: kWh | F14: 1
B15: RPP | C15: A | D15: =VLOOKUP('1. Information Sheet'!$C$17,RRR_2021!$B$4:$U$68,7,FALSE) ->  | E15: kWh | F15: =IFERROR(D15/$D$14,0) -> 0
B16: Non RPP | C16: B = D+E | D16: =VLOOKUP('1. Information Sheet'!$C$17,RRR_2021!$B$4:$U$68,20,FALSE) ->  | E16: kWh | F16: =IFERROR(D16/$D$14,0) -> 0
B17: Non-RPP Class A | C17: D | D17: =VLOOKUP('1. Information Sheet'!$C$17,RRR_2021!$B$4:$U$68,13,FALSE) ->  | E17: kWh | F17: =IFERROR(D17/$D$14,0) -> 0
B18: Non-RPP Class B* | C18: E | D18: =D16-D17 ->  | E18: kWh | F18: =IFERROR(D18/$D$14,0) -> 0
B19: *Non-RPP Class B consumption reported in this table is not expected to directly agree with the Non-RPP Class B Including Loss Adjusted Billed Consumption in the GA Analysis of Expected Balance table below. The difference should be equal to the loss factor.
A21: Note 3 | B21: GA Billing Rate
B23: GA is billed on the | D23: Note that this GA rate for 2021 includes the GA recovery rate to recover the 2020 deferred Class B amount for non-RPP market participants and consumers.
B25: Please confirm that the adjusted GA rate was used to bill customers from April to June 2021. For the months of April to June 2020, the IESO provided adjusted GA rates, which reflected the deferral of a portion of the GA as per the May 1, 2020 Emergency Order, and unadjusted GA rates which did not consider the GA deferral.
B27: Please confirm that the same GA rate is used to bill all customer classes. If not, please provide further details
B29: Please confirm that the GA Rate used for unbilled revenue is the same as the one used for billed revenue in any paticular month
A37: Note 4 | B37: Analysis of Expected GA Amount
B38: Year | C38: 2021
B39: Calendar Month | C39: Non-RPP Class B Including Loss Factor Billed Consumption (kWh) | D39: Deduct Previous Month Unbilled Loss Adjusted Consumption (kWh) | E39: Add Current Month Unbilled Loss Adjusted Consumption (kWh) | F39: Non-RPP Class B Including Loss Adjusted Consumption, Adjusted for Unbilled (kWh) | G39: GA Rate Billed ($/kWh) | H39: $ Consumption at GA Rate Billed | I39: GA Actual Rate Paid ($/kWh) | J39: $ Consumption at Actual Rate Paid | K39: Expected GA Price Variance ($)
C40: F | D40: G | E40: H | F40: I = F-G+H | G40: J | H40: K = I*J | I40: L | J40: M = I*L | K40: N=M-K
B41: January | F41: =C41-D41+E41 -> 0 | G41: =IF($C$23="1st Estimate",'GA Rates'!B20,IF($C$23="2nd Estimate",'GA Rates'!C20,IF($C$23="Actual",'GA Rates'!D20,0))) -> 0 | H41: =F41*G41 -> 0 | I41: ='GA Rates'!D20 -> 0.08798 | J41: =F41*I41 -> 0 | K41: =J41-H41 -> 0
B42: February | F42: =C42-D42+E42 -> 0 | G42: =IF($C$23="1st Estimate",'GA Rates'!B21,IF($C$23="2nd Estimate",'GA Rates'!C21,IF($C$23="Actual",'GA Rates'!D21,0))) -> 0 | H42: =F42*G42 -> 0 | I42: ='GA Rates'!D21 -> 0.05751 | J42: =F42*I42 -> 0 | K42: =J42-H42 -> 0
B43: March | F43: 0 | G43: =IF($C$23="1st Estimate",'GA Rates'!B22,IF($C$23="2nd Estimate",'GA Rates'!C22,IF($C$23="Actual",'GA Rates'!D22,0))) -> 0 | H43: 0 | I43: ='GA Rates'!D22 -> 0.09668 | J43: 0 | K43: 0
B44: April | F44: 0 | G44: =IF($C$23="1st Estimate",'GA Rates'!B23,IF($C$23="2nd Estimate",'GA Rates'!C23,IF($C$23="Actual",'GA Rates'!D23,0))) -> 0 | H44: 0 | I44: ='GA Rates'!D23 -> 0.11589 | J44: 0 | K44: 0
B45: May | F45: 0 | G45: =IF($C$23="1st Estimate",'GA Rates'!B24,IF($C$23="2nd Estimate",'GA Rates'!C24,IF($C$23="Actual",'GA Rates'!D24,0))) -> 0 | H45: 0 | I45: ='GA Rates'!D24 -> 0.10675 | J45: 0 | K45: 0
B46: June | F46: 0 | G46: =IF($C$23="1st Estimate",'GA Rates'!B25,IF($C$23="2nd Estimate",'GA Rates'!C25,IF($C$23="Actual",'GA Rates'!D25,0))) -> 0 | H46: 0 | I46: ='GA Rates'!D25 -> 0.09216 | J46: 0 | K46: 0
B47: July | F47: 0 | G47: =IF($C$23="1st Estimate",'GA Rates'!B26,IF($C$23="2nd Estimate",'GA Rates'!C26,IF($C$23="Actual",'GA Rates'!D26,0))) -> 0 | H47: 0 | I47: ='GA Rates'!D26 -> 0.07918 | J47: 0 | K47: 0
B48: August | F48: 0 | G48: =IF($C$23="1st Estimate",'GA Rates'!B27,IF($C$23="2nd Estimate",'GA Rates'!C27,IF($C$23="Actual",'GA Rates'!D27,0))) -> 0 | H48: 0 | I48: ='GA Rates'!D27 -> 0.05107 | J48: 0 | K48: 0
B49: September | F49: 0 | G49: =IF($C$23="1st Estimate",'GA Rates'!B28,IF($C$23="2nd Estimate",'GA Rates'!C28,IF($C$23="Actual",'GA Rates'!D28,0))) -> 0 | H49: 0 | I49: ='GA Rates'!D28 -> 0.08234 | J49: 0 | K49: 0
B50: October | F50: 0 | G50: =IF($C$23="1st Estimate",'GA Rates'!B29,IF($C$23="2nd Estimate",'GA Rates'!C29,IF($C$23="Actual",'GA Rates'!D29,0))) -> 0 | H50: 0 | I50: ='GA Rates'!D29 -> 0.0584 | J50: 0 | K50: 0
B51: November | F51: 0 | G51: =IF($C$23="1st Estimate",'GA Rates'!B30,IF($C$23="2nd Estimate",'GA Rates'!C30,IF($C$23="Actual",'GA Rates'!D30,0))) -> 0 | H51: 0 | I51: ='GA Rates'!D30 -> 0.06012 | J51: 0 | K51: 0
B52: December | F52: 0 | G52: =IF($C$23="1st Estimate",'GA Rates'!B31,IF($C$23="2nd Estimate",'GA Rates'!C31,IF($C$23="Actual",'GA Rates'!D31,0))) -> 0 | H52: 0 | I52: ='GA Rates'!D31 -> 0.06515 | J52: 0 | K52: 0
B53: Net Change in Expected GA Balance in the Year (i.e. Transactions in the Year) | C53: =SUM(C41:C52) -> 0 | D53: =SUM(D41:D52) -> 0 | E53: =SUM(E41:E52) -> 0 | F53: =SUM(F41:F52) -> 0 | H53: =SUM(H41:H52) -> 0 | J53: =SUM(J41:J52) -> 0 | K53: =SUM(K41:K52) -> 0
G55: Annual Non-RPP Class B Wholesale kWh * | H55: Annual Non-RPP Class B Retail billed kWh** | I55: Annual Unaccounted for Energy Loss kWh | J55: Weighted Average GA Actual Rate Paid ($/kWh)*** | K55: Expected GA Volume Variance ($)
G56: O | H56: P | I56: Q=O-P | J56: R | K56: P= Q*R
I57: =G57-H57 -> 0 | K57: =I57*J57 -> 0
G58: *Equal to (AQEW - Class A + embedded generation kWh)*(Non-RPP Class B retail kwh/Total retail Class B kWh). **Equal to the total Non-RPP Class B Including Loss Adjusted Consmption, Adjusted for Unbilled (i.e. cell F53), unless a reconciling item for "Impacts of GA deferral/recovery" is quantified and an alternative methodology for calculating the Expected GA Volume Variance is proposed.
G59: **Equal to annual Non-RPP Class B $ GA paid (i.e. non-RPP portion of CT 148 on IESO invoice) divided by Non-RPP Class B Wholesale kWh (as quantified in column O in the table above). The weighted average GA actual rate paid in 2021 is generally expected to include the GA recovery rate, unless a reconciling item for "Impacts of GA deferral/recovery" is quantified and an alternative methodology for calculating the Expected GA Volume Variance is proposed. The weighted average GA actual rate paid in 2021 is generally expected to include the GA recovery rate, unless the distributor is proposing an alternative methodology in calculating the Expected GA Volume Variance and proposing to quantify the reconciling item for "Impacts of GA deferral/recovery.
J60: Total Expected GA Variance | K60: =K53+K57 -> 0
H61: Calculated Loss Factor | K61: =IFERROR(F53/D18,0) -> 0
H62: Most Recent Approved Loss Factor for Secondary Metered Customer < 5,000kW
H63: Difference | K63: =K61-K62 -> 0
B64: a) Please provide an explanation in the text box below if columns G and H for unbilled consumption are not used in the table above.
F65: b) Please provide an explanation in the text box below if the difference in loss factor is greater than 1%
A72: Note 5 | B72: Reconciling Items
B74: Item | C74: Amount | D74: Explanation | I74: Principal Adjustments
A75: Net Change in Principal Balance in the GL (i.e. Transactions in the Year) | I75: Principal Adjustment on DVA Continuity Schedule | J75: If "no", please provide an explanation
A76: 1a | B76: CT 148 True-up of GA Charges based on Actual Non-RPP Volumes - prior year
A77: 1b | B77: CT 148 True-up of GA Charges based on Actual Non-RPP Volumes - current year
A78: 2a | B78: Remove prior year end unbilled to actual revenue differences
A79: 2b | B79: Add current year end unbilled to actual revenue differences
A80: 3a | B80: Significant prior period billing adjustments recorded in current year
A81: 3b | B81: Significant current period billing adjustments recorded in other year(s)
A82: 4 | B82: CT 2148 for prior period corrections
A83: 5 | B83: Impacts of GA deferral/recovery
A84: 6
A85: 7
A86: 8
A87: 9
A88: 10
A89: 11
A90: Note 6 | B90: Adjusted Net Change in Principal Balance in the GL | C90: =SUM(C75:C89) -> 0
B91: Net Change in Expected GA Balance in the Year Per Analysis | C91: =K60 -> 0
B92: Unresolved Difference | C92: =C90-C91 -> 0
B93: Unresolved Difference as % of Expected GA Payments to IESO | C93: =IF(ISERROR(C92/J53),0,C92/J53) -> 0 | D93: =IF(AND(C93<0.01,C93>-0.01),"","Unresolved differences of greater than + or - 1% should be explained") -> 

Sheet GA 2022
A12: Note 2 | B12: Consumption Data Excluding for Loss Factor (Data to agree with RRR as applicable)
B13: Year | D13: 2022
B14: Total Metered excluding WMP | C14: C = A+B | D14: 83495463 | E14: kWh | F14: 1
B15: RPP | C15: A | D15: 39948118 | E15: kWh | F15: =IFERROR(D15/$D$14,0) -> 0.4784465714
B16: Non RPP | C16: B = D+E | D16: 43547345 | E16: kWh | F16: =IFERROR(D16/$D$14,0) -> 0.5215534286
B17: Non-RPP Class A | C17: D | D17: 19400137 | E17: kWh | F17: =IFERROR(D17/$D$14,0) -> 0.2323495949
B18: Non-RPP Class B* | C18: E | D18: 24147208 | E18: kWh | F18: =IFERROR(D18/$D$14,0) -> 0.2892038337
B19: *Non-RPP Class B consumption reported in this table is not expected to directly agree with the Non-RPP Class B Including Loss Adjusted Billed Consumption in the GA Analysis of Expected Balance table below. The difference should be equal to the loss factor.
A21: Note 3 | B21: GA Billing Rate
B23: GA is billed on the | C23: 1st Estimate
B25: Please confirm that the same GA rate is used to bill all customer classes. If not, please provide further details | G25: Yes
B27: Please confirm that the GA Rate used for unbilled revenue is the same as the one used for billed revenue in any paticular month | G27: Yes
A37: Note 4 | B37: Analysis of Expected GA Amount
B38: Year | C38: 2022
B39: Calendar Month | C39: Non-RPP Class B Including Loss Factor Billed Consumption (kWh) | D39: Deduct Previous Month Unbilled Loss Adjusted Consumption (kWh) | E39: Add Current Month Unbilled Loss Adjusted Consumption (kWh) | F39: Non-RPP Class B Including Loss Adjusted Consumption, Adjusted for Unbilled (kWh) | G39: GA Rate Billed ($/kWh) | H39: $ Consumption at GA Rate Billed | I39: GA Actual Rate Paid ($/kWh) | J39: $ Consumption at Actual Rate Paid | K39: Expected GA Price Variance ($)
C40: F | D40: G | E40: H | F40: I = F-G+H | G40: J | H40: K = I*J | I40: L | J40: M = I*L | K40: N=M-K
B41: January | C41: 2433109.28 | F41: =C41-D41+E41 -> 2433109.28 | G41: =IF($C$23="1st Estimate",'GA Rates'!F20,IF($C$23="2nd Estimate",'GA Rates'!G20,IF($C$23="Actual",'GA Rates'!H20,0))) -> 0.04829 | H41: =F41*G41 -> 117494.8471 | I41: ='GA Rates'!H20 -> 0.04353 | J41: =F41*I41 -> 105913.247 | K41: =J41-H41 -> -11581.60017
B42: February | C42: 2170649.17 | F42: =C42-D42+E42 -> 2170649.17 | G42: =IF($C$23="1st Estimate",'GA Rates'!F21,IF($C$23="2nd Estimate",'GA Rates'!G21,IF($C$23="Actual",'GA Rates'!H21,0))) -> 0.05019 | H42: =F42*G42 -> 108944.8818 | I42: ='GA Rates'!H21 -> 0.05246 | J42: =F42*I42 -> 113872.2555 | K42: =J42-H42 -> 4927.373616
B43: March | C43: 2236001.06 | F43: 2236001.06 | G43: =IF($C$23="1st Estimate",'GA Rates'!F22,IF($C$23="2nd Estimate",'GA Rates'!G22,IF($C$23="Actual",'GA Rates'!H22,0))) -> 0.055 | H43: 122980.0583 | I43: ='GA Rates'!H22 -> 0.05941 | J43: 132840.823 | K43: 9860.764675
B44: April | C44: 1970979.01 | F44: 1970979.01 | G44: =IF($C$23="1st Estimate",'GA Rates'!F23,IF($C$23="2nd Estimate",'GA Rates'!G23,IF($C$23="Actual",'GA Rates'!H23,0))) -> 0.05915 | H44: 116583.4084 | I44: ='GA Rates'!H23 -> 0.08293 | J44: 163453.2893 | K44: 46869.88086
B45: May | C45: 2020153.57 | F45: 2020153.57 | G45: =IF($C$23="1st Estimate",'GA Rates'!F24,IF($C$23="2nd Estimate",'GA Rates'!G24,IF($C$23="Actual",'GA Rates'!H24,0))) -> 0.05968 | H45: 120562.7651 | I45: ='GA Rates'!H24 -> 0.08475 | J45: 171208.0151 | K45: 50645.25
B46: June | C46: 2014204.9 | F46: 2014204.9 | G46: =IF($C$23="1st Estimate",'GA Rates'!F25,IF($C$23="2nd Estimate",'GA Rates'!G25,IF($C$23="Actual",'GA Rates'!H25,0))) -> 0.08293 | H46: 167038.0124 | I46: ='GA Rates'!H25 -> 0.07868 | J46: 158477.6415 | K46: -8560.370825
B47: July | C47: 2129737.35 | F47: 2129737.35 | G47: =IF($C$23="1st Estimate",'GA Rates'!F26,IF($C$23="2nd Estimate",'GA Rates'!G26,IF($C$23="Actual",'GA Rates'!H26,0))) -> 0.08475 | H47: 180495.2404 | I47: ='GA Rates'!H26 -> 0.04008 | J47: 85359.87299 | K47: -95135.36742
B48: August | C48: 2220532.61 | F48: 2220532.61 | G48: =IF($C$23="1st Estimate",'GA Rates'!F27,IF($C$23="2nd Estimate",'GA Rates'!G27,IF($C$23="Actual",'GA Rates'!H27,0))) -> 0.04871 | H48: 108162.1434 | I48: ='GA Rates'!H27 -> 0.00499 | J48: 11080.45772 | K48: -97081.68571
B49: September | C49: 1992890.32 | F49: 1992890.32 | G49: =IF($C$23="1st Estimate",'GA Rates'!F28,IF($C$23="2nd Estimate",'GA Rates'!G28,IF($C$23="Actual",'GA Rates'!H28,0))) -> 0.04008 | H49: 79875.04403 | I49: ='GA Rates'!H28 -> 0.03241 | J49: 64589.57527 | K49: -15285.46875
B50: October | C50: 1987019.39 | F50: 1987019.39 | G50: =IF($C$23="1st Estimate",'GA Rates'!F29,IF($C$23="2nd Estimate",'GA Rates'!G29,IF($C$23="Actual",'GA Rates'!H29,0))) -> 0.00499 | H50: 9915.226756 | I50: ='GA Rates'!H29 -> 0.05771 | J50: 114670.889 | K50: 104755.6622
B51: November | C51: 1995877.43 | F51: 1995877.43 | G51: =IF($C$23="1st Estimate",'GA Rates'!F30,IF($C$23="2nd Estimate",'GA Rates'!G30,IF($C$23="Actual",'GA Rates'!H30,0))) -> 0.04739 | H51: 94584.63141 | I51: ='GA Rates'!H30 -> 0.06989 | J51: 139491.8736 | K51: 44907.24217
B52: December | C52: 2081471.13 | F52: 2081471.13 | G52: =IF($C$23="1st Estimate",'GA Rates'!F31,IF($C$23="2nd Estimate",'GA Rates'!G31,IF($C$23="Actual",'GA Rates'!H31,0))) -> 0.05962 | H52: 124097.3088 | I52: ='GA Rates'!H31 -> 0.03427 | J52: 71332.01563 | K52: -52765.29315
B53: Net Change in Expected GA Balance in the Year (i.e. Transactions in the Year) | C53: =SUM(C41:C52) -> 25252625.22 | D53: =SUM(D41:D52) -> 0 | E53: =SUM(E41:E52) -> 0 | F53: =SUM(F41:F52) -> 25252625.22 | H53: =SUM(H41:H52) -> 1350733.568 | J53: =SUM(J41:J52) -> 1332289.955 | K53: =SUM(K41:K52) -> -18443.61247
G55: Annual Non-RPP Class B Wholesale kWh * | H55: Annual Non-RPP Class B Retail billed kWh | I55: Annual Unaccounted for Energy Loss kWh | J55: Weighted Average GA Actual Rate Paid ($/kWh)** | K55: Expected GA Volume Variance ($)
G56: O | H56: P | I56: Q=O-P | J56: R | K56: P= Q*R
G57: 25730799 | H57: =F53 -> 25252625.22 | I57: =G57-H57 -> 478173.78 | J57: 0.05353 | K57: =I57*J57 -> 25596.64244
G58: *Equal to (AQEW - Class A + embedded generation kWh)*(Non-RPP Class B retail kwh/Total retail Class B kWh)
G59: **Equal to annual Non-RPP Class B $ GA paid (i.e. non-RPP portion of CT 148 on IESO invoice) divided by Non-RPP Class B Wholesale kWh (as quantified in column O in the table above)
J60: Total Expected GA Variance | K60: =K53+K57 -> 7153.029976
H61: Calculated Loss Factor | K61: =IFERROR(F53/D18,0) -> 1.045778262
H62: Most Recent Approved Loss Factor for Secondary Metered Customer < 5,000kW | K62: 1.0467
H63: Difference | K63: =K61-K62 -> -0.0009217377678
B64: a) Please provide an explanation in the text box below if columns G and H for unbilled consumption are not used in the table above.
B65: Consumption in column F is actual consumption including unbilled revenue | F65: b) Please provide an explanation in the text box below if the difference in loss factor is greater than 1%
A72: Note 5 | B72: Reconciling Items
B74: Item | C74: Amount | D74: Explanation | I74: Principal Adjustments
A75: Net Change in Principal Balance in the GL (i.e. Transactions in the Year) | C75: 16587.9496 | I75: Principal Adjustment on DVA Continuity Schedule | J75: If "no", please provide an explanation
A76: 1a | B76: CT 148 True-up of GA Charges based on Actual Non-RPP Volumes - prior year
A77: 1b | B77: CT 148 True-up of GA Charges based on Actual Non-RPP Volumes - current year | C77: -17861.31095 | I77: Yes
A78: 2a | B78: Remove prior year end unbilled to actual revenue differences
A79: 2b | B79: Add current year end unbilled to actual revenue differences
A80: 3a | B80: Significant prior period billing adjustments recorded in current year
A81: 3b | B81: Significant current period billing adjustments recorded in other year(s)
A82: 4a | B82: CT 2148 for prior period corrections
A83: 4b
A84: 5
A85: 6
A86: 7
A87: 8
A88: 9
A89: 10
A90: Note 6 | B90: Adjusted Net Change in Principal Balance in the GL | C90: =SUM(C75:C89) -> -1273.361355
B91: Net Change in Expected GA Balance in the Year Per Analysis | C91: =K60 -> 7153.029976
B92: Unresolved Difference | C92: =C90-C91 -> -8426.391331
B93: Unresolved Difference as % of Expected GA Payments to IESO | C93: =IF(ISERROR(C92/J53),0,C92/J53) -> -0.006324742821 | D93: =IF(AND(C93<0.01,C93>-0.01),"","Unresolved differences of greater than + or - 1% should be explained") -> 

Sheet GA 2023
A12: Note 2 | B12: Consumption Data Excluding for Loss Factor (Data to agree with RRR as applicable)
B13: Year | D13: 2023
B14: Total Metered excluding WMP | C14: C = A+B | D14: 82602476.21 | E14: kWh | F14: 1
B15: RPP | C15: A | D15: 38550500.75 | E15: kWh | F15: =IFERROR(D15/$D$14,0) -> 0.4666990933
B16: Non RPP | C16: B = D+E | D16: 44051975.46 | E16: kWh | F16: =IFERROR(D16/$D$14,0) -> 0.5333009067
B17: Non-RPP Class A | C17: D | D17: 19760983.46 | E17: kWh | F17: =IFERROR(D17/$D$14,0) -> 0.2392299162
B18: Non-RPP Class B* | C18: E | D18: =D16-D17 -> 24290992 | E18: kWh | F18: =IFERROR(D18/$D$14,0) -> 0.2940709905
B19: *Non-RPP Class B consumption reported in this table is not expected to directly agree with the Non-RPP Class B Including Loss Adjusted Billed Consumption in the GA Analysis of Expected Balance table below. The difference should be equal to the loss factor.
A21: Note 3 | B21: GA Billing Rate
B23: GA is billed on the | C23: 1st Estimate
B25: Please confirm that the same GA rate is used to bill all customer classes. If not, please provide further details | G25: Yes
B27: Please confirm that the GA Rate used for unbilled revenue is the same as the one used for billed revenue in any paticular month | G27: Yes
A37: Note 4 | B37: Analysis of Expected GA Amount
B38: Year | C38: 2023
B39: Calendar Month | C39: Non-RPP Class B Including Loss Factor Billed Consumption (kWh) | D39: Deduct Previous Month Unbilled Loss Adjusted Consumption (kWh) | E39: Add Current Month Unbilled Loss Adjusted Consumption (kWh) | F39: Non-RPP Class B Including Loss Adjusted Consumption, Adjusted for Unbilled (kWh) | G39: GA Rate Billed ($/kWh) | H39: $ Consumption at GA Rate Billed | I39: GA Actual Rate Paid ($/kWh) | J39: $ Consumption at Actual Rate Paid | K39: Expected GA Price Variance ($)
C40: F | D40: G | E40: H | F40: I = F-G+H | G40: J | H40: K = I*J | I40: L | J40: M = I*L | K40: N=M-K
B41: January | C41: 2205045.96 | F41: =C41-D41+E41 -> 2205045.96 | G41: =IF($C$23="1st Estimate",'GA Rates'!J20,IF($C$23="2nd Estimate",'GA Rates'!K20,IF($C$23="Actual",'GA Rates'!L20,0))) -> 0.03138 | H41: =F41*G41 -> 69194.34222 | I41: ='GA Rates'!L20 -> 0.05377 | J41: =F41*I41 -> 118565.3213 | K41: =J41-H41 -> 49370.97904
B42: February | C42: 2026103.38 | F42: =C42-D42+E42 -> 2026103.38 | G42: =IF($C$23="1st Estimate",'GA Rates'!J21,IF($C$23="2nd Estimate",'GA Rates'!K21,IF($C$23="Actual",'GA Rates'!L21,0))) -> 0.06285 | H42: =F42*G42 -> 127340.5974 | I42: ='GA Rates'!L21 -> 0.08249 | J42: =F42*I42 -> 167133.2678 | K42: =J42-H42 -> 39792.67038
B43: March | C43: 2183531.04 | F43: 2183531.04 | G43: =IF($C$23="1st Estimate",'GA Rates'!J22,IF($C$23="2nd Estimate",'GA Rates'!K22,IF($C$23="Actual",'GA Rates'!L22,0))) -> 0.06989 | H43: 152606.9844 | I43: ='GA Rates'!L22 -> 0.08031 | J43: 175359.3778 | K43: 22752.39344
B44: April | C44: 1966519.54 | F44: 1966519.54 | G44: =IF($C$23="1st Estimate",'GA Rates'!J23,IF($C$23="2nd Estimate",'GA Rates'!K23,IF($C$23="Actual",'GA Rates'!L23,0))) -> 0.08249 | H44: 162218.1969 | I44: ='GA Rates'!L23 -> 0.09853 | J44: 193761.1703 | K44: 31542.97342
B45: May | C45: 2041182.55 | F45: 2041182.55 | G45: =IF($C$23="1st Estimate",'GA Rates'!J24,IF($C$23="2nd Estimate",'GA Rates'!K24,IF($C$23="Actual",'GA Rates'!L24,0))) -> 0.08249 | H45: 168377.1485 | I45: ='GA Rates'!L24 -> 0.09962 | J45: 203342.6056 | K45: 34965.45708
B46: June | C46: 2025591.95 | F46: 2025591.95 | G46: =IF($C$23="1st Estimate",'GA Rates'!J25,IF($C$23="2nd Estimate",'GA Rates'!K25,IF($C$23="Actual",'GA Rates'!L25,0))) -> 0.09853 | H46: 199581.5748 | I46: ='GA Rates'!L25 -> 0.08293 | J46: 167982.3404 | K46: -31599.23442
B47: July | C47: 2287784.43 | F47: 2287784.43 | G47: =IF($C$23="1st Estimate",'GA Rates'!J26,IF($C$23="2nd Estimate",'GA Rates'!K26,IF($C$23="Actual",'GA Rates'!L26,0))) -> 0.09962 | H47: 227909.0849 | I47: ='GA Rates'!L26 -> 0.04949 | J47: 113222.4514 | K47: -114686.6335
B48: August | C48: 2272007.2 | F48: 2272007.2 | G48: =IF($C$23="1st Estimate",'GA Rates'!J27,IF($C$23="2nd Estimate",'GA Rates'!K27,IF($C$23="Actual",'GA Rates'!L27,0))) -> 0.05377 | H48: 122165.8271 | I48: ='GA Rates'!L27 -> 0.07606 | J48: 172808.8676 | K48: 50643.04049
B49: September | C49: 2093211.25 | F49: 2093211.25 | G49: =IF($C$23="1st Estimate",'GA Rates'!J28,IF($C$23="2nd Estimate",'GA Rates'!K28,IF($C$23="Actual",'GA Rates'!L28,0))) -> 0.05837 | H49: 122180.7407 | I49: ='GA Rates'!L28 -> 0.05093 | J49: 106607.249 | K49: -15573.4917
B50: October | C50: 2087239.2 | F50: 2087239.2 | G50: =IF($C$23="1st Estimate",'GA Rates'!J29,IF($C$23="2nd Estimate",'GA Rates'!K29,IF($C$23="Actual",'GA Rates'!L29,0))) -> 0.07332 | H50: 153036.3781 | I50: ='GA Rates'!L29 -> 0.08498 | J50: 177373.5872 | K50: 24337.20907
B51: November | C51: 2109338.17 | F51: 2109338.17 | G51: =IF($C$23="1st Estimate",'GA Rates'!J30,IF($C$23="2nd Estimate",'GA Rates'!K30,IF($C$23="Actual",'GA Rates'!L30,0))) -> 0.0704 | H51: 148497.4072 | I51: ='GA Rates'!L30 -> 0.0709 | J51: 149552.0763 | K51: 1054.669085
B52: December | C52: 2106679.68 | F52: 2106679.68 | G52: =IF($C$23="1st Estimate",'GA Rates'!J31,IF($C$23="2nd Estimate",'GA Rates'!K31,IF($C$23="Actual",'GA Rates'!L31,0))) -> 0.0834 | H52: 175697.0853 | I52: ='GA Rates'!L31 -> 0.06622 | J52: 139504.3284 | K52: -36192.7569
B53: Net Change in Expected GA Balance in the Year (i.e. Transactions in the Year) | C53: =SUM(C41:C52) -> 25404234.35 | D53: =SUM(D41:D52) -> 0 | E53: =SUM(E41:E52) -> 0 | F53: =SUM(F41:F52) -> 25404234.35 | H53: =SUM(H41:H52) -> 1828805.368 | J53: =SUM(J41:J52) -> 1885212.643 | K53: =SUM(K41:K52) -> 56407.27551
G55: Annual Non-RPP Class B Wholesale kWh * | H55: Annual Non-RPP Class B Retail billed kWh | I55: Annual Unaccounted for Energy Loss kWh | J55: Weighted Average GA Actual Rate Paid ($/kWh)** | K55: Expected GA Volume Variance ($)
G56: O | H56: P | I56: Q=O-P | J56: R | K56: P= Q*R
G57: 26654217.25 | H57: =F53 -> 25404234.35 | I57: =G57-H57 -> 1249982.901 | J57: 0.07258263643 | K57: =I57*J57 -> 90727.05447
G58: *Equal to (AQEW - Class A + embedded generation kWh)*(Non-RPP Class B retail kwh/Total retail Class B kWh)
G59: **Equal to annual Non-RPP Class B $ GA paid (i.e. non-RPP portion of CT 148 on IESO invoice) divided by Non-RPP Class B Wholesale kWh (as quantified in column O in the table above)
J60: Total Expected GA Variance | K60: =K53+K57 -> 147134.33
H61: Calculated Loss Factor | K61: =IFERROR(F53/D18,0) -> 1.045829431
H62: Most Recent Approved Loss Factor for Secondary Metered Customer < 5,000kW | K62: 1.0467
H63: Difference | K63: =K61-K62 -> -0.0008705686618
B64: a) Please provide an explanation in the text box below if columns G and H for unbilled consumption are not used in the table above.
F65: b) Please provide an explanation in the text box below if the difference in loss factor is greater than 1%
A72: Note 5 | B72: Reconciling Items
B74: Item | C74: Amount | D74: Explanation | I74: Principal Adjustments
A75: Net Change in Principal Balance in the GL (i.e. Transactions in the Year) | C75: 82471.21549 | I75: Principal Adjustment on DVA Continuity Schedule | J75: If "no", please provide an explanation
A76: 1a | B76: CT 148 True-up of GA Charges based on Actual Non-RPP Volumes - prior year | C76: 17861.31095 | I76: Yes
A77: 1b | B77: CT 148 True-up of GA Charges based on Actual Non-RPP Volumes - current year | C77: 28420.97008 | I77: Yes
A78: 2a | B78: Remove prior year end unbilled to actual revenue differences
A79: 2b | B79: Add current year end unbilled to actual revenue differences
A80: 3a | B80: Remove difference between prior year accrual/forecast to actual from long term load transfers
A81: 3b | B81: Add difference between current year accrual/forecast to actual from long term load transfers
A82: 4 | B82: Remove GA balances pertaining to Class A customers
A83: 5a | B83: Significant prior period billing adjustments recorded in current year
A84: 5b | B84: Significant current period billing adjustments recorded in other year(s)
A85: 6 | B85: Differences in GA IESO posted rate and rate charged on IESO invoice
A86: 7
A87: 8
A88: 9
A89: 10
A90: Note 6 | B90: Adjusted Net Change in Principal Balance in the GL | C90: =SUM(C75:C89) -> 128753.4965
B91: Net Change in Expected GA Balance in the Year Per Analysis | C91: =K60 -> 147134.33
B92: Unresolved Difference | C92: =C90-C91 -> -18380.83346
B93: Unresolved Difference as % of Expected GA Payments to IESO | C93: =IF(ISERROR(C92/J53),0,C92/J53) -> -0.009750005405 | D93: =IF(AND(C93<0.01,C93>-0.01),"","Unresolved differences of greater than + or - 1% should be explained") -> 

Sheet Account 1588
V7: The annual Account 1588 balance relative to cost of power is expected to be small. If it is greater than +/-1%, provide an explanation in the text box below.
A11: Note 7 | B11: Account 1588 Reasonability Test
C13: Account 1588 - RSVA Power | F13: Account 4705 - Power Purchased | G13: Account 1588 as % of Account 4705
B14: Year | C14: Transactions1 | D14: Principal Adjustments1 | E14: Total Activity in Calendar Year
B15: 2018 | H15: =IF(ABS(G15)>0.01,$V$7,"") -> 
B16: 2019 | E16: =SUM(C16:D16) -> 0 | F16: =IFERROR(VLOOKUP('1. Information Sheet'!$C$17,'4705'!$A:$H,5,FALSE),0) -> 0 | G16: =IFERROR(E16/F16,0) -> 0
B17: 2020 | E17: =SUM(C17:D17) -> 0 | F17: =IFERROR(VLOOKUP('1. Information Sheet'!$C$17,'4705'!$A:$H,6,FALSE),0) -> 0 | G17: 0
B18: 2021 | E18: =SUM(C18:D18) -> 0 | F18: =IFERROR(VLOOKUP('1. Information Sheet'!$C$17,'4705'!$A:$H,7,FALSE),0) -> 0 | G18: 0
B19: 2022 | C19: -108216.7061 | D19: 85064.24821 | E19: =SUM(C19:D19) -> -23152.4579 | F19: 5868243 | G19: -0.003945381591
B20: 2023 | C20: 68245.68367 | D20: -57602.37008 | E20: =SUM(C20:D20) -> 10643.3136 | F20: 4467229.671 | G20: 0.002382531094
B21: Cumulative | C21: =SUM(C15:C20) -> -39971.02244 | D21: =SUM(D15:D20) -> 27461.87813 | E21: =SUM(E15:E20) -> -12509.14431 | F21: =IF('1. Information Sheet'!D21=2022,F20,IF('1. Information Sheet'!D21=2021,SUM(F19:F20),IF('1. Information Sheet'!D21=2020,SUM(F18:F20),IF('1. Information Sheet'!D21=2019,SUM(F17:F20),IF('1. Information Sheet'!D21=2018,SUM(F16:F20),IF('1. Information Sheet'!D21=2016,SUM(F15:F20),0)))))) -> 10335472.67 | G21: -0.001210311778
B24: Notes
B25: 1) The transactions should equal the "Transaction" column in the DVA Continuity Schedule. This is also expected to equal the transactions in the general ledger (excluding transactions relating to the removal of approved disposition amounts as that is shown in a separate column in the DVA Continuity Schedule)
B26: 2) Principal adjustments should equal the "Principal Adjustments" column in the DVA Continuity Schedule. Principal adjustments adjust the transactions in the general ledger to the amount that should be requested for disposition.
B31: Reasons for large Account 1588 balance, relative to cost of power purchased
B33: 2016
B41: 2017
B49: 2018
B57: 2019
B65: 2020
B73: 2021

Sheet Principal Adjustments
A15: Note 8 | B15: Breakdown of principal adjustments included in last approved balance:
B17: Account 1589 - RSVA Global Adjustment | N17: Account 1588 - RSVA Power
B18: Adjustment Description | J18: Amount | K18: To be reversed in current application? | L18: Explanation if not to be reversed in current application | N18: Adjustment Description | V18: Amount | W18: To be Reversed in Current Application? | X18: Explanation if not to be reversed in current application
B19: 1 | C19: Reversal of prior year CT-148 true-up of GA Charges based on actual Non-RPP volumes | J19: -62824 | K19: No | N19: 1 | O19: CT 148 True-up of GA Chages based on actual RPP volumes | V19: -15769 | W19: No | X19: Reversed in 2024
B20: 2 | C20: CT 148 true-up of GA Charges based on actual Non-RPP volumes | J20: 15769 | K20: No | L20: Reversed in 2024 | N20: 2 | O20: Reversal of CT 148 true-up GA Charges based on actual RPP volumes | V20: 62824 | W20: No | X20: Reversal
B21: 3 | N21: 3
B22: 4 | N22: 4
B23: 5 | N23: 5
B24: 6 | N24: 6
B25: 7 | N25: 7
B26: 8 | N26: 8
B27: Total | J27: =SUM(J19:J26) -> -47055 | N27: Total | V27: =SUM(V19:V26) -> 47055
B28: Total principal adjustments included in last approved balance | N28: Total principal adjustments included in last approved balance
B29: Difference | J29: =J27-J28 -> -47055 | N29: Difference | V29: =V27-V28 -> 47055
A32: Note 9 | B32: Principal adjustment reconciliation in current application:
B34: Notes
B35: 1) The "Transaction" column in the DVA Continuity Schedule is to equal the transactions in the general ledger (excluding transactions relating to the removal of approved disposition amounts as that is shown in a separate column in the DVA Continuity Schedule)
B36: 2) Any principal adjustments needed to adjust the transactions in the general ledger to the amount that should be requested for disposition should be shown separately in the "Principal Adjustments" column of the DVA Continuity Schedule
B37: 3) The "Variance RRR vs. 2023 Balance" column in the DVA Continuity Schedule should equal principal adjustments made in the current disposition period. It should not be impacted by reversals from prior year approved principal adjustments.
B38: 4) Principal adjustments to the pro-ration of CT 148 true-ups (i.e. principal adjustment #1 in tables below) are expected to be equal and offsetting between Account 1588 and Account 1589, if not, please explain. If this results in further adjustments to RPP settlements, this should be shown separately as a principal adjustment to CT 1142/142 (i.e. principal adjustment #2 in tables below)
B39: Complete the table below for the current disposition period. Complete a table for each year included in the balance under review in this rate application. The number of tables to be completed is automatically generated based on data provided in the Information Sheet
B41: Account 1589 - RSVA Global Adjustment | N41: Account 1588 - RSVA Power
A42: Year | B42: Adjustment Description | J42: Amount | K42: Year Recorded in GL | M42: Year | N42: Adjustment Description | V42: Amount | W42: Year Recorded in GL
A43: 2022 | B43: Reversals of prior approved principal adjustments (auto-populated from table above) | M43: 2022 | N43: Reversals of prior approved principal adjustments (auto-populated from table above)
B44: 1 | C44: =IF(K19="Yes",C19,"") ->  | J44: =IF(K19="Yes",-J19,"") ->  | N44: 1 | O44: =IF(W19="Yes",O19,"") ->  | V44: =IF(W19="Yes",-V19,"") -> 
B45: 2 | C45: =IF(K20="Yes",C20,"") ->  | J45: =IF(K20="Yes",-J20,"") ->  | N45: 2 | O45: =IF(W20="Yes",O20,"") ->  | V45: =IF(W20="Yes",-V20,"") -> 
B46: 3 | N46: 3
B47: 4 | N47: 4
B48: 5 | N48: 5
B49: 6 | N49: 6
B50: 7 | N50: 7
B51: 8 | N51: 8
B52: Total Reversal Principal Adjustments | J52: =SUM(J44:J51) -> 0 | N52: Total Reversal Principal Adjustments | V52: =SUM(V44:V51) -> 0
A53: 2022 | B53: Current year principal adjustments | N53: Current year principal adjustments
B54: 1 | C54: CT 148 true-up of GA Charges based on actual Non-RPP volumes | J54: -17861.31095 | N54: 1 | O54: CT 148 true-up of GA Charges based on actual RPP volumes | V54: 17861.31095 | W54: 2024
B55: 2 | C55: Unbilled to actual revenue differences | N55: 2 | O55: CT 1142/142 true-up based on actuals | V55: 67202.93726 | W55: 2024
B56: 3 | N56: 3 | O56: Unbilled to actual revenue differences
B57: 4 | N57: 4
B58: 5 | N58: 5
B59: 6 | N59: 6
B60: 7 | N60: 7
B61: 8 | N61: 8
B62: Total Current Year Principal Adjustments | J62: =SUM(J54:J61) -> -17861.31095 | N62: Total Current Year Principal Adjustments | V62: =SUM(V54:V61) -> 85064.24821
B63: Total Principal Adjustments to be Included on DVA Continuity Schedule/Tab 3 - IRM Rate Generator Model | J63: =J62+J52 -> -17861.31095 | N63: Total Principal Adjustments to be Included on DVA Continuity Schedule/Tab 3 - IRM Rate Generator Model | V63: =V62+V52 -> 85064.24821
B67: Account 1589 - RSVA Global Adjustment | N67: Account 1588 - RSVA Power
A68: Year | B68: Adjustment Description | J68: Amount | K68: Year Recorded in GL | M68: Year | N68: Adjustment Description | V68: Amount | W68: Year Recorded in GL
A69: 2023 | B69: Reversals of prior year principal adjustments | M69: 2023 | N69: Reversals of prior year principal adjustments
B70: 1 | C70: Reversal of prior year CT-148 true-up of GA Charges based on actual Non-RPP volumes | J70: 17861 | N70: 1 | O70: Reversal of CT 148 true-up of GA Charges based on actual RPP volumes | V70: -17861
B71: 2 | C71: Reversal of Unbilled to actual revenue differences | N71: 2 | O71: Reversal of CT 1142/142 true-up based on actuals
B72: 3 | N72: 3 | O72: Reversal of Unbilled to actual revenue differences
B73: 4 | N73: 4
B74: 5 | N74: 5
B75: 6 | N75: 6
B76: 7 | N76: 7
B77: 8 | N77: 8
B78: Total Reversal Principal Adjustments | J78: =SUM(J70:J77) -> 17861 | N78: Total Reversal Principal Adjustments | V78: =SUM(V70:V77) -> -17861
A79: 2023 | B79: Current year principal adjustments | M79: 2023 | N79: Current year principal adjustments
B80: 1 | C80: CT 148 true-up of GA Charges based on actual Non-RPP volumes | J80: 28420.97008 | N80: 1 | O80: CT 148 true-up of GA Charges based on actual RPP volumes | V80: -28420.97008
B81: 2 | C81: Unbilled to actual revenue differences | N81: 2 | O81: Reversal of CT 1142/142 true-up based on actuals | V81: -11320.4
B82: 3 | N82: 3 | O82: Unbilled to actual revenue differences
B83: 4 | N83: 4
B84: 5 | N84: 5
B85: 6 | N85: 6
B86: 7 | N86: 7
B87: 8 | N87: 8
B88: Total Current Year Principal Adjustments | J88: =SUM(J80:J87) -> 28420.97008 | N88: Total Current Year Principal Adjustments | V88: =SUM(V80:V87) -> -39741.37008
B89: Total Principal Adjustments to be Included on DVA Continuity Schedule/Tab 3 - IRM Rate Generator Model | J89: =J88+J78 -> 46281.97008 | N89: Total Principal Adjustments to be Included on DVA Continuity Schedule/Tab 3 - IRM Rate Generator Model | V89: =V88+V78 -> -57602.37008
B92: Account 1589 - RSVA Global Adjustment | N92: Account 1588 - RSVA Power
A93: Year | B93: Adjustment Description | J93: Amount | K93: Year Recorded in GL | M93: Year | N93: Adjustment Description | V93: Amount | W93: Year Recorded in GL
B94: Reversals of prior year principal adjustments | N94: Reversals of prior year principal adjustments
B95: 1 | C95: Reversal of prior year CT-148 true-up of GA Charges based on actual Non-RPP volumes | N95: 1 | O95: Reversal of CT 148 true-up of GA Charges based on actual RPP volumes
B96: 2 | C96: Reversal of Unbilled to actual revenue differences | N96: 2 | O96: Reversal of CT 1142/142 true-up based on actuals
B97: 3 | N97: 3 | O97: Reversal of Unbilled to actual revenue differences
B98: 4 | N98: 4
B99: 5 | N99: 5
B100: 6 | N100: 6
B101: 7 | N101: 7
B102: 8 | N102: 8
B103: Total Reversal Principal Adjustments | J103: =SUM(J95:J102) -> 0 | N103: Total Reversal Principal Adjustments | V103: =SUM(V95:V102) -> 0
B104: Current year principal adjustments | N104: Current year principal adjustments
B105: 1 | C105: CT 148 true-up of GA Charges based on actual Non-RPP volumes | N105: 1 | O105: CT 148 true-up of GA Charges based on actual RPP volumes
B106: 2 | C106: Unbilled to actual revenue differences | N106: 2 | O106: Reversal of CT 1142/142 true-up based on actuals
B107: 3 | N107: 3 | O107: Unbilled to actual revenue differences
B108: 4 | N108: 4
B109: 5 | N109: 5
B110: 6 | N110: 6
B111: 7 | N111: 7
B112: 8 | N112: 8
B113: Total Current Year Principal Adjustments | J113: =SUM(J105:J112) -> 0 | N113: Total Current Year Principal Adjustments | V113: =SUM(V105:V112) -> 0
B114: Total Principal Adjustments to be Included on DVA Continuity Schedule/Tab 3 - IRM Rate Generator Model | J114: =J113+J103 -> 0 | N114: Total Principal Adjustments to be Included on DVA Continuity Schedule/Tab 3 - IRM Rate Generator Model | V114: =V113+V103 -> 0
B117: Account 1589 - RSVA Global Adjustment | N117: Account 1588 - RSVA Power
A118: Year | B118: Adjustment Description | J118: Amount | K118: Year Recorded in GL | M118: Year | N118: Adjustment Description | V118: Amount | W118: Year Recorded in GL
B119: Reversals of prior year principal adjustments | N119: Reversals of prior year principal adjustments
B120: 1 | C120: Reversal of prior year CT-148 true-up of GA Charges based on actual Non-RPP volumes | N120: 1 | O120: Reversal of CT 148 true-up of GA Charges based on actual RPP volumes
B121: 2 | C121: Reversal of Unbilled to actual revenue differences | N121: 2 | O121: Reversal of CT 1142/142 true-up based on actuals
B122: 3 | N122: 3 | O122: Reversal of Unbilled to actual revenue differences
B123: 4 | N123: 4
B124: 5 | N124: 5
B125: 6 | N125: 6
B126: 7 | N126: 7
B127: 8 | N127: 8
B128: Total Reversal Principal Adjustments | J128: =SUM(J120:J127) -> 0 | N128: Total Reversal Principal Adjustments | V128: =SUM(V120:V127) -> 0
B129: Current year principal adjustments | N129: Current year principal adjustments
B130: 1 | C130: CT 148 true-up of GA Charges based on actual Non-RPP volumes | N130: 1 | O130: CT 148 true-up of GA Charges based on actual RPP volumes
B131: 2 | C131: Unbilled to actual revenue differences | N131: 2 | O131: Reversal of CT 1142/142 true-up based on actuals
B132: 3 | N132: 3 | O132: Unbilled to actual revenue differences
B133: 4 | N133: 4
B134: 5 | N134: 5
B135: 6 | N135: 6
B136: 7 | N136: 7
B137: 8 | N137: 8
B138: Total Current Year Principal Adjustments | J138: =SUM(J130:J137) -> 0 | N138: Total Current Year Principal Adjustments | V138: =SUM(V130:V137) -> 0
B139: Total Principal Adjustments to be Included on DVA Continuity Schedule/Tab 3 - IRM Rate Generator Model | J139: =J138+J128 -> 0 | N139: Total Principal Adjustments to be Included on DVA Continuity Schedule/Tab 3 - IRM Rate Generator Model | V139: =V138+V128 -> 0
B142: Account 1589 - RSVA Global Adjustment | N142: Account 1588 - RSVA Power
A143: Year | B143: Adjustment Description | J143: Amount | K143: Year Recorded in GL | M143: Year | N143: Adjustment Description | V143: Amount | W143: Year Recorded in GL
B144: Reversals of prior year principal adjustments | N144: Reversals of prior year principal adjustments
B145: 1 | C145: Reversal of prior year CT-148 true-up of GA Charges based on actual Non-RPP volumes | N145: 1 | O145: Reversal of CT 148 true-up of GA Charges based on actual RPP volumes
B146: 2 | C146: Reversal of Unbilled to actual revenue differences | N146: 2 | O146: Reversal of CT 1142 true-up based on actuals
B147: 3 | N147: 3 | O147: Reversal of Unbilled to actual revenue differences
B148: 4 | N148: 4
B149: 5 | N149: 5
B150: 6 | N150: 6
B151: 7 | N151: 7
B152: 8 | N152: 8
B153: Total Reversal Principal Adjustments | J153: =SUM(J145:J152) -> 0 | N153: Total Reversal Principal Adjustments | V153: =SUM(V145:V152) -> 0
B154: Current year principal adjustments | N154: Current year principal adjustments
B155: 1 | C155: CT 148 true-up of GA Charges based on actual Non-RPP volumes | N155: 1 | O155: CT 148 true-up of GA Charges based on actual RPP volumes
B156: 2 | C156: Unbilled to actual revenue differences | N156: 2 | O156: CT 1142 true-up based on actuals
B157: 3 | N157: 3 | O157: Unbilled to actual revenue differences
B158: 4 | N158: 4
B159: 5 | N159: 5
B160: 6 | N160: 6
B161: 7 | N161: 7
B162: 8 | N162: 8
B163: Total Current Year Principal Adjustments | J163: =SUM(J155:J162) -> 0 | N163: Total Current Year Principal Adjustments | V163: =SUM(V155:V162) -> 0
B164: Total Principal Adjustments to be Included on DVA Continuity Schedule/Tab 3 - IRM Rate Generator Model | J164: =J163+J153 -> 0 | N164: Total Principal Adjustments to be Included on DVA Continuity Schedule/Tab 3 - IRM Rate Generator Model | V164: =V163+V153 -> 0
B167: Account 1589 - RSVA Global Adjustment | N167: Account 1588 - RSVA Power
A168: Year | B168: Adjustment Description | J168: Amount | K168: Year Recorded in GL | M168: Year | N168: Adjustment Description | V168: Amount | W168: Year Recorded in GL
B169: Reversals of prior year principal adjustments | N169: Reversals of prior year principal adjustments
B170: 1 | C170: Reversal of prior year CT-148 true-up of GA Charges based on actual Non-RPP volumes | N170: 1 | O170: Reversal of CT 148 true-up of GA Charges based on actual RPP volumes
B171: 2 | C171: Reversal of Unbilled to actual revenue differences | N171: 2 | O171: Reversal of CT 1142 true-up based on actuals
B172: 3 | N172: 3 | O172: Reversal of Unbilled to actual revenue differences
B173: 4 | N173: 4
B174: 5 | N174: 5
B175: 6 | N175: 6
B176: 7 | N176: 7
B177: 8 | N177: 8
B178: Total Reversal Principal Adjustments | J178: =SUM(J170:J177) -> 0 | N178: Total Reversal Principal Adjustments | V178: =SUM(V170:V177) -> 0
B179: Current year principal adjustments | N179: Current year principal adjustments
B180: 1 | C180: CT 148 true-up of GA Charges based on actual Non-RPP volumes | N180: 1 | O180: CT 148 true-up of GA Charges based on actual RPP volumes
B181: 2 | C181: Unbilled to actual revenue differences | N181: 2 | O181: CT 1142 true-up based on actuals
B182: 3 | N182: 3 | O182: Unbilled to actual revenue differences
B183: 4 | N183: 4
B184: 5 | N184: 5
B185: 6 | N185: 6
B186: 7 | N186: 7
B187: 8 | N187: 8
B188: Total Current Year Principal Adjustments | J188: =SUM(J180:J187) -> 0 | N188: Total Current Year Principal Adjustments | V188: =SUM(V180:V187) -> 0
B189: Total Principal Adjustments to be Included on DVA Continuity Schedule/Tab 3 - IRM Rate Generator Model | J189: =J188+J178 -> 0 | N189: Total Principal Adjustments to be Included on DVA Continuity Schedule/Tab 3 - IRM Rate Generator Model | V189: =V188+V178 -> 0

Sheet GA Rates (hidden)
A1: GA Rates per IESO website
B2: 2020 | F2: 2019 | J2: 2018 | N2: 2017 | R2: 2016 | V2: 2015 | Z2: 2014
A3: ($/kWh) | B3: First Estimate | C3: Second Estimate | D3: Actual | E3: ($/kWh) | F3: First Estimate | G3: Second Estimate | H3: Actual | I3: ($/kWh) | J3: First Estimate | K3: Second Estimate | L3: Actual | M3: ($/kWh) | N3: First Estimate | O3: Second Estimate | P3: Actual | Q3: ($/kWh) | R3: First Estimate | S3: Second Estimate | T3: Actual | U3: ($/kWh) | V3: First Estimate | W3: Second Estimate | X3: Actual | Y3: ($/kWh) | Z3: First Estimate | AA3: Second Estimate | AB3: Actual
A4: January | B4: 0.08323 | C4: 0.09993 | D4: 0.10232 | E4: January | F4: 0.06741 | G4: 0.08306 | H4: 0.08092 | I4: January | J4: 0.08777 | K4: 0.0637 | L4: 0.06736 | M4: January | N4: 0.06687 | O4: 0.08677 | P4: 0.08227 | Q4: January | R4: 0.08423 | S4: 0.09214 | T4: 0.09179 | U4: January | V4: 0.05549 | W4: 0.06161 | X4: 0.05068 | Y4: January | Z4: 0.03626 | AA4: 0.01806 | AB4: 0.01261
A5: February | B5: 0.12451 | C5: 0.11435 | D5: 0.11331 | E5: February | F5: 0.09657 | G5: 0.08236 | H5: 0.08812 | I5: February | J5: 0.07333 | K5: 0.07705 | L5: 0.08167 | M5: February | N5: 0.10559 | O5: 0.0843 | P5: 0.08639 | Q5: February | R5: 0.10384 | S5: 0.09678 | T5: 0.09851 | U5: February | V5: 0.06981 | W5: 0.04095 | X5: 0.03961 | Y5: February | Z5: 0.02231 | AA5: 0.01118 | AB5: 0.0133
A6: March | B6: 0.10432 | C6: 0.11212 | D6: 0.11942 | E6: March | F6: 0.08105 | G6: 0.07575 | H6: 0.08041 | I6: March | J6: 0.07877 | K6: 0.08595 | L6: 0.09481 | M6: March | N6: 0.08409 | O6: 0.06886 | P6: 0.07135 | Q6: March | R6: 0.09022 | S6: 0.10299 | T6: 0.1061 | U6: March | V6: 0.03604 | W6: 0.0574 | X6: 0.0629 | Y6: March | Z6: 0.01103 | AA6: -0.008 | AB6: -0.00027
A7: April | B7: 0.13707 | C7: 0.115 | D7: 0.115 | E7: April | F7: 0.08129 | G7: 0.12488 | H7: 0.12333 | I7: April | J7: 0.0981 | K7: 0.10074 | L7: 0.09959 | M7: April | N7: 0.06874 | O7: 0.10218 | P7: 0.10778 | Q7: April | R7: 0.12115 | S7: 0.11177 | T7: 0.11132 | U7: April | V7: 0.06705 | W7: 0.09268 | X7: 0.09559 | Y7: April | Z7: -0.00965 | AA7: 0.05453 | AB7: 0.05198
A8: May | B8: 0.09293 | C8: 0.115 | D8: 0.115 | E8: May | F8: 0.1286 | G8: 0.13049 | H8: 0.12604 | I8: May | J8: 0.09392 | K8: 0.13199 | L8: 0.10793 | M8: May | N8: 0.10623 | O8: 0.12776 | P8: 0.12307 | Q8: May | R8: 0.10405 | S8: 0.11493 | T8: 0.10749 | U8: May | V8: 0.09416 | W8: 0.0973 | X8: 0.09668 | Y8: May | Z8: 0.05356 | AA8: 0.07352 | AB8: 0.07196
A9: June | B9: 0.115 | C9: 0.115 | D9: 0.115 | E9: June | F9: 0.12444 | G9: 0.14772 | H9: 0.13728 | I9: June | J9: 0.13336 | K9: 0.10239 | L9: 0.11896 | M9: June | N9: 0.11954 | O9: 0.12563 | P9: 0.11848 | Q9: June | R9: 0.1165 | S9: 0.0936 | T9: 0.09545 | U9: June | V9: 0.09228 | W9: 0.09768 | X9: 0.0954 | Y9: June | Z9: 0.0719 | AA9: 0.06664 | AB9: 0.06025
A10: July | B10: 0.10305 | C10: 0.09493 | D10: 0.09902 | E10: July | F10: 0.13527 | G10: 0.08854 | H10: 0.09645 | I10: July | J10: 0.08502 | K10: 0.08123 | L10: 0.07737 | M10: July | N10: 0.10652 | O10: 0.10197 | P10: 0.1128 | Q10: July | R10: 0.07667 | S10: 0.08412 | T10: 0.08306 | U10: July | V10: 0.08888 | W10: 0.08413 | X10: 0.07883 | Y10: July | Z10: 0.05976 | AA10: 0.05753 | AB10: 0.06256
A11: August | B11: 0.10232 | C11: 0.10622 | D11: 0.10348 | E11: August | F11: 0.07211 | G11: 0.10974 | H11: 0.12607 | I11: August | J11: 0.0779 | K11: 0.07324 | L11: 0.0749 | M11: August | N11: 0.115 | O11: 0.10476 | P11: 0.10109 | Q11: August | R11: 0.08569 | S11: 0.0705 | T11: 0.07103 | U11: August | V11: 0.08805 | W11: 0.07355 | X11: 0.0801 | Y11: August | Z11: 0.06108 | AA11: 0.06897 | AB11: 0.06761
A12: September | B12: 0.11573 | C12: 0.12792 | D12: 0.12176 | E12: September | F12: 0.12934 | G12: 0.16392 | H12: 0.12263 | I12: September | J12: 0.08424 | K12: 0.0866 | L12: 0.08584 | M12: September | N12: 0.12739 | O12: 0.09895 | P12: 0.08864 | Q12: September | R12: 0.0706 | S12: 0.09148 | T12: 0.09531 | U12: September | V12: 0.0827 | W12: 0.07191 | X12: 0.06703 | Y12: September | Z12: 0.08049 | AA12: 0.08072 | AB12: 0.07963
A13: October | B13: 0.14954 | C13: 0.13266 | D13: 0.12806 | E13: October | F13: 0.17878 | G13: 0.11886 | H13: 0.1368 | I13: October | J13: 0.08921 | K13: 0.11998 | L13: 0.12059 | M13: October | N13: 0.10212 | O13: 0.11973 | P13: 0.12563 | Q13: October | R13: 0.0972 | S13: 0.1178 | T13: 0.11226 | U13: October | V13: 0.06371 | W13: 0.07193 | X13: 0.07544 | Y13: October | Z13: 0.07492 | AA13: 0.10135 | AB13: 0.10014
A14: November | B14: 0.1167 | C14: 0.1142 | D14: 0.11705 | E14: November | F14: 0.10727 | G14: 0.10109 | H14: 0.09953 | I14: November | J14: 0.12235 | K14: 0.1054 | L14: 0.09855 | M14: November | N14: 0.11164 | O14: 0.09669 | P14: 0.09704 | Q14: November | R14: 0.12271 | S14: 0.115 | T14: 0.11109 | U14: November | V14: 0.07623 | W14: 0.12448 | X14: 0.1132 | Y14: November | Z14: 0.09901 | AA14: 0.08504 | AB14: 0.08232
A15: December | B15: 0.10704 | C15: 0.10031 | D15: 0.10558 | E15: December | F15: 0.08569 | G15: 0.09066 | H15: 0.09321 | I15: December | J15: 0.09198 | K15: 0.07067 | L15: 0.07404 | M15: December | N15: 0.08391 | O15: 0.09669 | P15: 0.09207 | Q15: December | R15: 0.10594 | S15: 0.07872 | T15: 0.08708 | U15: December | V15: 0.11462 | W15: 0.08809 | X15: 0.09471 | Y15: December | Z15: 0.07318 | AA15: 0.05789 | AB15: 0.07444
B18: 2021 | F18: 2022 | J18: 2023
A19: ($/kWh) | B19: First Estimate | C19: Second Estimate | D19: Actual | E19: ($/kWh) | F19: First Estimate | G19: Second Estimate | H19: Actual | I19: ($/kWh) | J19: First Estimate | K19: Second Estimate | L19: Actual
A20: January | B20: 0.09092 | C20: 0.09182 | D20: 0.08798 | E20: January | F20: 0.04829 | G20: 0.04514 | H20: 0.04353 | I20: January | J20: 0.03138 | K20: 0.05145 | L20: 0.05377
A21: February | B21: 0.10485 | C21: 0.04256 | D21: 0.05751 | E21: February | F21: 0.05019 | G21: 0.05325 | H21: 0.05246 | I21: February | J21: 0.06285 | K21: 0.0837 | L21: 0.08249
A22: March | B22: 0.0842 | C22: 0.09839 | D22: 0.09668 | E22: March | F22: 0.055 | G22: 0.05386 | H22: 0.05941 | I22: March | J22: 0.06989 | K22: 0.06864 | L22: 0.08031
A23: April | B23: 0.06969 | C23: 0.12596 | D23: 0.11589 | E23: April | F23: 0.05915 | G23: 0.0864 | H23: 0.08293 | I23: April | J23: 0.08249 | K23: 0.11617 | L23: 0.09853
A24: May | B24: 0.10531 | C24: 0.10691 | D24: 0.10675 | E24: May | F24: 0.05968 | G24: 0.08685 | H24: 0.08475 | I24: May | J24: 0.08249 | K24: 0.09384 | L24: 0.09962
A25: June | B25: 0.11352 | C25: 0.09489 | D25: 0.09216 | E25: June | F25: 0.08293 | G25: 0.08764 | H25: 0.07868 | I25: June | J25: 0.09853 | K25: 0.08972 | L25: 0.08293
A26: July | B26: 0.07612 | C26: 0.0782 | D26: 0.07918 | E26: July | F26: 0.08475 | G26: 0.03704 | H26: 0.04008 | I26: July | J26: 0.09962 | K26: 0.05105 | L26: 0.04949
A27: August | B27: 0.08734 | C27: 0.0533 | D27: 0.05107 | E27: August | F27: 0.04871 | G27: 0.00034 | H27: 0.00499 | I27: August | J27: 0.05377 | K27: 0.05154 | L27: 0.07606
A28: September | B28: 0.05519 | C28: 0.07242 | D28: 0.08234 | E28: September | F28: 0.04008 | G28: 0.02755 | H28: 0.03241 | I28: September | J28: 0.05837 | K28: 0.07454 | L28: 0.05093
A29: October | B29: 0.07402 | C29: 0.06864 | D29: 0.0584 | E29: October | F29: 0.00499 | G29: 0.06803 | H29: 0.05771 | I29: October | J29: 0.07332 | K29: 0.08433 | L29: 0.08498
A30: November | B30: 0.06342 | C30: 0.05845 | D30: 0.06012 | E30: November | F30: 0.04739 | G30: 0.06719 | H30: 0.06989 | I30: November | J30: 0.0704 | K30: 0.08288 | L30: 0.0709
A31: December | B31: 0.05443 | C31: 0.05918 | D31: 0.06515 | E31: December | F31: 0.05962 | G31: 0.03581 | H31: 0.03427 | I31: December | J31: 0.0834 | K31: 0.06759 | L31: 0.06622

Sheet 4705 (hidden)
A1: Account 4705
A2: Time run: 6/16/2023 2:08:39 PM
C4: 2018 | D4: 2019 | E4: 2020 | F4: 2021 | G4: 2022 | H4: 2023
A5: Company Name | B5: Licence Number | C5: January 1, 2017 - December 31, 2017 | D5: January 1, 2018 - December 31, 2018 | E5: January 1, 2019 - December 31, 2019 | F5: January 1, 2020 - December 31, 2020 | G5: January 1, 2021 - December 31, 2021 | H5: January 1, 2022 - December 31, 2022
A6: Alectra Utilities Corporation | B6: ED-2016-0360 | C6: 1014890149 | D6: 1180134300 | E6: 1262398967 | F6: 1628605783 | G6: 1587460828 | H6: 1928803306
A7: Algoma Power Inc. | B7: ED-2009-0072 | C7: 12703182.2 | D7: 13063801.97 | E7: 13556749.18 | F7: 18497291.18 | G7: 17294634.31 | H7: 20309052.26
A8: Atikokan Hydro Inc. | B8: ED-2003-0001 | C8: 397310.71 | D8: 329699.33 | E8: 89266.37 | F8: 385682.53 | G8: 1003765.04 | H8: 2347181.92
A9: Bluewater Power Distribution Corporation | B9: ED-2002-0517 | C9: 42563174.76 | D9: 45004208 | E9: 44193152 | F9: 56514280 | G9: 54771604 | H9: 63453240
A10: Brantford Power Inc. | B10: ED-2003-0060 | C10: 44881232.03 | D10: 47321659.15 | E10: 48265531.01 | F10: 59756414.99 | G10: 58725319.36
A11: Burlington Hydro Inc. | B11: ED-2003-0004 | C11: 86580144.08 | D11: 89918883.59 | E11: 85146095.05 | F11: 114488823.8 | G11: 105226413.1 | H11: 119337932.5
A12: Canadian Niagara Power Inc. | B12: ED-2002-0572 | C12: 28867682.5 | D12: 29490087.38 | E12: 29561762.32 | F12: 39962506.69 | G12: 36235752.9 | H12: 40820116.53
A13: Centre Wellington Hydro Ltd. | B13: ED-2002-0498 | C13: 7411980.14 | D13: 7599130.82 | E13: 7568699.66 | F13: 10020335.3 | G13: 9723758.17 | H13: 11232528.9
A14: Chapleau Public Utilities Corporation | B14: ED-2002-0528 | C14: 1704549.43 | D14: 1745868.6 | E14: 2042894.82 | F14: 2513469.4 | G14: 2039731.37 | H14: 2210741.08
A15: Cooperative Hydro Embrun Inc. | B15: ED-2002-0493 | C15: -272036.92 | D15: 2544543.51 | E15: 2082241.89 | F15: 3456791 | G15: 2953541.63 | H15: 3070299.62
A16: Cornwall Street Railway Light and Power Company Limited | B16: ED-2004-0405 | F16: 0 | G16: 0 | H16: 0
A17: E.L.K. Energy Inc. | B17: ED-2003-0015 | C17: 13936404.98 | D17: 12890539.93 | E17: 12777701.31 | F17: 17463622.81 | G17: 14884669.44 | H17: 22814971.28
A18: Elexicon Energy Inc. | B18: ED-2019-0128 | E18: 139698760.2 | F18: 261647627.7 | G18: 244640671.7 | H18: 277073506.8
A19: Energy Plus Inc. | B19: ED-2002-0574 | C19: 82040566.91 | D19: 75202638.02 | E19: 65605109.24 | F19: 98606054.68 | G19: 98823259.62
A20: Enersource Hydro Mississauga Inc. | B20: ED-2003-0017
A21: Enova Power Corp. | B21: ED-2022-0006 | H21: 271270155.6
A22: Entegrus Powerlines Inc. | B22: ED-2002-0563 | C22: 94527381.71 | D22: 117578734.6 | E22: 123877363.6 | F22: 141975433.8 | G22: 123497841.7 | H22: 96266067.92
A23: ENWIN Utilities Ltd. | B23: ED-2002-0527 | C23: 107796308.7 | D23: 112529652 | E23: 107355893.7 | F23: 138280156.6 | G23: 129117342.9 | H23: 148694797.8
A24: EPCOR Electricity Distribution Ontario Inc. | B24: ED-2002-0518 | C24: 17731802.38 | D24: 18275384.34 | E24: 18820762.62 | F24: 25073322.6 | G24: 29803273.3 | H24: 29290281.46
A25: ERTH Power Corporation | B25: ED-2002-0516 | C25: 1111131.07 | D25: 5284996.4 | E25: 1831305.86 | F25: 5239494 | G25: 15747795.92 | H25: 39151724.12
A26: Espanola Regional Hydro Distribution Corporation | B26: ED-2002-0502 | C26: 6034566.27 | D26: 5446767.76 | E26: 5885076.63 | F26: 7523773.72 | G26: 6076580.64
A27: Essex Powerlines Corporation | B27: ED-2002-0499 | C27: 31221321.56 | D27: 32410120.16 | E27: 32238763.39 | F27: 43869065.46 | G27: 41670641.19 | H27: 44319843.86
A28: Festival Hydro Inc. | B28: ED-2002-0513 | C28: 24576757.55 | D28: 26626313.63 | E28: 24752757.62 | F28: 29283484.32 | G28: 26844832.84 | H28: 32341931.04
A29: Fort Frances Power Corporation | B29: ED-2003-0028 | C29: 5767375.44 | D29: 5292599.45 | E29: 5754441.74 | F29: 7434773.83 | G29: 6235507.83 | H29: 6769196.72
A30: GrandBridge Energy Inc. | B30: ED-2021-0280 | H30: 189666698.4
A31: Greater Sudbury Hydro Inc. | B31: ED-2002-0559 | C31: 57062553.43 | D31: 54892983.54 | E31: 58048633.82 | F31: 74877687.87 | G31: 64974529.25 | H31: 71835133.39
A32: Grimsby Power Incorporated | B32: ED-2002-0554 | C32: 11387955.01 | D32: 12230205.51 | E32: 12576544.72 | F32: 16901949.11 | G32: 16900119.64 | H32: 18991786.24
A33: Guelph Hydro Electric Systems Inc. | B33: ED-2002-0565 | C33: 126442921.1 | D33: 93136363.63
A34: Haldimand County Hydro Inc. | B34: ED-2002-0539
A35: Halton Hills Hydro Inc. | B35: ED-2002-0552 | C35: 26372895.17 | D35: 25384688.26 | E35: 28559829.2 | F35: 36876214.27 | G35: 34977452.36 | H35: 39169215.46
A36: Hearst Power Distribution Company Limited | B36: ED-2002-0533 | C36: 4174712.46 | D36: 4172913 | E36: 4277988.51 | F36: 4917885.74 | G36: 4680133.42 | H36: 5574113.27
A37: Horizon Utilities Corporation | B37: ED-2006-0031
A38: Hydro 2000 Inc. | B38: ED-2002-0542 | C38: 1688797.41 | D38: 621818.45 | E38: 1068208.45 | F38: 2204989.68 | G38: 1903075.25 | H38: 1712337.91
A39: Hydro Hawkesbury Inc. | B39: ED-2003-0027 | C39: 7285143.26 | D39: 7290411.35 | E39: 6807619.59 | F39: 7725953.87 | G39: 8754975.43 | H39: 9952178.64
A40: Hydro One Brampton Networks Inc. | B40: ED-2003-0038
A41: Hydro One Networks Inc. | B41: ED-2003-0043 | C41: 388880263.7 | D41: 664302318.1 | E41: 512373616.8 | F41: 2339278787 | G41: 2158788306 | H41: 2413023305
A42: Hydro One Networks Inc. (Orillia-Peterborough service areas) | B42: ED-2002-0530 | C42: 17552161 | D42: 17981951 | E42: 18185635 | F42: 22845407
A43: Hydro One Networks Inc. - 1937680 Ontario Inc. (Peterborough Distribution) | B43: ED-2002-0504 | C43: 46080864.5 | D43: 44871359.96 | E43: 46242861.97 | F43: 61884632.21
A44: Hydro One Remote Communities Inc. | B44: ED-2003-0037 | C44: 25079.72 | D44: 14212.27 | E44: 1462979.54 | F44: 1778723.84 | G44: 1583795.98 | H44: 840942.17
A45: Hydro Ottawa Limited | B45: ED-2002-0556 | C45: 759072358.3 | D45: 378957228.5 | E45: 373128686.9 | F45: 479451463.5 | G45: 461324159.4 | H45: 535123899
A46: InnPower Corporation | B46: ED-2002-0520 | C46: 18126688.77 | D46: 17889560.81 | E46: 19090131.38 | F46: 29318209.65 | G46: 25744519.79 | H46: 27152901.76
A47: Kenora Hydro Electric Corporation Ltd. | B47: ED-2003-0030 | C47: 6295825 | D47: 6090944
A48: Kingston Hydro Corporation | B48: ED-2003-0057 | C48: 32853710 | D48: 34240773 | E48: 34201059.57 | F48: 41587045.84 | G48: 39681134.86 | H48: 48278579.94
A49: Kitchener-Wilmot Hydro Inc. | B49: ED-2002-0573 | C49: 106137759.1 | D49: 106160556.4 | E49: 105280940.2 | F49: 144381328.3 | G49: 130326507.8
A50: Lakefront Utilities Inc. | B50: ED-2002-0545 | C50: 12802250.36 | D50: 11215248.22 | E50: 12678046.93 | F50: 16205224.24 | G50: 15520683.74 | H50: 18333153.58
A51: Lakeland Power Distribution Ltd. | B51: ED-2002-0540 | C51: 17922134.47 | D51: 17748995.34 | E51: 18598237.46 | F51: 23447665.56 | G51: 21759916.37 | H51: 24875149.48
A52: London Hydro Inc. | B52: ED-2002-0557 | C52: 169355007.9 | D52: 175704100.4 | E52: 174762988.7 | F52: 231765489.2 | G52: 216185837.4 | H52: 248668253.1
A53: Midland Power Utility Corporation | B53: ED-2002-0541 | C53: 1612702.45
A54: Milton Hydro Distribution Inc. | B54: ED-2003-0014 | C54: 45651670 | D54: 48076620 | E54: 47312834 | F54: 63900115 | G54: 61853099 | H54: 72915590
A55: Newmarket-Tay Power Distribution Ltd. | B55: ED-2007-0624 | C55: 40184380.9 | D55: 64958062.04 | E55: 76962052.51 | F55: 54343328.53 | G55: 61340756.71 | H55: 64534435.51
A56: Niagara Peninsula Energy Inc. | B56: ED-2007-0749 | C56: 65298861.72 | D56: 65058587.34 | E56: 61169795.48 | F56: 79138273.47 | G56: 76452462.97 | H56: 90140193.06
A57: Niagara-on-the-Lake Hydro Inc. | B57: ED-2002-0547 | C57: 12445325.01 | D57: 12837074.21 | E57: 13078378.51 | F57: 16824688.17 | G57: 15623253.44 | H57: 17187656.29
A58: North Bay Hydro Distribution Limited | B58: ED-2003-0024 | C58: 29218002.26 | D58: 29058366.87 | E58: 29045952.15 | F58: 37007826.51 | G58: 34006395.39 | H58: 43127525.86
A59: Northern Ontario Wires Inc. | B59: ED-2003-0018 | C59: 6214844.59 | D59: 6288047.57 | E59: 6516422.57 | F59: 7952951.85 | G59: 7512027.63 | H59: 8745393.23
A60: Oakville Hydro Electricity Distribution Inc. | B60: ED-2003-0135 | C60: 71230904.58 | D60: 82140257.01 | E60: 69711904.37 | F60: 112368335.4 | G60: 103018031.3 | H60: 116245729.7
A61: Orangeville Hydro Limited | B61: ED-2002-0500 | C61: 14138779.64 | D61: 14336792 | E61: 14165804.21 | F61: 18230291.34 | G61: 17453963.82 | H61: 20735581.45
A62: Oshawa PUC Networks Inc. | B62: ED-2002-0560 | C62: 63307617.15 | D62: 64828533 | E62: 59002842.56 | F62: 85219781.43 | G62: 68629169.35 | H62: 83011108.5
A63: Ottawa River Power Corporation | B63: ED-2003-0033 | C63: 12917295.69 | D63: 12334020.28 | E63: 11163089.78 | F63: 15961225.44 | G63: 15013713.06 | H63: 15824003.04
A64: PowerStream Inc. | B64: ED-2004-0420
A65: PUC Distribution Inc. | B65: ED-2002-0546 | C65: 68428557.72 | D65: 61672850.94 | E65: 69598321.28 | F65: 79247240.47 | G65: 63431384.98 | H65: 63731010.6
A66: Renfrew Hydro Inc. | B66: ED-2002-0577 | C66: 4874471.74 | D66: 4916429.35 | E66: 5050519.86 | F66: 6482912.75 | G66: 5962443.19 | H66: 6852144.52
A67: Rideau St. Lawrence Distribution Inc. | B67: ED-2003-0003 | C67: 6697181.19 | D67: 6582824.88 | E67: 6823526.61 | F67: 8891577.77 | G67: 7927866.41 | H67: 9548838.26
A68: Sioux Lookout Hydro Inc. | B68: ED-2002-0514 | C68: 5223541.44 | D68: 4565190.73 | E68: 5160942.69 | F68: 6666605.03 | G68: 5667570.81 | H68: 7076068.34
A69: St. Thomas Energy Inc. | B69: ED-2002-0523 | C69: 28175317.09
A70: Synergy North Corporation | B70: ED-2018-0233 | E70: 59045091.63 | F70: 73228636.87 | G70: 69498202.53 | H70: 78063817.31
A71: Thunder Bay Hydro Electricity Distribution Inc. | B71: ED-2002-0529 | C71: 52844523.13 | D71: 50944829.52
A72: Tillsonburg Hydro Inc. | B72: ED-2003-0026 | C72: 8932078.94 | D72: 9412935.57 | E72: 8673930.75 | F72: 11469020.14 | G72: 11847987.78 | H72: 13832753.82
A73: Toronto Hydro-Electric System Limited | B73: ED-2002-0497 | C73: 1172692119 | D73: 1225222495 | E73: 1189125382 | F73: 1503809264 | G73: 1440535653 | H73: 1712083694
A74: Veridian Connections Inc. | B74: ED-2002-0503 | C74: 134681655 | D74: 141704997
A75: Wasaga Distribution Inc. | B75: ED-2002-0544 | C75: 10729581.99 | D75: 10210077.72 | E75: 11221742.51 | F75: 16113117.07 | G75: 13831191.04 | H75: 14296845.75
A76: Waterloo North Hydro Inc. | B76: ED-2002-0575 | C76: 72628032 | D76: 76715892 | E76: 73606674 | F76: 96399343 | G76: 93436100
A77: Welland Hydro-Electric System Corp. | B77: ED-2003-0002 | C77: 22156613.2 | D77: 23449528.82 | E77: 23188616.43 | F77: 30564009.97 | G77: 28294072.03 | H77: 31153551.79
A78: Wellington North Power Inc. | B78: ED-2002-0511 | C78: 3694395.83 | D78: 4038573.45 | E78: 3814397.74 | F78: 5060328.36 | G78: 5367008.08 | H78: 6856507.72
A79: West Coast Huron Energy Inc. | B79: ED-2002-0510 | C79: 4405864 | D79: 4497254
A80: Westario Power Inc. | B80: ED-2002-0515 | C80: 23401325 | D80: 22977534.24 | E80: 24451221.91 | F80: 34071696.28 | G80: 32497492.74 | H80: 35342409.65
A81: Whitby Hydro Electric Corporation | B81: ED-2002-0571 | C81: 50031791.95 | D81: 50907415.16

Sheet RRR_2017 (hidden)
A1: 2.1.5 TotalConsumptionData_Dist_Ret_Total_Combined_Without RateClass_2018
A2: Time run: 5/29/2018 3:56:03 PM
T3: H + F + J | U3: F + J
A4: Filing_Year | B4: Company_Name | F4: Ret_Metered_consumption_in_kWhs | G4: Ret_Metered_consumption_in_kWs | H4: Dist_RPPMeterCustkWh | I4: Dist_RPPMeterCustkW | J4: Dist_NonRPPMeterCustkWh | K4: Dist_NonRPPMeterCustkW | L4: IESOMeterCustkWh | M4: IESOMeterCustKW | N4: Class_A_Consumption_kWhs | O4: Class_A_Consumption_kWs | P4: TotConsmptionforDistCustkWh | Q4: TotConsmptionforDistCustkW | R4: Calculated_TOTAL_KWH | S4: Calculated_TOTAL_KW | T4: Total Metered Excluding WMP | U4: Non RPP
A5: 2018 | B5: ALECTRA UTILITIES CORPORATION | F5: 2735166167 | G5: 5493928 | H5: 8730758764 | I5: 3183669 | J5: 9692001985 | K5: 23895726 | L5: 811776337 | M5: 1381122 | N5: 3450770317 | O5: 6672805 | P5: 19234537086 | Q5: 28460517 | R5: 21969703253 | S5: 33954445 | T5: 21157926916 | U5: 12427168152
A6: 2018 | B6: ALECTRA UTILITIES - GUELPH | F6: 197114360.4 | G6: 375574 | H6: 477444082.9 | I6: 94778.64 | J6: 921412854.8 | K6: 2146272.7 | L6: 6196613.7 | M6: 13103.85 | N6: 562293627.9 | O6: 1084589.18 | P6: 1405053551 | Q6: 2254155.19 | R6: 1602167912 | S6: 2629729.92 | T6: 1595971298 | U6: 1118527215
A7: 2018 | B7: ALGOMA POWER INC. | F7: 7589178.44 | G7: 8592 | H7: 107041096.1 | I7: 9869.01 | J7: 88433502.85 | K7: 192374.8 | L7: 0 | M7: 0 | N7: 58917721.79 | O7: 99618.3 | P7: 195474598.9 | Q7: 202243.81 | R7: 203063777.4 | S7: 210836.14 | T7: 203063777.4 | U7: 96022681.29
A8: 2018 | B8: ATIKOKAN HYDRO INC. | F8: 1232089.98 | G8: 2603 | H8: 13371836.82 | I8: 0 | J8: 15005971.63 | K8: 42253.94 | L8: 0 | M8: 0 | N8: 4563646.56 | O8: 18088.38 | P8: 28377808.45 | Q8: 42253.94 | R8: 29609898.43 | S8: 44857.54 | T8: 29609898.43 | U8: 16238061.61
A9: 2018 | B9: BLUEWATER POWER DISTRIBUTION CORPORATION | F9: 60613020 | G9: 100189 | H9: 360840844 | I9: 96062 | J9: 439293405 | K9: 938025 | L9: 116775525 | M9: 190405 | N9: 280305798 | O9: 480944 | P9: 916909774 | Q9: 1224492 | R9: 977522794 | S9: 1324681 | T9: 860747269 | U9: 499906425
A10: 2018 | B10: BRANTFORD POWER INC. | F10: 158219509.3 | G10: 332352 | H10: 383768359.6 | I10: 112785.16 | J10: 350272883.2 | K10: 978161.98 | L10: 49798281 | M10: 119621.52 | N10: 116262049 | O10: 226480.18 | P10: 783839523.7 | Q10: 1210568.66 | R10: 942059033 | S10: 1542920.96 | T10: 892260752 | U10: 508492392.5
A11: 2018 | B11: BURLINGTON HYDRO INC. | F11: 176577660 | G11: 405566 | H11: 762645853 | I11: 366461 | J11: 617809779 | K11: 1631018 | L11: 0 | M11: 0 | N11: 126515929 | O11: 310497 | P11: 1380455632 | Q11: 1997479 | R11: 1557033292 | S11: 2403045 | T11: 1557033292 | U11: 794387439
A12: 2018 | B12: CANADIAN NIAGARA POWER INC. | F12: 29686787.5 | G12: 33427 | H12: 254865795.3 | I12: 45229.73 | J12: 168246626.3 | K12: 528462.72 | L12: 0 | M12: 0 | N12: 58621262.45 | O12: 176722.29 | P12: 423112421.6 | Q12: 573692.45 | R12: 452799209.1 | S12: 607120.2 | T12: 452799209.1 | U12: 197933413.8
A13: 2018 | B13: CENTRE WELLINGTON HYDRO LTD. | F13: 15455698 | G13: 22790 | H13: 61928647 | I13: 5373.88 | J13: 57244721 | K13: 150396.32 | L13: 2990901.7 | M13: 5479.21 | N13: 0 | O13: 0 | P13: 122164269.7 | Q13: 161249.41 | R13: 137619967.7 | S13: 184040.21 | T13: 134629066 | U13: 72700419
A14: 2018 | B14: CHAPLEAU PUBLIC UTILITIES CORPORATION | F14: 478450 | G14: 750 | H14: 17529372 | I14: 826.69 | J14: 6565386 | K14: 16771 | L14: 0 | M14: 0 | N14: 0 | O14: 0 | P14: 24094758 | Q14: 17597.69 | R14: 24573208 | S14: 18348.29 | T14: 24573208 | U14: 7043836
A15: 2018 | B15: COOPERATIVE HYDRO EMBRUN INC. | F15: 798369 | G15: 0 | H15: 23247457 | I15: 0 | J15: 3782579 | K15: 11209 | L15: 0 | M15: 0 | N15: 0 | O15: 0 | P15: 27030036 | Q15: 11209 | R15: 27828405 | S15: 11209 | T15: 27828405 | U15: 4580948
A16: 2018 | B16: ELEXICON ENERGY INC.-VERIDIAN RATE ZONE | F16: 250846891 | G16: 390824 | H16: 1202178782 | I16: 257570 | J16: 1017409890 | K16: 2245224 | L16: 38095925 | M16: 74250 | N16: 413770175 | O16: 787331 | P16: 2257684597 | Q16: 2577044 | R16: 2508531488 | S16: 2967868 | T16: 2470435563 | U16: 1268256781
A17: 2018 | B17: ELEXICON ENERGY INC.-WHITBY RATE ZONE | F17: 106725615 | G17: 185907 | H17: 449207866 | I17: 135039 | J17: 263146477 | K17: 601259 | L17: 4279141 | M17: 8605 | N17: 98787815 | O17: 171705 | P17: 716633484 | Q17: 744903 | R17: 823359099 | S17: 930810 | T17: 819079958 | U17: 369872092
A18: 2018 | B18: E.L.K. ENERGY INC. | F18: 1 | G18: 1 | H18: 107468847 | I18: 7540 | J18: 112352023 | K18: 187474 | L18: 0 | M18: 0 | N18: 10527574 | O18: 55609 | P18: 219820870 | Q18: 195014 | R18: 219820871 | S18: 195015 | T18: 219820871 | U18: 112352024
A19: 2018 | B19: ENERGY+ INC. | F19: 227507289 | G19: 504762 | H19: 650599864.1 | I19: 121226.4 | J19: 724724625.7 | K19: 2171002.76 | L19: 40066139.26 | M19: 67941.7 | N19: 177256773.6 | O19: 388700.96 | P19: 1415390629 | Q19: 2360170.86 | R19: 1642897918 | S19: 2864932.86 | T19: 1602831779 | U19: 952231914.7
A20: 2018 | B20: ENTEGRUS POWERLINES INC. | F20: 183353413.9 | G20: 337747 | H20: 520193823.5 | I20: 124114.8233 | J20: 447522831.7 | K20: 1269751.25 | L20: 8368766.4 | M20: 18909.1 | N20: 259693420.3 | O20: 599210.93 | P20: 976085421.7 | Q20: 1412775.173 | R20: 1159438836 | S20: 1750523.073 | T20: 1151070069 | U20: 630876245.6 | V20: (this is St. thomas and entegrus combined)
A21: 2018 | B21: ENWIN UTILITIES LTD. | F21: 210569707 | G21: 444018 | H21: 911300246.8 | I21: 483761.84 | J21: 1002407656 | K21: 2271498.2 | L21: 242857315.5 | M21: 463568.8 | N21: 495677164.1 | O21: 975912 | P21: 2156565218 | Q21: 3218828.84 | R21: 2367134925 | S21: 3662847.64 | T21: 2124277610 | U21: 1212977363
A22: 2018 | B22: EPCOR ELECTRICITY DISTRIBUTION ONTARIO INC. | F22: 36838997.08 | G22: 62008 | H22: 156368050.8 | I22: 27806.93 | J22: 95469385.26 | K22: 223834.7 | L22: 2622219.85 | M22: 4948.96 | N22: 43660807.75 | O22: 88754.7 | P22: 254459655.9 | Q22: 256590.59 | R22: 291298653 | S22: 318599.03 | T22: 288676433.2 | U22: 132308382.3
A23: 2018 | B23: ERTH POWER CORPORATION - ERTH POWER MAIN RATE ZONE | F23: 52664112 | G23: 109464 | H23: 170501882 | I23: 53268.71 | J23: 255076321 | K23: 502211.92 | L23: 0 | M23: 0 | N23: 108673765 | O23: 247265.74 | P23: 425578203 | Q23: 555480.63 | R23: 478242315 | S23: 664944.63 | T23: 478242315 | U23: 307740433
A24: 2018 | B24: ERTH POWER CORPORATION – GODERICH RATE ZONE | F24: 16301729 | G24: 28280 | H24: 37879556 | I24: 10155.73 | J24: 21704799 | K24: 60671.87 | L24: 63334264 | M24: 158301.4 | N24: 8950719 | O24: 16378.6 | P24: 122918619 | Q24: 229129 | R24: 139220348 | S24: 257409.34 | T24: 75886084 | U24: 38006528
A25: 2018 | B25: ESPANOLA REGIONAL HYDRO DISTRIBUTION CORPORATION | F25: 8259498.4 | G25: 14739 | H25: 37401936.7 | I25: 2791.9 | J25: 8855247.9 | K25: 21742.1 | L25: 0 | M25: 0 | N25: 0 | O25: 0 | P25: 46257184.6 | Q25: 24534 | R25: 54516683 | S25: 39273 | T25: 54516683 | U25: 17114746.3
A26: 2018 | B26: ESSEX POWERLINES CORPORATION | F26: 68913583.1 | G26: 169060 | H26: 299644634.1 | I26: 56516.35 | J26: 111682700.5 | K26: 322405.04 | L26: 10695832.89 | M26: 20658.14 | N26: 4507656.12 | O26: 12525.04 | P26: 422023167.5 | Q26: 399579.53 | R26: 490936750.6 | S26: 568640.38 | T26: 480240917.7 | U26: 180596283.6
A27: 2018 | B27: FESTIVAL HYDRO INC. | F27: 127658497.1 | G27: 282391 | H27: 192146831.3 | I27: 54830.8 | J27: 269823282.3 | K27: 601038.38 | L27: 3139758.12 | M27: 5723.72 | N27: 178028756.2 | O27: 370404.2 | P27: 465109871.7 | Q27: 661592.9 | R27: 592768368.8 | S27: 943984.14 | T27: 589628610.7 | U27: 397481779.4
A28: 2018 | B28: FORT FRANCES POWER CORPORATION | F28: 727134.55 | G28: 0 | H28: 52620671 | I28: 0 | J28: 18961128 | K28: 49880 | L28: 0 | M28: 0 | N28: 0 | O28: 0 | P28: 71581799 | Q28: 49880 | R28: 72308933.55 | S28: 49880 | T28: 72308933.55 | U28: 19688262.55
A29: 2018 | B29: GREATER SUDBURY HYDRO INC. | F29: 83591639.68 | G29: 147260 | H29: 514629971 | I29: 173561.67 | J29: 245875032.9 | K29: 570066.76 | L29: 3624729.23 | M29: 6810.36 | N29: 36594283.76 | O29: 138457.79 | P29: 764129733.1 | Q29: 750438.79 | R29: 847721372.8 | S29: 897699.23 | T29: 844096643.6 | U29: 329466672.6
A30: 2018 | B30: GRIMSBY POWER INCORPORATED | F30: 17783005.86 | G30: 33510 | H30: 105239592.1 | I30: 7372.42 | J30: 76441698.94 | K30: 249262.46 | L30: 3429861.18 | M30: 6718.85 | N30: 1987519.2 | O30: 4930.41 | P30: 185111152.2 | Q30: 263353.73 | R30: 202894158.1 | S30: 296864.11 | T30: 199464296.9 | U30: 94224704.8
A31: 2018 | B31: HALTON HILLS HYDRO INC. | F31: 67385238 | G31: 128208 | H31: 245359146 | I31: 54012 | J31: 164250010 | K31: 471178 | L31: 4234039 | M31: 7376 | N31: 44894121 | O31: 128188 | P31: 413843195 | Q31: 532566 | R31: 481228433 | S31: 660774 | T31: 476994394 | U31: 231635248
A32: 2018 | B32: HEARST POWER DISTRIBUTION CO. LTD. | F32: 4459529 | G32: 8648 | H32: 34531487 | I32: 15231 | J32: 38261730 | K32: 97243 | L32: 0 | M32: 0 | N32: 9182319 | O32: 24138 | P32: 72793217 | Q32: 112474 | R32: 77252746 | S32: 121122 | T32: 77252746 | U32: 42721259
A33: 2018 | B33: HYDRO 2000 INC. | F33: 791335 | G33: 0 | H33: 6896834 | I33: 5327 | J33: 1308656 | K33: 389.4 | L33: 0 | M33: 0 | N33: 0 | O33: 0 | P33: 8205490 | Q33: 5716.4 | R33: 8996825 | S33: 5716.4 | T33: 8996825 | U33: 2099991
A34: 2018 | B34: HYDRO HAWKESBURY INC. | F34: 11823941.73 | G34: 17702 | H34: 60851387 | I34: 199 | J34: 66281756 | K34: 170891 | L34: 0 | M34: 0 | N34: 6068661.74 | O34: 14240.84 | P34: 127133143 | Q34: 171090 | R34: 138957084.7 | S34: 188792.4 | T34: 138957084.7 | U34: 78105697.73
A35: 2018 | B35: HYDRO ONE NETWORKS INC. | F35: 2601735431 | G35: 2058232 | H35: 1.421623968e+10 | I35: 0 | J35: 7130075923 | K35: 20184160.97 | L35: 9848217318 | M35: 19492592.78 | N35: 3007063246 | O35: 6506853.94 | P35: 3.119453292e+10 | Q35: 39676753.75 | R35: 3.379626835e+10 | S35: 41734986.55 | T35: 2.394805103e+10 | U35: 9731811353
A36: 2018 | B36: HYDRO ONE REMOTE COMMUNITIES INC. | F36: 0 | G36: 0 | H36: 0 | I36: 0 | J36: 0 | K36: 0 | L36: 0 | M36: 0 | P36: 0 | Q36: 0 | R36: 0 | S36: 0 | T36: 0 | U36: 0
A37: 2018 | B37: HYDRO OTTAWA LIMITED | F37: 596269945 | G37: 1018231 | H37: 3073564932 | I37: 839071 | J37: 3517410049 | K37: 7921222 | L37: 33972968 | M37: 63608 | N37: 792796607 | O37: 1509115 | P37: 6624947949 | Q37: 8823901 | R37: 7221217894 | S37: 9842132 | T37: 7187244926 | U37: 4113679994
A38: 2018 | B38: INNPOWER CORPORATION | F38: 19743663.52 | G38: 26895 | H38: 169038199.5 | I38: 11536.66 | J38: 53490349.8 | K38: 126552.88 | L38: 0 | M38: 0 | N38: 0 | O38: 0 | P38: 222528549.3 | Q38: 138089.54 | R38: 242272212.8 | S38: 164985.39 | T38: 242272212.9 | U38: 73234013.32
A39: 2018 | B39: SYNERGY NORTH CORPORATION – KENORA RATE DISTRICT | F39: 17441922 | G39: 34899 | H39: 76633740 | I39: 12938 | J39: 0 | K39: 47808 | L39: 0 | M39: 0 | N39: 0 | O39: 0 | P39: 76633740 | Q39: 60746 | R39: 94075662 | S39: 95645 | T39: 94075662 | U39: 17441922
A40: 2018 | B40: KINGSTON HYDRO CORPORATION | F40: 114319077.9 | G40: 187110 | H40: 282569526.5 | I40: 91031.89 | J40: 286949290.8 | K40: 655846.54 | L40: 3991091.73 | M40: 7194.82 | N40: 167050916.5 | O40: 309046.13 | P40: 573509909 | Q40: 754073.25 | R40: 687828986.9 | S40: 941183.38 | T40: 683837895.2 | U40: 401268368.7
A41: 2018 | B41: KITCHENER-WILMOT HYDRO INC. | F41: 228479344.1 | G41: 483788 | H41: 920148191.6 | I41: 0 | J41: 544745703 | K41: 1696000.82 | L41: 36015512.64 | M41: 75203.73 | N41: 101928298.7 | O41: 246827.27 | P41: 1500909407 | Q41: 1771204.55 | R41: 1729388751 | S41: 2254993.34 | T41: 1693373239 | U41: 773225047.1
A42: 2018 | B42: LAKEFRONT UTILITIES INC. | F42: 47054173.2 | G42: 98097 | H42: 107185873.8 | I42: 37571.91 | J42: 82165013.35 | K42: 217260.25 | L42: 0 | M42: 0 | N42: 35989737.78 | O42: 67522.6 | P42: 189350887.1 | Q42: 254832.16 | R42: 236405060.3 | S42: 352929.99 | T42: 236405060.3 | U42: 129219186.5
A43: 2018 | B43: LAKELAND POWER DISTRIBUTION LTD. | F43: 40223748.53 | G43: 63614 | H43: 153225832.7 | I43: 13735.84 | J43: 85383662.41 | K43: 205934.76 | L43: 0 | M43: 0 | N43: 21850617.45 | O43: 46473.14 | P43: 238609495.1 | Q43: 219670.6 | R43: 278833243.6 | S43: 283285.49 | T43: 278833243.6 | U43: 125607410.9
A44: 2018 | B44: LONDON HYDRO INC. | F44: 308291183 | G44: 544177 | H44: 1460615181 | I44: 326018.82 | J44: 1301468785 | K44: 3339530.28 | L44: 0 | M44: 29977.91 | N44: 380970587.8 | O44: 882768.7 | P44: 2762083966 | Q44: 3695527.01 | R44: 3070375149 | S44: 4239704.01 | T44: 3070375149 | U44: 1609759968
A45: 2018 | B45: MILTON HYDRO DISTRIBUTION INC. | F45: 55999485 | G45: 83880 | H45: 392752396 | I45: 111784 | J45: 408481334 | K45: 937468 | L45: 4746499 | M45: 10149 | N45: 172175189 | O45: 348415 | P45: 805980229 | Q45: 1059401 | R45: 861979714 | S45: 1143281 | T45: 857233215 | U45: 464480819
A46: 2018 | B46: NEWMARKET-TAY POWER DISTRIBUTION LTD. | F46: 105108463.3 | G46: 186978 | H46: 414624260.3 | I46: 27565.94 | J46: 245576659.4 | K46: 734211.71 | L46: 8346156.71 | M46: 16586.13 | N46: 58022674 | O46: 78458.95 | P46: 668547076.4 | Q46: 778363.78 | R46: 773655539.7 | S46: 965341.84 | T46: 765309383 | U46: 350685122.7 | V46: (this is midland and NT combined)
A47: 2018 | B47: NIAGARA PENINSULA ENERGY INC. | F47: 106112631.2 | G47: 173790 | H47: 526127849 | I47: 75196 | J47: 532194727 | K47: 1358241 | L47: 0 | M47: 0 | N47: 54341326 | O47: 124075 | P47: 1058322576 | Q47: 1433437 | R47: 1164435207 | S47: 1607227.04 | T47: 1164435207 | U47: 638307358.2
A48: 2018 | B48: NIAGARA-ON-THE-LAKE HYDRO INC. | F48: 27480635.14 | G48: 50044 | H48: 110282243.6 | I48: 16035.96 | J48: 59196383.85 | K48: 148921.27 | L48: 0 | M48: 0 | N48: 2849283 | O48: 5918.4 | P48: 169478627.5 | Q48: 164957.23 | R48: 196959262.6 | S48: 215002.21 | T48: 196959262.6 | U48: 86677018.99
A49: 2018 | B49: NORTH BAY HYDRO DISTRIBUTION LIMITED | F49: 45530674.26 | G49: 75924 | H49: 258570810 | I49: 41533.81 | J49: 178297061.8 | K49: 447819.35 | L49: 0 | M49: 0 | N49: 29330105.56 | O49: 62610.49 | P49: 436867871.9 | Q49: 489353.16 | R49: 482398546.1 | S49: 565277.42 | T49: 482398546.1 | U49: 223827736.1
A50: 2018 | B50: NORTHERN ONTARIO WIRES INC. | F50: 13624092 | G50: 34796 | H50: 51609507 | I50: 0 | J50: 50707181 | K50: 61694.21 | L50: 0 | M50: 0 | N50: 5163181 | O50: 15783 | P50: 102316688 | Q50: 61694.21 | R50: 115940780 | S50: 96490.21 | T50: 115940780 | U50: 64331273
A51: 2018 | B51: OAKVILLE HYDRO ELECTRICITY DISTRIBUTION INC. | F51: 199562514.3 | G51: 396925 | H51: 750012566.4 | I51: 181933.94 | J51: 593521151.4 | K51: 1524680.94 | L51: 4447403.88 | M51: 8578.57 | N51: 117050989 | O51: 231635 | P51: 1347981122 | Q51: 1715193.45 | R51: 1547543636 | S51: 2112118.53 | T51: 1543096232 | U51: 793083665.7
A52: 2018 | B52: ORANGEVILLE HYDRO LIMITED | F52: 37582777.5 | G52: 70650 | H52: 117466613.4 | I52: 27469.53 | J52: 89339545.3 | K52: 203879.72 | L52: 3134543.98 | M52: 5789.36 | N52: 46742885.72 | O52: 43117.86 | P52: 209940702.7 | Q52: 237138.61 | R52: 247523480.2 | S52: 307788.63 | T52: 244388936.2 | U52: 126922322.8
A53: 2018 | B53: ORILLIA POWER DISTRIBUTION CORPORATION | F53: 42657306 | G53: 75668 | H53: 151684388 | I53: 61764 | J53: 105779745 | K53: 293102 | L53: 3101125 | M53: 5729 | N53: 42926384 | O53: 111749 | P53: 260565258 | Q53: 360595 | R53: 303222564 | S53: 436263 | T53: 300121439 | U53: 148437051
A54: 2018 | B54: OSHAWA PUC NETWORKS INC. | F54: 134435450 | G54: 228900 | H54: 633383354 | I54: 256359 | J54: 261438191 | K54: 685710 | L54: 7037828 | M54: 12794 | N54: 67594546 | O54: 149891 | P54: 901859373 | Q54: 954863 | R54: 1036294823 | S54: 1183763 | T54: 1029256995 | U54: 395873641
A55: 2018 | B55: OTTAWA RIVER POWER CORPORATION | F55: 22393970 | G55: 29784 | H55: 113931089 | I55: 40369.41 | J55: 41609122 | K55: 152669.37 | L55: 0 | M55: 0 | N55: 0 | O55: 0 | P55: 155540211 | Q55: 193038.78 | R55: 177934181 | S55: 222823.18 | T55: 177934181 | U55: 64003092
A56: 2018 | B56: PETERBOROUGH DISTRIBUTION INCORPORATED | F56: 134391196 | G56: 287869 | H56: 431934965 | I56: 102367 | J56: 195336597 | K56: 520693 | L56: 0 | M56: 5698 | N56: 112820304 | O56: 202403 | P56: 627271562 | Q56: 628758 | R56: 761662758 | S56: 916627 | T56: 761662758 | U56: 329727793
A57: 2018 | B57: PUC DISTRIBUTION INC. | F57: 68328727.82 | G57: 94384 | H57: 391333852.5 | I57: 125818.98 | J57: 162879933 | K57: 398210.38 | L57: 0 | M57: 0 | N57: 13841829 | O57: 24617 | P57: 554213785.5 | Q57: 524029.36 | R57: 622542513.3 | S57: 618413.45 | T57: 622542513.3 | U57: 231208660.8
A58: 2018 | B58: RENFREW HYDRO INC. | F58: 7962918 | G58: 11075 | H58: 40532948 | I58: 0 | J58: 36668859 | K58: 106335 | L58: 0 | M58: 0 | N58: 6097514.34 | O58: 11612.5 | P58: 77201807 | Q58: 106335 | R58: 85164725 | S58: 117410 | T58: 85164725 | U58: 44631777
A59: 2018 | B59: RIDEAU ST. LAWRENCE DISTRIBUTION INC. | F59: 8271777 | G59: 11849 | H59: 57793632 | I59: 6443.02 | J59: 32772900 | K59: 95654.09 | L59: 0 | M59: 0 | N59: 2193596 | O59: 7375.6 | P59: 90566532 | Q59: 102097.11 | R59: 98838309 | S59: 113946.93 | T59: 98838309 | U59: 41044677
A60: 2018 | B60: SIOUX LOOKOUT HYDRO INC. | F60: 8357674.86 | G60: 0 | H60: 49069036.51 | I60: 12717.37 | J60: 16606348.61 | K60: 50073.69 | L60: 0 | M60: 0 | N60: 0 | O60: 0 | P60: 65675385.12 | Q60: 62791.06 | R60: 74033059.98 | S60: 62791.06 | T60: 74033059.98 | U60: 24964023.47
A61: 2018 | B61: SYNERGY NORTH CORPORATION – THUNDER BAY RATE DISTRICT | F61: 102344002 | G61: 208552 | H61: 500532638 | I61: 182825 | J61: 285232196 | K61: 805578 | L61: 0 | M61: 0 | N61: 85869306 | O61: 236694 | P61: 785764834 | Q61: 988403 | R61: 888108836 | S61: 1196955 | T61: 888108836 | U61: 387576198
A62: 2018 | B62: TILLSONBURG HYDRO INC. | F62: 47401197.27 | G62: 99170 | H62: 91370321.4 | I62: 180162.14 | J62: 44870438.42 | K62: 301517.93 | L62: 0 | M62: 0 | N62: 48585894 | O62: 108682.9 | P62: 136240759.8 | Q62: 481680.07 | R62: 183641957.1 | S62: 580850.74 | T62: 183641957.1 | U62: 92271635.69
A63: 2018 | B63: TORONTO HYDRO-ELECTRIC SYSTEM LIMITED | F63: 2716005308 | G63: 5227202 | H63: 9761714371 | I63: 7467371 | J63: 11113172094 | K63: 26791726 | L63: 330749827 | M63: 609405 | N63: 3698003210 | O63: 7128105 | P63: 21205636292 | Q63: 34868502 | R63: 2.39216416e+10 | S63: 40095704.23 | T63: 2.359089177e+10 | U63: 1.38291774e+10
A64: 2018 | B64: WASAGA DISTRIBUTION INC. | F64: 5949165 | G64: 7692 | H64: 102876476 | I64: 0 | J64: 13049895 | K64: 43991 | L64: 2803203 | M64: 5557.58 | N64: 0 | O64: 0 | P64: 118729574 | Q64: 49548.58 | R64: 124678739 | S64: 57241.28 | T64: 121875536 | U64: 18999060
A65: 2018 | B65: WATERLOO NORTH HYDRO INC. | F65: 160419170 | G65: 0 | H65: 622290344 | I65: 226725 | J65: 613994469 | K65: 1806390 | L65: 6231611 | M65: 0 | N65: 196274835 | O65: 0 | P65: 1242516424 | Q65: 2033115 | R65: 1402935594 | S65: 2033115 | T65: 1396703983 | U65: 774413639
A66: 2018 | B66: WELLAND HYDRO-ELECTRIC SYSTEM CORP. | F66: 21700736 | G66: 21361 | H66: 206509127 | I66: 39819 | J66: 122493159 | K66: 336940 | L66: 3013780 | M66: 5518 | N66: 14542159 | O66: 61045 | P66: 332016066 | Q66: 382277 | R66: 353716802 | S66: 403638 | T66: 350703022 | U66: 144193895
A67: 2018 | B67: WELLINGTON NORTH POWER INC. | F67: 32532737 | G67: 61566 | H67: 32600314 | I67: 1329 | J67: 35644424 | K67: 91077 | L67: 0 | M67: 0 | N67: 11318188.36 | O67: 19738.8 | P67: 68244738 | Q67: 92406 | R67: 100777475 | S67: 153972 | T67: 100777475 | U67: 68177161
A68: 2018 | B68: WESTARIO POWER INC. | F68: 87932552.5 | G68: 158356 | H68: 229816799 | I68: 25979 | J68: 98535155 | K68: 262152 | L68: 1827725 | M68: 4899 | N68: 36676918 | O68: 75716 | P68: 330179679 | Q68: 293030 | R68: 418112231.5 | S68: 451386.9 | T68: 416284506.5 | U68: 186467707.5

Sheet RRR_2018 (hidden)
A1: 2.1.5 TotalConsumptionData_Dist_Ret_Total_Combined_Without RateClass_2019_v2
A2: Time run: 6/25/2019 2:37:25 PM
T3: H + F + J | U3: F + J
A4: Filing_Year | B4: Company_Name | F4: Ret_Metered_consumption_in_kWhs | G4: Ret_Metered_consumption_in_kWs | H4: Dist_RPPMeterCustkWh | I4: Dist_RPPMeterCustkW | J4: Dist_NonRPPMeterCustkWh | K4: Dist_NonRPPMeterCustkW | L4: IESOMeterCustkWh | M4: IESOMeterCustKW | N4: Class_A_Consumption_kWhs | O4: Class_A_Consumption_kWs | P4: TotConsmptionforDistCustkWh | Q4: TotConsmptionforDistCustkW | R4: Calculated_TOTAL_KWH | S4: Calculated_TOTAL_KW | T4: Total Metered Excluding WMP | U4: Non RPP
A5: 2019 | B5: ALECTRA UTILITIES CORPORATION | F5: 2643543563 | G5: 5306056 | H5: 10538278650 | I5: 3342107 | J5: 11355078515 | K5: 27494395 | L5: 902662836 | M5: 1504000 | N5: 5208559700 | O5: 10695302 | P5: 22796020001 | Q5: 32340502 | R5: 25439563564 | S5: 37646558 | T5: =H5+J5+F5 -> 24536900728 | U5: =F5+J5 -> 13998622078
A6: 2019 | B6: ALECTRA UTILITIES - GUELPH | F6: 139512542.2 | G6: 265010 | H6: 532946021.6 | I6: 117294.49 | J6: 999441906.3 | K6: 2281720.53 | L6: 6559026 | M6: 20552.63 | N6: 779216989.9 | O6: 1648782.32 | P6: 1538946954 | Q6: 2419567.65 | R6: 1678459496 | S6: 2684578.6 | T6: =H6+J6+F6 -> 1671900470 | U6: =F6+J6 -> 1138954448
A7: 2019 | B7: ALGOMA POWER INC. | F7: 8104728.985 | G7: 9879 | H7: 113771914 | I7: 9707.85 | J7: 102689132.1 | K7: 215211.14 | L7: 0 | M7: 0 | N7: 73319688.89 | O7: 123205.79 | P7: 216461046.1 | Q7: 224918.99 | R7: 224565775.1 | S7: 234798.3 | T7: =H7+J7+F7 -> 224565775.1 | U7: =F7+J7 -> 110793861.1
A8: 2019 | B8: ATIKOKAN HYDRO INC. | F8: 1122634.7 | G8: 2303 | H8: 13762612.42 | I8: 0 | J8: 15260256.6 | K8: 54782.51 | L8: 0 | M8: 0 | N8: 494323.58 | O8: 3072.48 | P8: 29022869.02 | Q8: 54782.51 | R8: 30145503.72 | S8: 57086.21 | T8: 30145503.72 | U8: 16382891.3
A9: 2019 | B9: BLUEWATER POWER DISTRIBUTION CORPORATION | F9: 57766757 | G9: 104890 | H9: 382526578 | I9: 283664 | J9: 435190437 | K9: 738360 | L9: 115951909 | M9: 194303 | N9: 308027905 | O9: 562016 | P9: 933668924 | Q9: 1216327 | R9: 991435681 | S9: 1321217 | T9: 875483772 | U9: 492957194
A10: 2019 | B10: BRANTFORD POWER INC. | F10: 159763507.9 | G10: 333728 | H10: 411053419.1 | I10: 107364.83 | J10: 363693815.1 | K10: 1016899.08 | L10: 47558080 | M10: 107477.02 | N10: 186988209.3 | O10: 395519.8 | P10: 822305314.1 | Q10: 1231740.93 | R10: 982068822.1 | S10: 1565469 | T10: 934510742.1 | U10: 523457323
A11: 2019 | B11: BURLINGTON HYDRO INC. | F11: 161789062 | G11: 346060 | H11: 808942246 | I11: 385372 | J11: 626905508 | K11: 1667547 | L11: 0 | M11: 0 | N11: 211575464 | O11: 514564 | P11: 1435847754 | Q11: 2052919 | R11: 1597636816 | S11: 2398979 | T11: 1597636816 | U11: 788694570
A12: 2019 | B12: CANADIAN NIAGARA POWER INC. | F12: 28150219.75 | G12: 32318 | H12: 280729011.9 | I12: 46456.02 | J12: 167897945 | K12: 521211.82 | L12: 0 | M12: 0 | N12: 76022382.52 | O12: 234135.95 | P12: 448626956.9 | Q12: 567667.84 | R12: 476777176.6 | S12: 599986.36 | T12: 476777176.6 | U12: 196048164.7
A13: 2019 | B13: CENTRE WELLINGTON HYDRO LTD. | F13: 15230552 | G13: 22913 | H13: 65921792 | I13: 5446.52 | J13: 59304118 | K13: 155089.26 | L13: 2866640.26 | M13: 5504.57 | N13: 10816566.6 | O13: 26242.16 | P13: 128092550.3 | Q13: 166040.35 | R13: 143323102.3 | S13: 188953.6 | T13: 140456462 | U13: 74534670
A14: 2019 | B14: CHAPLEAU PUBLIC UTILITIES CORPORATION | F14: 419097 | G14: 750 | H14: 18548446 | I14: 823.47 | J14: 5557973 | K14: 15581.98 | L14: 0 | M14: 0 | N14: 0 | O14: 0 | P14: 24106419 | Q14: 16405.45 | R14: 24525516 | S14: 17156.05 | T14: 24525516 | U14: 5977070
A15: 2019 | B15: COOPERATIVE HYDRO EMBRUN INC. | F15: 891546 | G15: 24 | H15: 24592390 | I15: 0 | J15: 3861532 | K15: 11494 | L15: 0 | M15: 0 | N15: 0 | O15: 0 | P15: 28453922 | Q15: 11494 | R15: 29345468 | S15: 11518 | T15: 29345468 | U15: 4753078
A16: 2019 | B16: ELEXICON ENERGY INC.-VERIDIAN RATE ZONE | F16: 234578684 | G16: 364175 | H16: 1292705429 | I16: 262519 | J16: 1077042490 | K16: 2337833 | L16: 37358789 | M16: 64063 | N16: 566953030 | O16: 1075068 | P16: 2407106708 | Q16: 2664415 | R16: 2641685392 | S16: 3028590 | T16: =H16+J16+F16 -> 2604326603 | U16: =F16+J16 -> 1311621174
A17: 2019 | B17: ELEXICON ENERGY INC.-WHITBY RATE ZONE | F17: 98406490 | G17: 161721 | H17: 482183513 | I17: 127998 | J17: 286158671 | K17: 676281 | L17: 4147619 | M17: 8467 | N17: 139259185 | O17: 253691 | P17: 772489803 | Q17: 812746 | R17: 870896293 | S17: 974467 | T17: =H17+J17+F17 -> 866748674 | U17: =F17+J17 -> 384565161
A18: 2019 | B18: E.L.K. ENERGY INC. | F18: 1 | G18: 1 | H18: 118340134 | I18: 6951 | J18: 110692781 | K18: 316370 | L18: 0 | M18: 0 | N18: 17393686 | O18: 56726 | P18: 229032915 | Q18: 323321 | R18: 229032916 | S18: 323322 | T18: 229032916 | U18: 110692782
A19: 2019 | B19: ENERGY+ INC. | F19: 213617993 | G19: 480875 | H19: 714025368 | I19: 110572 | J19: 737302096 | K19: 2434864 | L19: 36346563 | M19: 63214 | N19: 316960389.9 | O19: 720245.15 | P19: 1487674027 | Q19: 2608650 | R19: 1701292020 | S19: 3089525 | T19: 1664945457 | U19: 950920089
A20: 2019 | B20: ENTEGRUS POWERLINES INC. | F20: 184897046 | G20: 341850 | H20: 570339569 | I20: 110517 | J20: 444761905 | K20: 1287598 | L20: 7285666 | M20: 16349 | N20: 265498756 | O20: 591066 | P20: 1022387140 | Q20: 1414464 | R20: 1207284186 | S20: 1756314 | T20: 1199998520 | U20: 629658951
A21: 2019 | B21: ENWIN UTILITIES LTD. | F21: 184302087.1 | G21: 381322 | H21: 975320388.6 | I21: 483913.6 | J21: 1031176259 | K21: 2347313.6 | L21: 247726371 | M21: 458576.4 | N21: 614300193.8 | O21: 1249448.9 | P21: 2254223019 | Q21: 3289803.6 | R21: 2438525106 | S21: 3671125.9 | T21: 2190798735 | U21: 1215478346
A22: 2019 | B22: EPCOR ELECTRICITY DISTRIBUTION ONTARIO INC. | F22: 33946468.76 | G22: 54528 | H22: 162016384.2 | I22: 553.02 | J22: 110669174.1 | K22: 262850.65 | L22: 2605162.29 | M22: 4968.28 | N22: 57347355.14 | O22: 117162.92 | P22: 275290720.6 | Q22: 268371.95 | R22: 309237189.4 | S22: 322899.97 | T22: 306632027.1 | U22: 144615642.9
A23: 2019 | B23: ERTH POWER CORPORATION - ERTH POWER MAIN RATE ZONE | F23: 56120662 | G23: 98388 | H23: 186557152 | I23: 30057 | J23: 322802932 | K23: 670911 | L23: 0 | M23: 0 | N23: 192178811 | O23: 362309.96 | P23: 509360084 | Q23: 700968 | R23: 565480746 | S23: 799356 | T23: 565480746 | U23: 378923594
A24: 2019 | B24: ERTH POWER CORPORATION – GODERICH RATE ZONE | F24: 16755114 | G24: 28189 | H24: 40654051 | I24: 10261.58 | J24: 22091555 | K24: 61576.88 | L24: 58174766 | M24: 148823.3 | N24: 19202849 | O24: 31139.01 | P24: 120920372 | Q24: 220661.76 | R24: 137675486 | S24: 248851.56 | T24: 79500720 | U24: 38846669
A25: 2019 | B25: ESPANOLA REGIONAL HYDRO DISTRIBUTION CORPORATION | F25: 7990795.4 | G25: 13940 | H25: 40295493.09 | I25: 3271.1 | J25: 8637486.4 | K25: 21104.8 | L25: 0 | M25: 0 | N25: 0 | O25: 0 | P25: 48932979.49 | Q25: 24375.9 | R25: 56923774.89 | S25: 38316.8 | T25: 56923774.89 | U25: 16628281.8
A26: 2019 | B26: ESSEX POWERLINES CORPORATION | F26: 72529274.18 | G26: 189726 | H26: 320353669.4 | I26: 48666.85 | J26: 115872895.6 | K26: 290965.18 | L26: 10169680.38 | M26: 19510.53 | N26: 26951834.91 | O26: 63884.7 | P26: 446396245.4 | Q26: 359142.56 | R26: 518925519.6 | S26: 548868.56 | T26: 508755839.2 | U26: 188402169.8
A27: 2019 | B27: FESTIVAL HYDRO INC. | F27: 104333898 | G27: 277262 | H27: 206833328 | I27: 50763 | J27: 298093570 | K27: 634713 | L27: 3931816 | M27: 41919 | N27: 298260804 | O27: 591678 | P27: 508858714 | Q27: 727395 | R27: 613192612 | S27: 1004657 | T27: 609260796 | U27: 402427468
A28: 2019 | B28: FORT FRANCES POWER CORPORATION | F28: 480198.16 | G28: 0 | H28: 55643045 | I28: 0 | J28: 17683713 | K28: 49047 | L28: 0 | M28: 0 | N28: 0 | O28: 0 | P28: 73326758 | Q28: 49047 | R28: 73806956.16 | S28: 49047 | T28: 73806956.16 | U28: 18163911.16
A29: 2019 | B29: GREATER SUDBURY HYDRO INC. | F29: 86589713.43 | G29: 137147 | H29: 546758131.7 | I29: 171720.98 | J29: 245822856.8 | K29: 587028.73 | L29: 3477473.24 | M29: 6618.54 | N29: 72343263.06 | O29: 144546.38 | P29: 796058461.7 | Q29: 765368.25 | R29: 882648175.2 | S29: 902515.86 | T29: 879170701.9 | U29: 332412570.2
A30: 2019 | B30: GRIMSBY POWER INCORPORATED | F30: 17743405.35 | G30: 33661 | H30: 114024977.8 | I30: 12323.7 | J30: 92175040.83 | K30: 280231.17 | L30: 3378435.9 | M30: 6492.73 | N30: 3221178.2 | O30: 8379.71 | P30: 209578454.5 | Q30: 299047.6 | R30: 227321859.9 | S30: 332708.97 | T30: 223943424 | U30: 109918446.2
A31: 2019 | B31: HALTON HILLS HYDRO INC. | F31: 61498570 | G31: 119491 | H31: 263704857 | I31: 48418 | J31: 170368632 | K31: 487797 | L31: 3870953 | M31: 7360 | N31: 78045311 | O31: 232310 | P31: 437944442 | Q31: 543575 | R31: 499443012 | S31: 663066 | T31: 495572059 | U31: 231867202
A32: 2019 | B32: HEARST POWER DISTRIBUTION CO. LTD. | F32: 1875368.45 | G32: 2995 | H32: 42658091.67 | I32: 52106.17 | J32: 33746660.75 | K32: 68553.38 | L32: 0 | M32: 0 | N32: 24419620 | O32: 63606.93 | P32: 76404752.42 | Q32: 120659.55 | R32: 78280120.87 | S32: 123655.11 | T32: 78280120.87 | U32: 35622029.2
A33: 2019 | B33: HYDRO 2000 INC. | F33: 603818 | G33: 648 | H33: 17038217 | I33: 0 | J33: 4432468 | K33: 11013.5 | L33: 0 | M33: 0 | N33: 0 | O33: 0 | P33: 21470685 | Q33: 11013.5 | R33: 22074503 | S33: 11662.3 | T33: 22074503 | U33: 5036286
A34: 2019 | B34: HYDRO HAWKESBURY INC. | F34: 13546397.6 | G34: 24359 | H34: 64445530 | I34: 194 | J34: 66147208 | K34: 168510 | L34: 0 | M34: 0 | N34: 15041117 | O34: 35472.95 | P34: 130592738 | Q34: 168704 | R34: 144139135.6 | S34: 193063.2 | T34: 144139135.6 | U34: 79693605.6
A35: 2019 | B35: HYDRO ONE NETWORKS INC. | F35: 2762318132 | G35: 4446986 | H35: 1.522323693e+10 | I35: 1707565.41 | J35: 7641034133 | K35: 24462989.81 | L35: 1.051401687e+10 | M35: 23627456.29 | N35: 3469922835 | O35: 7536555.84 | P35: 3.337828793e+10 | Q35: 49798011.51 | R35: 3.614060606e+10 | S35: 54244998.26 | T35: 2.562658919e+10 | U35: 1.040335227e+10
A36: 2019 | B36: HYDRO ONE REMOTE COMMUNITIES INC. | F36: 0 | G36: 0 | H36: 0 | I36: 0 | J36: 0 | K36: 0 | L36: 0 | M36: 0 | N36: 0 | O36: 0 | P36: 0 | Q36: 0 | R36: 0 | S36: 0 | T36: 0 | U36: 0
A37: 2019 | B37: HYDRO OTTAWA LIMITED | F37: 529200425 | G37: 881454 | H37: 3257669549 | I37: 854940 | J37: 3577015024 | K37: 8143062 | L37: 33622545 | M37: 61844 | N37: 1292613290 | O37: 2539078 | P37: 6868307118 | Q37: 9059846 | R37: 7397507543 | S37: 9941300 | T37: 7363884998 | U37: 4106215449
A38: 2019 | B38: INNPOWER CORPORATION | F38: 19799368.62 | G38: 28255 | H38: 188770098.3 | I38: 11169.93 | J38: 54929918.99 | K38: 131353.22 | L38: 0 | M38: 0 | N38: 0 | O38: 0 | P38: 243700017.3 | Q38: 142523.15 | R38: 263499385.9 | S38: 170778.97 | T38: 263499385.9 | U38: 74729287.61
A39: 2019 | B39: KINGSTON HYDRO CORPORATION | F39: 115926873.8 | G39: 198605 | H39: 301013829.8 | I39: 93635.97 | J39: 284822515.7 | K39: 660199.12 | L39: 3616283.42 | M39: 6712.69 | N39: 178413924.2 | O39: 370251.46 | P39: 589452628.9 | Q39: 760547.78 | R39: 705379502.7 | S39: 959152.9 | T39: 701763219.2 | U39: 400749389.4
A40: 2019 | B40: KITCHENER-WILMOT HYDRO INC. | F40: 220917011.6 | G40: 473569 | H40: 996619966.5 | I40: 0 | J40: 573631445 | K40: 1784992.56 | L40: 27520828.09 | M40: 67145.37 | N40: 208734456 | O40: 504203.43 | P40: 1597772240 | Q40: 1852137.93 | R40: 1818689251 | S40: 2325707.77 | T40: 1791168423 | U40: 794548456.6
A41: 2019 | B41: LAKEFRONT UTILITIES INC. | F41: 49967760.2 | G41: 106446 | H41: 112958527.9 | I41: 31976.85 | J41: 86508921.63 | K41: 226695.14 | L41: 0 | M41: 0 | N41: 75373730.26 | O41: 142771.1 | P41: 199467449.5 | Q41: 258671.99 | R41: 249435209.7 | S41: 365118.75 | T41: 249435209.7 | U41: 136476681.8
A42: 2019 | B42: LAKELAND POWER DISTRIBUTION LTD. | F42: 33709687 | G42: 52176 | H42: 162638933.2 | I42: 13949.43 | J42: 92388255.1 | K42: 223147.58 | L42: 0 | M42: 0 | N42: 42961261.43 | O42: 92945.44 | P42: 255027188.3 | Q42: 237097.01 | R42: 288736875.3 | S42: 289273.13 | T42: 288736875.3 | U42: 126097942.1
A43: 2019 | B43: LONDON HYDRO INC. | F43: 283475855.9 | G43: 512927 | H43: 1593339762 | I43: 369323.89 | J43: 1324042645 | K43: 3380078.44 | L43: 0 | M43: 28511.5 | N43: 560302674.7 | O43: 1321732.3 | P43: 2917382407 | Q43: 3777913.83 | R43: 3200858263 | S43: 4290841.53 | T43: 3200858263 | U43: 1607518501
A44: 2019 | B44: MILTON HYDRO DISTRIBUTION INC. | F44: 55831685 | G44: 89670 | H44: 423561691 | I44: 104104 | J44: 428250487 | K44: 976171 | L44: 4331691 | M44: 9327 | N44: 243610967 | O44: 481341 | P44: 856143869 | Q44: 1089602 | R44: 911975554 | S44: 1179272 | T44: 907643863 | U44: 484082172
A45: 2019 | B45: NEWMARKET-TAY POWER DISTRIBUTION LTD. | F45: 108434492 | G45: 168064 | H45: 453677279 | I45: 28772 | J45: 279660379 | K45: 693975 | L45: 3726295 | M45: 15698 | N45: 115174314 | O45: 235949 | P45: 737063953 | Q45: 738445 | R45: 845498445 | S45: 906509 | T45: 841772150 | U45: 388094871
A46: 2019 | B46: NIAGARA PENINSULA ENERGY INC. | F46: 98091083 | G46: 160249 | H46: 569593895 | I46: 68933 | J46: 552870731 | K46: 1396343 | L46: 3166943 | M46: 6075 | N46: 154666015 | O46: 346570 | P46: 1125631569 | Q46: 1471351 | R46: 1223722652 | S46: 1631600 | T46: 1220555709 | U46: 650961814
A47: 2019 | B47: NIAGARA-ON-THE-LAKE HYDRO INC. | F47: 18692405.5 | G47: 36126 | H47: 119479628.7 | I47: 18525.8 | J47: 79359827.45 | K47: 191447.67 | L47: 0 | M47: 0 | N47: 18134723.36 | O47: 47569.04 | P47: 198839456.2 | Q47: 209973.47 | R47: 217531861.7 | S47: 246099.6 | T47: 217531861.7 | U47: 98052232.95
A48: 2019 | B48: NORTH BAY HYDRO DISTRIBUTION LIMITED | F48: 50250020.91 | G48: 90271 | H48: 273151806.4 | I48: 39565.24 | J48: 173579143.8 | K48: 423504.25 | L48: 0 | M48: 0 | N48: 42947474.8 | O48: 97139.06 | P48: 446730950.2 | Q48: 463069.49 | R48: 496980971.1 | S48: 553340.68 | T48: 496980971.1 | U48: 223829164.7
A49: 2019 | B49: NORTHERN ONTARIO WIRES INC. | F49: 16400363 | G49: 35103 | H49: 53317626 | I49: 0 | J49: 47310018 | K49: 151059 | L49: 0 | M49: 0 | N49: 16061836 | O49: 70915 | P49: 100627644 | Q49: 151059 | R49: 117028007 | S49: 186162 | T49: 117028007 | U49: 63710381
A50: 2019 | B50: OAKVILLE HYDRO ELECTRICITY DISTRIBUTION INC. | F50: 195945742.3 | G50: 399529 | H50: 815037861.5 | I50: 206312 | J50: 602543597.3 | K50: 1548397.82 | L50: 4255917.71 | M50: 8394.59 | N50: 177344123 | O50: 376812 | P50: 1421837376 | Q50: 1763104.41 | R50: 1617783119 | S50: 2162633.77 | T50: 1613527201 | U50: 798489339.6
A51: 2019 | B51: ORANGEVILLE HYDRO LIMITED | F51: 35045017 | G51: 67115 | H51: 129637291.5 | I51: 24498.08 | J51: 87062013 | K51: 209067.05 | L51: 3013333.2 | M51: 5683.77 | N51: 39164593 | O51: 91113 | P51: 219712637.8 | Q51: 239248.9 | R51: 254757654.8 | S51: 306363.9 | T51: 251744321.6 | U51: 122107030
A52: 2019 | B52: ORILLIA POWER DISTRIBUTION CORPORATION | F52: 39404847 | G52: 66779 | H52: 163720463 | I52: 59021 | J52: 117092755 | K52: 295223 | L52: 2872560 | M52: 5624 | N52: 48922409 | O52: 125187 | P52: 283685778 | Q52: 359868 | R52: 323090625 | S52: 426647 | T52: 320218065 | U52: 156497602
A53: 2019 | B53: OSHAWA PUC NETWORKS INC. | F53: 127367388 | G53: 234849 | H53: 697359913 | I53: 317881 | J53: 266192520 | K53: 703166 | L53: 6881329 | M53: 13219 | N53: 92817186 | O53: 197198 | P53: 970433762 | Q53: 1034266 | R53: 1097801150 | S53: 1269115 | T53: 1090919821 | U53: 393559908
A54: 2019 | B54: OTTAWA RIVER POWER CORPORATION | F54: 19857561 | G54: 36112 | H54: 120339783 | I54: 40928 | J54: 45001361 | K54: 155755 | L54: 0 | M54: 0 | N54: 0 | O54: 0 | P54: 165341144 | Q54: 196683 | R54: 185198705 | S54: 232795 | T54: 185198705 | U54: 64858922
A55: 2019 | B55: PETERBOROUGH DISTRIBUTION INCORPORATED | F55: 122722540 | G55: 230369 | H55: 463446765 | I55: 119489 | J55: 208500369 | K55: 576387 | L55: 0 | M55: 5438 | N55: 137979417 | O55: 302762 | P55: 671947134 | Q55: 701314 | R55: 794669674 | S55: 931683 | T55: 794669674 | U55: 331222909
A56: 2019 | B56: PUC DISTRIBUTION INC. | F56: 68682996.28 | G56: 100674 | H56: 407046124 | I56: 122305.32 | J56: 157968806.5 | K56: 389211.23 | L56: 0 | M56: 0 | N56: 32510299 | O56: 83491 | P56: 565014930.5 | Q56: 511516.55 | R56: 633697926.8 | S56: 612190.67 | T56: 633697926.8 | U56: 226651802.8
A57: 2019 | B57: RENFREW HYDRO INC. | F57: 7052122 | G57: 10370 | H57: 42302019 | I57: 0 | J57: 37438563 | K57: 100062 | L57: 0 | M57: 0 | N57: 12237109.16 | O57: 23498.19 | P57: 79740582 | Q57: 100062 | R57: 86792704 | S57: 110432.2 | T57: 86792704 | U57: 44490685
A58: 2019 | B58: RIDEAU ST. LAWRENCE DISTRIBUTION INC. | F58: 7978657 | G58: 13050 | H58: 62057846 | I58: 6789.9 | J58: 31812128 | K58: 94884.26 | L58: 0 | M58: 0 | N58: 5806605 | O58: 17467 | P58: 93869974 | Q58: 101674.16 | R58: 101848631 | S58: 114724.5 | T58: 101848631 | U58: 39790785
A59: 2019 | B59: SIOUX LOOKOUT HYDRO INC. | F59: 2844255.2 | G59: 0 | H59: 53789301.97 | I59: 12500.6 | J59: 21936591.72 | K59: 51853.73 | L59: 0 | M59: 0 | N59: 0 | O59: 0 | P59: 75725893.69 | Q59: 64354.33 | R59: 78570148.89 | S59: 64354.33 | T59: 78570148.89 | U59: 24780846.92
A60: 2019 | B60: SYNERGY NORTH CORPORATION – KENORA RATE DISTRICT | F60: 16940486 | G60: 36316 | H60: 60730246 | I60: 14059 | J60: 20712772 | K60: 41199 | L60: 0 | M60: 0 | N60: 0 | O60: 0 | P60: 81443018 | Q60: 55258 | R60: 98383504 | S60: 91574 | T60: 98383504 | U60: 37653258
A61: 2019 | B61: SYNERGY NORTH CORPORATION – THUNDER BAY RATE DISTRICT | F61: 56532737 | G61: 111236 | H61: 516602001 | I61: 205225 | J61: 323287406 | K61: 876980 | L61: 0 | M61: 0 | N61: 126330844.8 | O61: 351616.3 | P61: 839889407 | Q61: 1082205 | R61: 896422144 | S61: 1193441 | T61: 896422144 | U61: 379820143
A62: 2019 | B62: TILLSONBURG HYDRO INC. | F62: 48021260.55 | G62: 64475 | H62: 71061293.46 | I62: 14391.28 | J62: 64228347.39 | K62: 188787.42 | L62: 0 | M62: 0 | N62: 49026950.64 | O62: 106418.7 | P62: 135289640.8 | Q62: 203178.7 | R62: 183310901.4 | S62: 267653.78 | T62: 183310901.4 | U62: 112249607.9
A63: 2019 | B63: TORONTO HYDRO-ELECTRIC SYSTEM LIMITED | F63: 2670024832 | G63: 5224394 | H63: 1.041674319e+10 | I63: 7637432.33 | J63: 1.137966237e+10 | K63: 27768255.68 | L63: 326638701.9 | M63: 610483.75 | N63: 5208597011 | O63: 10983550 | P63: 2.212304426e+10 | Q63: 36016171.76 | R63: 2.479306909e+10 | S63: 41240565.76 | T63: 2.446643039e+10 | U63: 1.40496872e+10
A64: 2019 | B64: WASAGA DISTRIBUTION INC. | F64: 5564326 | G64: 9576 | H64: 111614860 | I64: 0 | J64: 14284813 | K64: 38557.9 | L64: 2678677 | M64: 5394.51 | N64: 0 | O64: 0 | P64: 128578350 | Q64: 43952.41 | R64: 134142676 | S64: 53529.11 | T64: 131463999 | U64: 19849139
A65: 2019 | B65: WATERLOO NORTH HYDRO INC. | F65: 148661297 | G65: 0 | H65: 667953593 | I65: 234573 | J65: 633479732 | K65: 1854258 | L65: 8585533 | M65: 0 | N65: 295995447 | O65: 0 | P65: 1310018858 | Q65: 2088831 | R65: 1458680155 | S65: 2088831 | T65: 1450094622 | U65: 782141029
A66: 2019 | B66: WELLAND HYDRO-ELECTRIC SYSTEM CORP. | F66: 20050471 | G66: 20166 | H66: 224580275 | I66: 26132 | J66: 131537026 | K66: 367640 | L66: 2923062 | M66: 5287 | N66: 24020461 | O66: 87485 | P66: 359040363 | Q66: 399059 | R66: 379090834 | S66: 419225 | T66: 376167772 | U66: 151587497
A67: 2019 | B67: WELLINGTON NORTH POWER INC. | F67: 33615988 | G67: 60278 | H67: 36064093 | I67: 52 | J67: 36730903 | K67: 91593 | L67: 0 | M67: 0 | N67: 36721328.94 | O67: 73180 | P67: 72794996 | Q67: 91645 | R67: 106410984 | S67: 151923 | T67: 106410984 | U67: 70346891
A68: 2019 | B68: WESTARIO POWER INC. | F68: 93715034 | G68: 209000 | H68: 259647460 | I68: 24597 | J68: 109725687 | K68: 322962 | L68: 1827725 | M68: 4899 | N68: 77936554 | O68: 160533 | P68: 371200872 | Q68: 352458 | R68: 464915906 | S68: 561458 | T68: 463088181 | U68: 203440721

Sheet RRR_2019 (hidden)
A1: 2.1.5 TotalConsumptionData_Dist_Ret_Total_Combined_Without RateClass_2020_v2
A2: Time run: 8/10/2020 4:46:09 PM
T3: H + F + J | U3: F + J
A4: Filing_Year | B4: Company_Name | F4: Ret_Metered_consumption_in_kWhs | G4: Ret_Metered_consumption_in_kWs | H4: Dist_RPPMeterCustkWh | I4: Dist_RPPMeterCustkW | J4: Dist_NonRPPMeterCustkWh | K4: Dist_NonRPPMeterCustkW | L4: IESOMeterCustkWh | M4: IESOMeterCustKW | N4: Class_A_Consumption_kWhs | O4: Class_A_Consumption_kWs | P4: TotConsmptionforDistCustkWh | Q4: TotConsmptionforDistCustkW | R4: Calculated_TOTAL_KWH | S4: Calculated_TOTAL_KW | T4: Total Metered Excluding WMP | U4: Non RPP
A5: 2020 | B5: ALECTRA UTILITIES CORPORATION | F5: 2655028918 | G5: 5307211 | H5: 10826156503 | I5: 3310053 | J5: 12100792658 | K5: 29915470 | L5: 908014632 | M5: 1511540 | N5: 6159397525 | O5: 12564498 | P5: 23834963793 | Q5: 34737063 | R5: 26489992711 | S5: 40044274 | T5: 25581978079 | U5: 14755821576
A6: 2020 | B6: ALGOMA POWER INC. | F6: 8277614 | G6: 9889 | H6: 118567534 | I6: 9019 | J6: 108955335 | K6: 225676 | L6: 0 | M6: 0 | N6: 81535209 | O6: 141198 | P6: 227522869 | Q6: 234695 | R6: 235800483 | S6: 244584 | T6: 235800483 | U6: 117232949
A7: 2020 | B7: ATIKOKAN HYDRO INC. | F7: 1113870.2 | G7: 2232 | H7: 13625950.3 | I7: 0 | J7: 14834259.1 | K7: 47352.56 | L7: 0 | M7: 0 | N7: 5254738.18 | O7: 16897.6 | P7: 28460209.4 | Q7: 47352.56 | R7: 29574079.6 | S7: 49584.88 | T7: 29574079.6 | U7: 15948129.3
A8: 2020 | B8: BLUEWATER POWER DISTRIBUTION CORPORATION | F8: 56915003 | G8: 97513 | H8: 376632667 | I8: 136471 | J8: 421863758 | K8: 854524 | L8: 119513820 | M8: 194559 | N8: 310820090 | O8: 558916 | P8: 918010245 | Q8: 1185554 | R8: 974925248 | S8: 1283067 | T8: 855411428 | U8: 478778761
A9: 2020 | B9: BRANTFORD POWER INC. | F9: 164629761.9 | G9: 335779 | H9: 400456387 | I9: 95814.23 | J9: 381874018.6 | K9: 1039886.61 | L9: 47347679.01 | M9: 108645.51 | N9: 200352505 | O9: 453512 | P9: 829678084.7 | Q9: 1244346.35 | R9: 994307846.5 | S9: 1580126.15 | T9: 946960167.5 | U9: 546503780.5
A10: 2020 | B10: BURLINGTON HYDRO INC. | F10: 145916367 | G10: 309090 | H10: 778072601 | I10: 356753 | J10: 606484940 | K10: 1669741 | L10: 0 | M10: 0 | N10: 193111332 | O10: 480613 | P10: 1384557541 | Q10: 2026494 | R10: 1530473908 | S10: 2335584 | T10: 1530473908 | U10: 752401307
A11: 2020 | B11: CANADIAN NIAGARA POWER INC. | F11: 26215439 | G11: 28711 | H11: 276529595 | I11: 47012 | J11: 165591892 | K11: 497662 | L11: 0 | M11: 0 | N11: 79045580 | O11: 243850 | P11: 442121487 | Q11: 544674 | R11: 468336926 | S11: 573385 | T11: 468336926 | U11: 191807331
A12: 2020 | B12: CENTRE WELLINGTON HYDRO LTD. | F12: 14837635 | G12: 25820 | H12: 64685736.87 | I12: 5261.71 | J12: 57951295.15 | K12: 151886.27 | L12: 2736305.22 | M12: 5130.53 | N12: 21983577.4 | O12: 52158.3 | P12: 125373337.2 | Q12: 162278.51 | R12: 140210972.2 | S12: 188098.84 | T12: 137474667 | U12: 72788930.15
A13: 2020 | B13: CHAPLEAU PUBLIC UTILITIES CORPORATION | F13: 514286 | G13: 1316 | H13: 19463336 | I13: 822 | J13: 5344967 | K13: 14434 | L13: 0 | M13: 0 | N13: 0 | O13: 0 | P13: 24808303 | Q13: 15256 | R13: 25322589 | S13: 16572 | T13: 25322589 | U13: 5859253
A14: 2020 | B14: COOPERATIVE HYDRO EMBRUN INC. | F14: 1012513 | G14: 0 | H14: 24987194 | I14: 0 | J14: 2622780 | K14: 11159 | L14: 0 | M14: 0 | N14: 0 | O14: 0 | P14: 27609974 | Q14: 11159 | R14: 28622487 | S14: 11159 | T14: 28622487 | U14: 3635293
A15: 2020 | B15: E.L.K. ENERGY INC. | F15: 1 | G15: 1 | H15: 133941009 | I15: 8041 | J15: 108935713 | K15: 336339 | L15: 0 | M15: 0 | N15: 17721776 | O15: 59481 | P15: 242876722 | Q15: 344380 | R15: 242876723 | S15: 344381 | T15: 242876723 | U15: 108935714
A16: 2020 | B16: ELEXICON ENERGY INC. | F16: 318181285 | G16: 566511 | H16: 1744143910 | I16: 368006 | J16: 1341784634 | K16: 2909032 | L16: 39344625 | M16: 67355 | N16: 737940260 | O16: 1384836 | P16: 3125273169 | Q16: 3344393 | R16: 3443454454 | S16: 3910904 | T16: 3404109829 | U16: 1659965919
A17: 2020 | B17: ENERGY+ INC. | F17: 197509740 | G17: 445419 | H17: 700405544 | I17: 169125 | J17: 734133242 | K17: 1958091 | L17: 99467807 | M17: 182568 | N17: 337039077.6 | O17: 778284.87 | P17: 1534006593 | Q17: 2309784 | R17: 1731516333 | S17: 2755203 | T17: 1632048526 | U17: 931642982
A18: 2020 | B18: ENTEGRUS POWERLINES INC. | F18: 181981751 | G18: 334429 | H18: 555879995 | I18: 126304 | J18: 441669153 | K18: 1169047 | L18: 9715904 | M18: 27076 | N18: 281796954 | O18: 636519 | P18: 1007265052 | Q18: 1322427 | R18: 1189246803 | S18: 1656856 | T18: 1179530899 | U18: 623650904
A19: 2020 | B19: ENWIN UTILITIES LTD. | F19: 156056697.3 | G19: 308659 | H19: 935974729.4 | I19: 440320.92 | J19: 983867627.1 | K19: 2341663.38 | L19: 252977275 | M19: 461902.43 | N19: 594967199.2 | O19: 1283646 | P19: 2172819632 | Q19: 3243886.73 | R19: 2328876329 | S19: 3552546.43 | T19: 2075899054 | U19: 1139924324
A20: 2020 | B20: EPCOR ELECTRICITY DISTRIBUTION ONTARIO INC. | F20: 34787516.05 | G20: 55257 | H20: 167778936.8 | I20: 15532.21 | J20: 98194115.8 | K20: 235156.08 | L20: 2541775.7 | M20: 4895.04 | N20: 55254523.15 | O20: 17544 | P20: 268514828.3 | Q20: 255583.33 | R20: 303302344.3 | S20: 310841.14 | T20: 300760568.6 | U20: 132981631.8
A21: 2020 | B21: ERTH POWER CORPORATION | F21: 69980266.24 | G21: 128590 | H21: 224238428.8 | I21: 39101 | J21: 297045778.1 | K21: 649381 | L21: 73939748 | M21: 189938.85 | N21: 222781062.9 | O21: 422219.6 | P21: 595223954.9 | Q21: 878420.85 | R21: 665204221.1 | S21: 1007011.78 | T21: 591264473.1 | U21: 367026044.3
A22: 2020 | B22: ESPANOLA REGIONAL HYDRO DISTRIBUTION CORPORATION | F22: 7836135.09 | G22: 0 | H22: 41367424.1 | I22: 3347.22 | J22: 8228965 | K22: 20370.6 | L22: 0 | M22: 0 | N22: 0 | O22: 0 | P22: 49596389.1 | Q22: 23717.82 | R22: 57432524.19 | S22: 23717.82 | T22: 57432524.19 | U22: 16065100.09
A23: 2020 | B23: ESSEX POWERLINES CORPORATION | F23: 67983579.46 | G23: 177397 | H23: 323143909 | I23: 69860.71 | J23: 136902898.4 | K23: 373002.38 | L23: 10041533.61 | M23: 19024.29 | N23: 17770355.17 | O23: 45159.35 | P23: 470088341 | Q23: 461887.38 | R23: 538071920.5 | S23: 639285.35 | T23: 528030386.8 | U23: 204886477.9
A24: 2020 | B24: FESTIVAL HYDRO INC. | F24: 84201027 | G24: 226801 | H24: 203073047 | I24: 47219 | J24: 319713797 | K24: 693615 | L24: 3611938 | M24: 52613 | N24: 277827791 | O24: 601783 | P24: 526398782 | Q24: 793447 | R24: 610599809 | S24: 1020248 | T24: 606987871 | U24: 403914824
A25: 2020 | B25: FORT FRANCES POWER CORPORATION | F25: 436518 | G25: 0 | H25: 55949876 | I25: 0 | J25: 17106600 | K25: 50053 | L25: 0 | M25: 0 | N25: 0 | O25: 0 | P25: 73056476 | Q25: 50053 | R25: 73492994 | S25: 50053 | T25: 73492994 | U25: 17543118
A26: 2020 | B26: GREATER SUDBURY HYDRO INC. | F26: 86350871.95 | G26: 133470 | H26: 542415991.7 | I26: 177297.38 | J26: 238838440.5 | K26: 550558.72 | L26: 3377730.4 | M26: 6216.86 | N26: 72271401.9 | O26: 138882.47 | P26: 784632162.6 | Q26: 734072.96 | R26: 870983034.5 | S26: 867543.03 | T26: 867605304.1 | U26: 325189312.4
A27: 2020 | B27: GRIMSBY POWER INCORPORATED | F27: 18006631.06 | G27: 33032 | H27: 112954906.5 | I27: 14858.03 | J27: 95200511.54 | K27: 268524.65 | L27: 3311799.6 | M27: 6616.78 | N27: 3590576.2 | O27: 8929.84 | P27: 211467217.6 | Q27: 289999.46 | R27: 229473848.7 | S27: 323031.46 | T27: 226162049.1 | U27: 113207142.6
A28: 2020 | B28: HALTON HILLS HYDRO INC. | F28: 60788935 | G28: 122583 | H28: 253507410 | I28: 35596 | J28: 176011397 | K28: 475608 | L28: 3652820 | M28: 7699 | N28: 72582256 | O28: 161438 | P28: 433171627 | Q28: 518903 | R28: 493960562 | S28: 641486 | T28: 490307742 | U28: 236800332
A29: 2020 | B29: HEARST POWER DISTRIBUTION CO. LTD. | F29: 1626424.74 | G29: 2829 | H29: 35887562.56 | I29: 10706.3 | J29: 40234088.71 | K29: 115295.03 | L29: 0 | M29: 0 | N29: 28186955.26 | O29: 84187.66 | P29: 76121651.27 | Q29: 126001.33 | R29: 77748076.01 | S29: 128830.81 | T29: 77748076.01 | U29: 41860513.45
A30: 2020 | B30: HYDRO 2000 INC. | F30: 841285 | G30: 0 | H30: 17072356 | I30: 0 | J30: 3077103 | K30: 10710.11 | L30: 0 | M30: 0 | N30: 0 | O30: 0 | P30: 20149459 | Q30: 10710.11 | R30: 20990744 | S30: 10710.11 | T30: 20990744 | U30: 3918388
A31: 2020 | B31: HYDRO HAWKESBURY INC. | F31: 14076109 | G31: 20304 | H31: 63970070 | I31: 158 | J31: 63225182 | K31: 163584 | L31: 0 | M31: 0 | N31: 13264976 | O31: 29926 | P31: 127195252 | Q31: 163742 | R31: 141271361 | S31: 184046 | T31: 141271361 | U31: 77301291
A32: 2020 | B32: HYDRO ONE NETWORKS INC. | F32: 2630536220 | G32: 4515674 | H32: 1.525220748e+10 | I32: 1910702.154 | J32: 7790519231 | K32: 21618089.46 | L32: 1.007050221e+10 | M32: 20339525.26 | N32: 3975247802 | O32: 738992 | P32: 3.311322893e+10 | Q32: 43868316.87 | R32: 3.574376515e+10 | S32: 48383991.51 | T32: 2.567326293e+10 | U32: 1.042105545e+10
A33: 2020 | B33: HYDRO ONE REMOTE COMMUNITIES INC. | F33: 0 | G33: 0 | H33: 0 | I33: 0 | J33: 0 | K33: 0 | L33: 0 | M33: 0 | N33: 0 | O33: 0 | P33: 0 | Q33: 0 | R33: 0 | S33: 0 | T33: 0 | U33: 0
A34: 2020 | B34: HYDRO OTTAWA LIMITED | F34: 497448293 | G34: 814147 | H34: 3195741529 | I34: 857805 | J34: 3542769011 | K34: 7864706 | L34: 32832434 | M34: 103645 | N34: 1326677094 | O34: 2554373 | P34: 6771342974 | Q34: 8826156 | R34: 7268791267 | S34: 9640303 | T34: 7235958833 | U34: 4040217304
A35: 2020 | B35: INNPOWER CORPORATION | F35: 14133795.89 | G35: 17796 | H35: 196656060.6 | I35: 9167.8 | J35: 59308495.44 | K35: 139443.53 | L35: 0 | M35: 0 | N35: 10965508.56 | O35: 22955.62 | P35: 255964556 | Q35: 148611.33 | R35: 270098351.9 | S35: 166408.22 | T35: 270098351.9 | U35: 73442291.33
A36: 2020 | B36: KINGSTON HYDRO CORPORATION | F36: 114698392.5 | G36: 206960 | H36: 270234716.3 | I36: 87675.89 | J36: 307279580.1 | K36: 618936.47 | L36: 3672307.71 | M36: 6469.39 | N36: 189867289.2 | O36: 366171.6 | P36: 581186604.1 | Q36: 713081.75 | R36: 695884996.6 | S36: 920042.48 | T36: 692212688.9 | U36: 421977972.6
A37: 2020 | B37: KITCHENER-WILMOT HYDRO INC. | F37: 206553534.4 | G37: 444843 | H37: 971533977.2 | I37: 0 | J37: 574722418.6 | K37: 1767493.32 | L37: 32138347.31 | M37: 80867.9 | N37: 232087654.2 | O37: 569239.61 | P37: 1578394743 | Q37: 1848361.22 | R37: 1784948278 | S37: 2293205.03 | T37: 1752809930 | U37: 781275953
A38: 2020 | B38: LAKEFRONT UTILITIES INC. | F38: 52843807.74 | G38: 103743 | H38: 110491127 | I38: 33508.32 | J38: 75387582.03 | K38: 204420.04 | L38: 0 | M38: 0 | N38: 71074772.22 | O38: 153227.87 | P38: 185878709.1 | Q38: 237928.36 | R38: 238722516.8 | S38: 341672.33 | T38: 238722516.8 | U38: 128231389.8
A39: 2020 | B39: LAKELAND POWER DISTRIBUTION LTD. | F39: 35794243.37 | G39: 56606 | H39: 163693356.7 | I39: 15590.97 | J39: 92005365.84 | K39: 224301.09 | L39: 0 | M39: 0 | N39: 40625025.56 | O39: 92159.06 | P39: 255698722.6 | Q39: 239892.06 | R39: 291492965.9 | S39: 296498.82 | T39: 291492965.9 | U39: 127799609.2
A40: 2020 | B40: LONDON HYDRO INC. | F40: 268954633.2 | G40: 491144 | H40: 1554894976 | I40: 338174.31 | J40: 1281634539 | K40: 3305022.14 | L40: 14578191.91 | M40: 26585.78 | N40: 544777056.5 | O40: 1209692.57 | P40: 2851107707 | Q40: 3669782.23 | R40: 3120062340 | S40: 4160926.71 | T40: 3105484148 | U40: 1550589172
A41: 2020 | B41: MILTON HYDRO DISTRIBUTION INC. | F41: 53496024 | G41: 84345 | H41: 408175994 | I41: 86143 | J41: 446349358 | K41: 1010727 | L41: 4419712 | M41: 9228 | N41: 276753344 | O41: 553511 | P41: 858945064 | Q41: 1106098 | R41: 912441088 | S41: 1190443 | T41: 908021376 | U41: 499845382
A42: 2020 | B42: NEWMARKET-TAY POWER DISTRIBUTION LTD. | F42: 96191415 | G42: 169792 | H42: 440109771 | I42: 124566 | J42: 278015871 | K42: 668164 | L42: 10276031 | M42: 50468 | N42: 124824783 | O42: 264638 | P42: 728401673 | Q42: 843198 | R42: 824593088 | S42: 1012990 | T42: 814317057 | U42: 374207286
A43: 2020 | B43: NIAGARA PENINSULA ENERGY INC. | F43: 87752216 | G43: 143096 | H43: 523526294 | I43: 14131 | J43: 595671400 | K43: 1490330 | L43: 3070169 | M43: 5800 | N43: 202624554 | O43: 471812 | P43: 1122267863 | Q43: 1510261 | R43: 1210020079 | S43: 1653357 | T43: 1206949910 | U43: 683423616
A44: 2020 | B44: NIAGARA-ON-THE-LAKE HYDRO INC. | F44: 19341875.73 | G44: 37573 | H44: 116852324.8 | I44: 13915.68 | J44: 93118604.78 | K44: 252241.93 | L44: 0 | M44: 0 | N44: 35841899.44 | O44: 107227.2 | P44: 209970929.6 | Q44: 266157.61 | R44: 229312805.3 | S44: 303731.1 | T44: 229312805.3 | U44: 112460480.5
A45: 2020 | B45: NORTH BAY HYDRO DISTRIBUTION LIMITED | F45: 50625869.53 | G45: 91622 | H45: 273948238.8 | I45: 46963.88 | J45: 171187702 | K45: 419983.38 | L45: 0 | M45: 0 | N45: 44341187.83 | O45: 93047.48 | P45: 445135940.9 | Q45: 466947.26 | R45: 495761810.4 | S45: 558570.18 | T45: 495761810.4 | U45: 221813571.6
A46: 2020 | B46: NORTHERN ONTARIO WIRES INC. | F46: 16097098 | G46: 33601 | H46: 53048833 | I46: 0 | J46: 48309449 | K46: 138917 | L46: 0 | M46: 0 | N46: 23758522 | O46: 74518 | P46: 101358282 | Q46: 138917 | R46: 117455380 | S46: 172518 | T46: 117455380 | U46: 64406547
A47: 2020 | B47: OAKVILLE HYDRO ELECTRICITY DISTRIBUTION INC. | F47: 169724359.4 | G47: 329808 | H47: 801492810.3 | I47: 15853.59 | J47: 583664393.7 | K47: 1689552.76 | L47: 4047657.56 | M47: 8027.89 | N47: 179151972.8 | O47: 385902.7 | P47: 1389204862 | Q47: 1713434.24 | R47: 1558929221 | S47: 2043243.13 | T47: 1554881563 | U47: 753388753.2
A48: 2020 | B48: ORANGEVILLE HYDRO LIMITED | F48: 33642138.79 | G48: 61542 | H48: 125081745.6 | I48: 24902.02 | J48: 90552836.24 | K48: 209510.93 | L48: 2981689.24 | M48: 5653.66 | N48: 54676133.9 | O48: 105163.96 | P48: 218616271.1 | Q48: 240066.61 | R48: 252258409.9 | S48: 301608.63 | T48: 249276720.6 | U48: 124194975
A49: 2020 | B49: ORILLIA POWER DISTRIBUTION CORPORATION | F49: 39056693 | G49: 65598 | H49: 160300163 | I49: 55279 | J49: 115166000 | K49: 282631 | L49: 2769406 | M49: 5430 | N49: 60088068 | O49: 146863 | P49: 278235569 | Q49: 343340 | R49: 317292262 | S49: 408938 | T49: 314522856 | U49: 154222693
A50: 2020 | B50: OSHAWA PUC NETWORKS INC. | F50: 71434068 | G50: 106400 | H50: 672800558 | I50: 248344 | J50: 298723064 | K50: 737525 | L50: 6533879 | M50: 12465 | N50: 90242032 | O50: 200157 | P50: 978057501 | Q50: 998334 | R50: 1049491569 | S50: 1104734 | T50: 1042957690 | U50: 370157132
A51: 2020 | B51: OTTAWA RIVER POWER CORPORATION | F51: 21308040 | G51: 37885 | H51: 120619011 | I51: 40861 | J51: 41585877 | K51: 155195 | L51: 0 | M51: 0 | N51: 1305027.12 | O51: 5703.36 | P51: 162204888 | Q51: 196056 | R51: 183512928 | S51: 233941 | T51: 183512928 | U51: 62893917
A52: 2020 | B52: PETERBOROUGH DISTRIBUTION INCORPORATED | F52: 115534314.4 | G52: 210226 | H52: 426295632.8 | I52: 112850.12 | J52: 219832478.8 | K52: 531932.1 | L52: 0 | M52: 5209 | N52: 122349066 | O52: 259899 | P52: 646128111.5 | Q52: 649991.22 | R52: 761662426 | S52: 860218.22 | T52: 761662426 | U52: 335366793.2
A53: 2020 | B53: PUC DISTRIBUTION INC. | F53: 66424123.27 | G53: 101709 | H53: 406959170.7 | I53: 116043.95 | J53: 158562520.1 | K53: 384467.04 | L53: 0 | M53: 0 | N53: 35960742 | O53: 89900 | P53: 565521690.8 | Q53: 500510.99 | R53: 631945814 | S53: 602220.69 | T53: 631945814 | U53: 224986643.4
A54: 2020 | B54: RENFREW HYDRO INC. | F54: 7068695.47 | G54: 9005 | H54: 42528775 | I54: 0 | J54: 36787287 | K54: 90503 | L54: 0 | M54: 0 | N54: 12768084.02 | O54: 24739.26 | P54: 79316062 | Q54: 90503 | R54: 86384757.47 | S54: 99508.79 | T54: 86384757.47 | U54: 43855982.47
A55: 2020 | B55: RIDEAU ST. LAWRENCE DISTRIBUTION INC. | F55: 8326720 | G55: 12696 | H55: 60890011 | I55: 5964.95 | J55: 31002361 | K55: 93261.88 | L55: 0 | M55: 0 | N55: 7983849 | O55: 25619 | P55: 91892372 | Q55: 99226.83 | R55: 100219092 | S55: 111922.94 | T55: 100219092 | U55: 39329081
A56: 2020 | B56: SIOUX LOOKOUT HYDRO INC. | F56: 6783475.7 | G56: 0 | H56: 54722673.89 | I56: 11072.19 | J56: 19031574.21 | K56: 41537.29 | L56: 0 | M56: 0 | N56: 0 | O56: 0 | P56: 73754248.1 | Q56: 52609.48 | R56: 80537723.8 | S56: 52609.48 | T56: 80537723.8 | U56: 25815049.91
A57: 2020 | B57: SYNERGY NORTH CORPORATION | F57: 43537567.31 | G57: 53299 | H57: 536232423.9 | I57: 98583.34 | J57: 400546333 | K57: 1087671.03 | L57: 0 | M57: 0 | N57: 127674309.2 | O57: 340435.96 | P57: 936778756.8 | Q57: 1186254.37 | R57: 980316324.1 | S57: 1239554.08 | T57: 980316324.1 | U57: 444083900.3
A58: 2020 | B58: TILLSONBURG HYDRO INC. | F58: 31268618.43 | G58: 72622 | H58: 74180702.72 | I58: 16086.09 | J58: 68725439.33 | K58: 187888.85 | L58: 0 | M58: 0 | N58: 42367786.97 | O58: 89627.21 | P58: 142906142.1 | Q58: 203974.94 | R58: 174174760.5 | S58: 276597.85 | T58: 174174760.5 | U58: 99994057.76
A59: 2020 | B59: TORONTO HYDRO-ELECTRIC SYSTEM LIMITED | F59: 2404106122 | G59: 4726932 | H59: 1.001365467e+10 | I59: 7279403.743 | J59: 1.125868898e+10 | K59: 27046461.62 | L59: 297526414 | M59: 587486.1406 | N59: 5475133418 | O59: 11524057.69 | P59: 2.156987006e+10 | Q59: 34913351.5 | R59: 2.397397618e+10 | S59: 39640283.69 | T59: 2.367644977e+10 | U59: 1.36627951e+10
A60: 2020 | B60: WASAGA DISTRIBUTION INC. | F60: 5666829 | G60: 8806 | H60: 110677510 | I60: 0 | J60: 14641813 | K60: 37133.76 | L60: 2668244 | M60: 5263.75 | N60: 0 | O60: 0 | P60: 127987567 | Q60: 42397.51 | R60: 133654396 | S60: 51204.41 | T60: 130986152 | U60: 20308642
A61: 2020 | B61: WATERLOO NORTH HYDRO INC. | F61: 141815891 | G61: 0 | H61: 658616599 | I61: 187453 | J61: 629006499 | K61: 1815569 | L61: 8606064 | M61: 18270 | N61: 291537126 | O61: 0 | P61: 1296229162 | Q61: 2021292 | R61: 1438045053 | S61: 2021292 | T61: 1429438989 | U61: 770822390
A62: 2020 | B62: WELLAND HYDRO-ELECTRIC SYSTEM CORP. | F62: 18383460 | G62: 16815 | H62: 217495982 | I62: 39758 | J62: 131899355 | K62: 359377 | L62: 2829418 | M62: 5114 | N62: 33268121 | O62: 109709 | P62: 352224755 | Q62: 404249 | R62: 370608215 | S62: 421064 | T62: 367778797 | U62: 150282815
A63: 2020 | B63: WELLINGTON NORTH POWER INC. | F63: 30820940.47 | G63: 59486 | H63: 33434893.57 | I63: 48.38 | J63: 34318492.99 | K63: 90245.05 | L63: 0 | M63: 0 | N63: 47435897.18 | O63: 102890.4 | P63: 67753386.56 | Q63: 90293.43 | R63: 98574327.03 | S63: 149780.24 | T63: 98574327.03 | U63: 65139433.46
A64: 2020 | B64: WESTARIO POWER INC. | F64: 89228112 | G64: 155994 | H64: 242809299 | I64: 15601 | J64: 108932499 | K64: 272634 | L64: 2687566 | M64: 6518 | N64: 81697050 | O64: 186612 | P64: 354429364 | Q64: 294753 | R64: 443657476 | S64: 450747 | T64: 440969910 | U64: 198160611

Sheet RRR_2020 (hidden)
A1: 2.1.5 TotalConsumptionData_Dist_Ret_Total_Combined_Without RateClass_2020_v2
A2: Time run: 6/16/2021 4:49:12 PM
T3: H + F + J | U3: F + J
A4: Filing_Year | B4: Company_Name | F4: Ret_Metered_consumption_in_kWhs | G4: Ret_Metered_consumption_in_kWs | H4: Dist_RPPMeterCustkWh | I4: Dist_RPPMeterCustkW | J4: Dist_NonRPPMeterCustkWh | K4: Dist_NonRPPMeterCustkW | L4: IESOMeterCustkWh | M4: IESOMeterCustKW | N4: Class_A_Consumption_kWhs | O4: Class_A_Consumption_kWs | P4: TotConsmptionforDistCustkWh | Q4: TotConsmptionforDistCustkW | R4: Calculated_TOTAL_KWH | S4: Calculated_TOTAL_KW | T4: Total Metered Excluding WMP | U4: Non RPP
A5: 2021 | B5: 1937680 ONTARIO INC. | F5: 110264267 | G5: 197497 | H5: 437816214 | I5: 128011 | J5: 202934553 | K5: 492106 | L5: 0 | M5: 5278 | N5: 115957906 | O5: 242416 | P5: 640750767 | Q5: 625395 | R5: 751015034 | S5: 822892 | T5: 751015034 | U5: 313198820
A6: 2021 | B6: ALECTRA UTILITIES CORPORATION | F6: 2525742733 | G6: 5181518 | H6: 1.141034608e+10 | I6: 3079758.68 | J6: 1.144804188e+10 | K6: 28662490.35 | L6: 827007387.3 | M6: 1394965.56 | N6: 5946341456 | O6: 12262885.04 | P6: 2.368539534e+10 | Q6: 33137214.59 | R6: 2.621113808e+10 | S6: 38318732.59 | T6: 2.538413069e+10 | U6: 1.397378461e+10
A7: 2021 | B7: ALGOMA POWER INC. | F7: 7314397.05 | G7: 9840 | H7: 125568566.3 | I7: 13674.34 | J7: 96257256.47 | K7: 211025.23 | L7: 0 | M7: 0 | N7: 78703754.1 | O7: 147690.22 | P7: 221825822.8 | Q7: 224699.57 | R7: 229140219.8 | S7: 234539.94 | T7: 229140219.8 | U7: 103571653.5
A8: 2021 | B8: ATIKOKAN HYDRO INC. | F8: 1087992.93 | G8: 2121 | H8: 13425982.48 | I8: 0 | J8: 15983952.5 | K8: 46301.76 | L8: 0 | M8: 0 | N8: 11196734 | O8: 35416.67 | P8: 29409934.98 | Q8: 46301.76 | R8: 30497927.91 | S8: 48423.2 | T8: 30497927.91 | U8: 17071945.43
A9: 2021 | B9: BLUEWATER POWER DISTRIBUTION CORPORATION | F9: 53701595 | G9: 98622 | H9: 386377896 | I9: 122389 | J9: 406618525 | K9: 818113 | L9: 110220914 | M9: 185942 | N9: 299485009 | O9: 530547 | P9: 903217335 | Q9: 1126444 | R9: 956918930 | S9: 1225066 | T9: 846698016 | U9: 460320120
A10: 2021 | B10: BRANTFORD POWER INC. | F10: 93012170.49 | G10: 223306 | H10: 411203331.4 | I10: 77800.58 | J10: 428932728 | K10: 1149127.66 | L10: 49059529.37 | M10: 112260.93 | N10: 208309021.1 | O10: 424940 | P10: 889195588.8 | Q10: 1339189.17 | R10: 982207759.3 | S10: 1562495.2 | T10: 933148229.9 | U10: 521944898.5
A11: 2021 | B11: BURLINGTON HYDRO INC. | F11: 124324848 | G11: 299098 | H11: 806133163 | I11: 335053 | J11: 574334702 | K11: 1564525 | L11: 0 | M11: 0 | N11: 188143335 | O11: 482407 | P11: 1380467865 | Q11: 1899578 | R11: 1504792713 | S11: 2198676 | T11: 1504792713 | U11: 698659550
A12: 2021 | B12: CANADIAN NIAGARA POWER INC. | F12: 23159677.92 | G12: 31043 | H12: 286866305.9 | I12: 50536.46 | J12: 151605493.2 | K12: 466315.03 | L12: 0 | M12: 0 | N12: 69967994.7 | O12: 229622.35 | P12: 438471799.1 | Q12: 516851.49 | R12: 461631477 | S12: 547894.79 | T12: 461631477 | U12: 174765171.1
A13: 2021 | B13: CENTRE WELLINGTON HYDRO LTD. | F13: 15652695 | G13: 28237 | H13: 68991717.24 | I13: 4449.14 | J13: 54239172.58 | K13: 145335.38 | L13: 2742231.82 | M13: 5245.35 | N13: 18333712.8 | O13: 47599.3 | P13: 125973121.6 | Q13: 155029.87 | R13: 141625816.6 | S13: 183267.5 | T13: 138883584.8 | U13: 69891867.58
A14: 2021 | B14: CHAPLEAU PUBLIC UTILITIES CORPORATION | F14: 714434 | G14: 1284 | H14: 18356701 | I14: 793 | J14: 4378625 | K14: 12918 | L14: 0 | M14: 0 | N14: 0 | O14: 0 | P14: 22735326 | Q14: 13711 | R14: 23449760 | S14: 14995.4 | T14: 23449760 | U14: 5093059
A15: 2021 | B15: COOPERATIVE HYDRO EMBRUN INC. | F15: 958931 | G15: 0 | H15: 25536089 | I15: 0 | J15: 2420926 | K15: 10064 | L15: 0 | M15: 0 | N15: 0 | O15: 0 | P15: 27957015 | Q15: 10064 | R15: 28915946 | S15: 10064 | T15: 28915946 | U15: 3379857
A16: 2021 | B16: CORNWALL STREET RAILWAY LIGHT AND POWER COMPANY LIMITED | F16: 0 | G16: 0 | H16: 0 | I16: 0 | J16: 0 | K16: 0 | L16: 0 | M16: 0 | P16: 0 | Q16: 0 | R16: 0 | S16: 0 | T16: 0 | U16: 0
A17: 2021 | B17: E.L.K. ENERGY INC. | F17: 0 | G17: 0 | H17: 138000152 | I17: 5078 | J17: 101102624 | K17: 265407 | L17: 0 | M17: 0 | N17: 18907938 | O17: 63611.52 | P17: 239102776 | Q17: 270485 | R17: 239102776 | S17: 270485 | T17: 239102776 | U17: 101102624
A18: 2021 | B18: ELEXICON ENERGY INC. | F18: 268154034 | G18: 450197 | H18: 1834688591 | I18: 356881 | J18: 1333475212 | K18: 2985484 | L18: 38750816 | M18: 70779 | N18: 736462350 | O18: 1424447 | P18: 3206914619 | Q18: 3413144 | R18: 3475068653 | S18: 3863341 | T18: 3436317837 | U18: 1601629246
A19: 2021 | B19: ENERGY+ INC. | F19: 174054452.8 | G19: 409214 | H19: 734905299.9 | I19: 172723.12 | J19: 699405305.3 | K19: 1920547.18 | L19: 98343365.39 | M19: 934263.03 | N19: 329931323.6 | O19: 837085.68 | P19: 1532653971 | Q19: 3027533.33 | R19: 1706708423 | S19: 3436747.54 | T19: 1608365058 | U19: 873459758.1
A20: 2021 | B20: ENTEGRUS POWERLINES INC. | F20: 178258809 | G20: 339034 | H20: 577734739 | I20: 129076 | J20: 408308042 | K20: 1126707 | L20: 9991343 | M20: 24863 | N20: 256610387 | O20: 583352 | P20: 996034124 | Q20: 1280646 | R20: 1174292933 | S20: 1619680 | T20: 1164301590 | U20: 586566851
A21: 2021 | B21: ENWIN UTILITIES LTD. | F21: 140053449 | G21: 270155 | H21: 966747541.6 | I21: 399802.04 | J21: 861774021.4 | K21: 2130569.06 | L21: 185372465 | M21: 336589.51 | N21: 504101767.7 | O21: 1160873 | P21: 2013894028 | Q21: 2866960.61 | R21: 2153947477 | S21: 3137116.22 | T21: 1968575012 | U21: 1001827470
A22: 2021 | B22: EPCOR ELECTRICITY DISTRIBUTION ONTARIO INC. | F22: 29743517.02 | G22: 48565 | H22: 176654209.6 | I22: 22742.91 | J22: 88367945.98 | K22: 215671.64 | L22: 2539213.02 | M22: 4917.27 | N22: 48385446.16 | O22: 106918.85 | P22: 267561368.6 | Q22: 243331.82 | R22: 297304885.6 | S22: 291897.71 | T22: 294765672.6 | U22: 118111463
A23: 2021 | B23: ERTH POWER CORPORATION | F23: 68011485 | G23: 127625 | H23: 231287278 | I23: 32174 | J23: 276488070 | K23: 611602 | L23: 74563562 | M23: 197773 | N23: 216950291 | O23: 429387.75 | P23: 582338910 | Q23: 841549 | R23: 650350395 | S23: 969174 | T23: 575786833 | U23: 344499555
A24: 2021 | B24: ESPANOLA REGIONAL HYDRO DISTRIBUTION CORPORATION | F24: 7242900.73 | G24: 13072 | H24: 41124493.91 | I24: 387.32 | J24: 7770010.8 | K24: 19989.97 | L24: 0 | M24: 0 | N24: 0 | O24: 0 | P24: 48894504.71 | Q24: 20377.29 | R24: 56137405.44 | S24: 33449.83 | T24: 56137405.44 | U24: 15012911.53
A25: 2021 | B25: ESSEX POWERLINES CORPORATION | F25: 62214686.78 | G25: 170636 | H25: 336538643.8 | I25: 69054.24 | J25: 127429093.4 | K25: 378028 | L25: 10003470.03 | M25: 18968.35 | N25: 28696443.1 | O25: 69594.95 | P25: 473971207.2 | Q25: 466050.59 | R25: 536185894 | S25: 636687.45 | T25: 526182423.9 | U25: 189643780.2
A26: 2021 | B26: FESTIVAL HYDRO INC. | F26: 82343549 | G26: 208668 | H26: 205634847.9 | I26: 42058.05 | J26: 302771729.1 | K26: 663416.94 | L26: 3347054.46 | M26: 55632.4 | N26: 250809335.2 | O26: 561209.59 | P26: 511753631.4 | Q26: 761107.39 | R26: 594097180.4 | S26: 969775.39 | T26: 590750126 | U26: 385115278.1
A27: 2021 | B27: FORT FRANCES POWER CORPORATION | F27: 383112.14 | G27: 0 | H27: 55064499 | I27: 0 | J27: 15584310 | K27: 47713 | L27: 0 | M27: 0 | N27: 0 | O27: 0 | P27: 70648809 | Q27: 47713 | R27: 71031921.14 | S27: 47713 | T27: 71031921.14 | U27: 15967422.14
A28: 2021 | B28: GREATER SUDBURY HYDRO INC. | F28: 80852425.69 | G28: 125665 | H28: 540379778.2 | I28: 149994.82 | J28: 213461518.1 | K28: 511709.42 | L28: 3291003.43 | M28: 6257.46 | N28: 63842839.36 | O28: 127307.35 | P28: 757132299.8 | Q28: 667961.7 | R28: 837984725.4 | S28: 793627.15 | T28: 834693722 | U28: 294313943.8
A29: 2021 | B29: GRIMSBY POWER INCORPORATED | F29: 15434287.13 | G29: 27360 | H29: 120664984.8 | I29: 13360.43 | J29: 107623677.3 | K29: 301124.51 | L29: 3220636.58 | M29: 6393.31 | N29: 5292286.3 | O29: 12408.73 | P29: 231509298.7 | Q29: 320878.25 | R29: 246943585.8 | S29: 348239.01 | T29: 243722949.3 | U29: 123057964.4
A30: 2021 | B30: HALTON HILLS HYDRO INC. | F30: 55102269 | G30: 112714 | H30: 266978897 | I30: 34275 | J30: 177634218 | K30: 477271 | L30: 3683237 | M30: 6989 | N30: 69749927 | O30: 145039 | P30: 448296352 | Q30: 518535 | R30: 503398621 | S30: 631249 | T30: 499715384 | U30: 232736487
A31: 2021 | B31: HEARST POWER DISTRIBUTION CO. LTD. | F31: 1171351.8 | G31: 1964 | H31: 33987228.93 | I31: 7914.2 | J31: 39236960.42 | K31: 115596.87 | L31: 0 | M31: 0 | N31: 26278009.32 | O31: 81903.88 | P31: 73224189.35 | Q31: 123511.07 | R31: 74395541.15 | S31: 125475.43 | T31: 74395541.15 | U31: 40408312.22
A32: 2021 | B32: HYDRO 2000 INC. | F32: 785941 | G32: 0 | H32: 16544492 | I32: 0 | J32: 3093576 | K32: 9673.3 | L32: 0 | M32: 0 | N32: 0 | O32: 0 | P32: 19638068 | Q32: 9673.3 | R32: 20424009 | S32: 9673.3 | T32: 20424009 | U32: 3879517
A33: 2021 | B33: HYDRO HAWKESBURY INC. | F33: 15349780.19 | G33: 24497 | H33: 62831181 | I33: 136 | J33: 58893786 | K33: 153597 | L33: 0 | M33: 0 | N33: 13664277 | O33: 32248 | P33: 121724967 | Q33: 153733 | R33: 137074747.2 | S33: 178230.03 | T33: 137074747.2 | U33: 74243566.19
A34: 2021 | B34: HYDRO ONE NETWORKS INC. | F34: 2345661983 | G34: 4162240 | H34: 1.588966205e+10 | I34: 1764778.01 | J34: 7793504713 | K34: 22269344.12 | L34: 9949659113 | M34: 19900942 | N34: 4186146406 | O34: 9522854.75 | P34: 3.363282588e+10 | Q34: 43935064.13 | R34: 3.597848786e+10 | S34: 48097304.49 | T34: 2.602882875e+10 | U34: 1.01391667e+10
A35: 2021 | B35: HYDRO ONE REMOTE COMMUNITIES INC. | F35: 0 | G35: 0 | H35: 0 | I35: 0 | J35: 0 | K35: 0 | L35: 0 | M35: 0 | N35: 0 | O35: 0 | P35: 0 | Q35: 0 | R35: 0 | S35: 0 | T35: 0 | U35: 0
A36: 2021 | B36: HYDRO OTTAWA LIMITED | F36: 447228753 | G36: 736635 | H36: 3324671135 | I36: 826568 | J36: 3262093758 | K36: 7426118 | L36: 32404319 | M36: 94176 | N36: 1316072090 | O36: 2548531 | P36: 6619169212 | Q36: 8346862 | R36: 7066397965 | S36: 9083497 | T36: 7033993646 | U36: 3709322511
A37: 2021 | B37: INNPOWER CORPORATION | F37: 12751358.15 | G37: 16935 | H37: 208348286.2 | I37: 8634.27 | J37: 54793178.12 | K37: 130393.2 | L37: 0 | M37: 0 | N37: 10131924.78 | O37: 22716.58 | P37: 263141464.3 | Q37: 139027.47 | R37: 275892822.5 | S37: 155963.42 | T37: 275892822.5 | U37: 67544536.27
A38: 2021 | B38: KINGSTON HYDRO CORPORATION | F38: 111582633 | G38: 202219 | H38: 291689180.7 | I38: 92273.54 | J38: 253033373.3 | K38: 596151.43 | L38: 3589567.13 | M38: 6261.78 | N38: 190731299.9 | O38: 408158.74 | P38: 548312121.1 | Q38: 694686.75 | R38: 659894754 | S38: 896906.26 | T38: 656305186.9 | U38: 364616006.2
A39: 2021 | B39: KITCHENER-WILMOT HYDRO INC. | F39: 171486044.2 | G39: 375741 | H39: 1017526316 | I39: 0 | J39: 557470232.4 | K39: 1730857.05 | L39: 33278455.63 | M39: 87690.84 | N39: 258991768.7 | O39: 623261.6 | P39: 1608275004 | Q39: 1818547.89 | R39: 1779761048 | S39: 2194289.6 | T39: 1746482592 | U39: 728956276.6
A40: 2021 | B40: LAKEFRONT UTILITIES INC. | F40: 49809031.03 | G40: 104826 | H40: 190365708.4 | I40: 226538.91 | J40: 0 | K40: 0 | L40: 0 | M40: 0 | N40: 64538994.28 | O40: 146455 | P40: 190365708.4 | Q40: 226538.91 | R40: 240174739.4 | S40: 331365.34 | T40: 240174739.4 | U40: 49809031.03
A41: 2021 | B41: LAKELAND POWER DISTRIBUTION LTD. | F41: 30309928.16 | G41: 45450 | H41: 162499095.9 | I41: 17453.78 | J41: 93363362.77 | K41: 231042.1 | L41: 0 | M41: 0 | N41: 47392497 | O41: 101885 | P41: 255862458.6 | Q41: 248495.88 | R41: 286172386.8 | S41: 293946.69 | T41: 286172386.8 | U41: 123673290.9
A42: 2021 | B42: LONDON HYDRO INC. | F42: 251073819.8 | G42: 457660 | H42: 1637995870 | I42: 426303.01 | J42: 1178789040 | K42: 3000563.08 | L42: 15096527.83 | M42: 29024.55 | N42: 507754510.1 | O42: 1193453.3 | P42: 2831881438 | Q42: 3455890.64 | R42: 3082955257 | S42: 3913551.57 | T42: 3067858730 | U42: 1429862860
A43: 2021 | B43: MILTON HYDRO DISTRIBUTION INC. | F43: 48174787 | G43: 80723 | H43: 444778779 | I43: 69902 | J43: 416499649 | K43: 970264 | L43: 4342865 | M43: 9041 | N43: 263205127 | O43: 517046 | P43: 865621293 | Q43: 1049207 | R43: 913796080 | S43: 1129930 | T43: 909453215 | U43: 464674436
A44: 2021 | B44: NEWMARKET-TAY POWER DISTRIBUTION LTD. | F44: 90880802.08 | G44: 173787 | H44: 460974628.8 | I44: 55683 | J44: 255990090.1 | K44: 685312.8 | L44: 12512518 | M44: 55617 | N44: 91273937 | O44: 255956.1 | P44: 729477236.9 | Q44: 796612.8 | R44: 820358039 | S44: 970400.32 | T44: 807845521 | U44: 346870892.2
A45: 2021 | B45: NIAGARA PENINSULA ENERGY INC. | F45: 78458851 | G45: 133698 | H45: 545130506 | I45: 911 | J45: 522438653 | K45: 1318893 | L45: 2939507 | M45: 5663 | N45: 143401848 | O45: 343288 | P45: 1070508666 | Q45: 1325467 | R45: 1148967517 | S45: 1459165 | T45: 1146028010 | U45: 600897504
A46: 2021 | B46: NIAGARA-ON-THE-LAKE HYDRO INC. | F46: 18008307.19 | G46: 37027 | H46: 118641630.4 | I46: 10754.04 | J46: 85411178.35 | K46: 235200.71 | L46: 0 | M46: 0 | N46: 30407916.6 | O46: 97952.1 | P46: 204052808.7 | Q46: 245954.75 | R46: 222061115.9 | S46: 282982.2 | T46: 222061115.9 | U46: 103419485.5
A47: 2021 | B47: NORTH BAY HYDRO DISTRIBUTION LIMITED | F47: 45214358.05 | G47: 86450 | H47: 271883361.7 | I47: 47881.11 | J47: 159552500.2 | K47: 393524.44 | L47: 0 | M47: 0 | N47: 40971371.72 | O47: 89566.39 | P47: 431435861.9 | Q47: 441405.55 | R47: 476650220 | S47: 527855.95 | T47: 476650220 | U47: 204766858.2
A48: 2021 | B48: NORTHERN ONTARIO WIRES INC. | F48: 15221119 | G48: 30503 | H48: 52999559 | I48: 0 | J48: 46782861 | K48: 132084 | L48: 0 | M48: 0 | N48: 24067489 | O48: 71690 | P48: 99782420 | Q48: 132084 | R48: 115003539 | S48: 162587 | T48: 115003539 | U48: 62003980
A49: 2021 | B49: OAKVILLE HYDRO ELECTRICITY DISTRIBUTION INC. | F49: 154618829.9 | G49: 307515 | H49: 857696252.3 | I49: 237994.66 | J49: 545391396.5 | K49: 1363549.56 | L49: 4173859.04 | M49: 7724.84 | N49: 0 | O49: 378845.01 | P49: 1407261508 | Q49: 1609269.06 | R49: 1561880338 | S49: 1916784.52 | T49: 1557706479 | U49: 700010226.4
A50: 2021 | B50: ORANGEVILLE HYDRO LIMITED | F50: 29465562.45 | G50: 53304 | H50: 129619170.6 | I50: 11899.97 | J50: 92428718.44 | K50: 216286.48 | L50: 2833631.12 | M50: 5460.18 | N50: 59082613.49 | O50: 115396.77 | P50: 224881520.2 | Q50: 233646.63 | R50: 254347082.6 | S50: 286950.95 | T50: 251513451.5 | U50: 121894280.9
A51: 2021 | B51: ORILLIA POWER DISTRIBUTION CORPORATION | F51: 37046147 | G51: 64510 | H51: 158433073 | I51: 49139 | J51: 107300095 | K51: 270049 | L51: 2852029 | M51: 5596 | N51: 57124368 | O51: 145172 | P51: 268585197 | Q51: 324784 | R51: 305631344 | S51: 389294 | T51: 302779315 | U51: 144346242
A52: 2021 | B52: OSHAWA PUC NETWORKS INC. | F52: 64353892 | G52: 94101 | H52: 709511182 | I52: 265875 | J52: 261808793 | K52: 662546 | L52: 6595334 | M52: 12747 | N52: 83195958 | O52: 189436 | P52: 977915309 | Q52: 941168 | R52: 1042269201 | S52: 1035269 | T52: 1035673867 | U52: 326162685
A53: 2021 | B53: OTTAWA RIVER POWER CORPORATION | F53: 21411435 | G53: 31237 | H53: 118508116 | I53: 38610.56 | J53: 38433687 | K53: 150089.26 | L53: 0 | M53: 0 | N53: 3066581.88 | O53: 9971.04 | P53: 156941803 | Q53: 188699.82 | R53: 178353238 | S53: 219937.08 | T53: 178353238 | U53: 59845122
A54: 2021 | B54: PUC DISTRIBUTION INC. | F54: 55044762.45 | G54: 81051 | H54: 407902888.6 | I54: 120254.15 | J54: 150684548.4 | K54: 353400.97 | L54: 0 | M54: 0 | N54: 37839473.02 | O54: 88926.66 | P54: 558587437 | Q54: 473655.12 | R54: 613632199.4 | S54: 554706.94 | T54: 613632199.4 | U54: 205729310.8
A55: 2021 | B55: RENFREW HYDRO INC. | F55: 7036171.37 | G55: 10043 | H55: 44333939 | I55: 0 | J55: 33242698 | K55: 84686 | L55: 0 | M55: 0 | N55: 13146991.67 | O55: 25099.09 | P55: 77576637 | Q55: 84686 | R55: 84612808.37 | S55: 94729.72 | T55: 84612808.37 | U55: 40278869.37
A56: 2021 | B56: RIDEAU ST. LAWRENCE DISTRIBUTION INC. | F56: 7244139 | G56: 10353 | H56: 61686603 | I56: 7447.4 | J56: 30513173 | K56: 93359 | L56: 0 | M56: 0 | N56: 919193478 | O56: 29177 | P56: 92199776 | Q56: 100806.4 | R56: 99443915 | S56: 111160.03 | T56: 99443915 | U56: 37757312
A57: 2021 | B57: SIOUX LOOKOUT HYDRO INC. | F57: 1629299.53 | G57: 2406 | H57: 53021908.05 | I57: 8922.05 | J57: 23888320 | K57: 56381.62 | L57: 0 | M57: 0 | N57: 0 | O57: 0 | P57: 76910228.05 | Q57: 65303.67 | R57: 78539527.58 | S57: 67710.38 | T57: 78539527.58 | U57: 25517619.53
A58: 2021 | B58: SYNERGY NORTH CORPORATION | F58: 40303882.1 | G58: 44765 | H58: 533552812.4 | I58: 101404.42 | J58: 370299509.8 | K58: 1020367.24 | L58: 0 | M58: 0 | N58: 124175831 | O58: 334200.48 | P58: 903852322.1 | Q58: 1121771.66 | R58: 944156204.2 | S58: 1166537.15 | T58: 944156204.2 | U58: 410603391.9
A59: 2021 | B59: TILLSONBURG HYDRO INC. | F59: 28542338.95 | G59: 68719 | H59: 78661359.55 | I59: 90282.53 | J59: 63048012.06 | K59: 105080.38 | L59: 0 | M59: 0 | N59: 34626840.15 | O59: 94370 | P59: 141709371.6 | Q59: 195362.91 | R59: 170251710.6 | S59: 264082.49 | T59: 170251710.6 | U59: 91590351.01
A60: 2021 | B60: TORONTO HYDRO-ELECTRIC SYSTEM LIMITED | F60: 2228304767 | G60: 4439180 | H60: 1.028554449e+10 | I60: 7327811.02 | J60: 1.043970483e+10 | K60: 24998000.14 | L60: 298858277.7 | M60: 574443.74 | N60: 5196986949 | O60: 10790058.7 | P60: 2.10241076e+10 | Q60: 32900254.9 | R60: 2.325241236e+10 | S60: 37339435.71 | T60: 2.295355409e+10 | U60: 1.266800959e+10
A61: 2021 | B61: WASAGA DISTRIBUTION INC. | F61: 5036790 | G61: 8141 | H61: 117994661 | I61: 1592.64 | J61: 13715273 | K61: 35121.04 | L61: 2734869.57 | M61: 5526.12 | N61: 0 | O61: 0 | P61: 134444803.6 | Q61: 42239.8 | R61: 139481593.6 | S61: 50381.54 | T61: 136746724 | U61: 18752063
A62: 2021 | B62: WATERLOO NORTH HYDRO INC. | F62: 128453641 | G62: 0 | H62: 682992733 | I62: 254154 | J62: 572543595 | K62: 1619976 | L62: 7939234 | M62: 16282 | N62: 263651994 | O62: 0 | P62: 1263475562 | Q62: 1890412 | R62: 1391929203 | S62: 1890412 | T62: 1383989969 | U62: 700997236
A63: 2021 | B63: WELLAND HYDRO-ELECTRIC SYSTEM CORP. | F63: 17294548 | G63: 17222 | H63: 219666822 | I63: 2951 | J63: 124917963 | K63: 362058 | L63: 2757773 | M63: 4924 | N63: 32842150 | O63: 118895 | P63: 347342558 | Q63: 369933 | R63: 364637106 | S63: 387155 | T63: 361879333 | U63: 142212511
A64: 2021 | B64: WELLINGTON NORTH POWER INC. | F64: 28638744.6 | G64: 58880 | H64: 34669326.78 | I64: 48.94 | J64: 31029744.45 | K64: 84401.31 | L64: 0 | M64: 0 | N64: 43533655.03 | O64: 98239.6 | P64: 65699071.23 | Q64: 84450.25 | R64: 94337815.83 | S64: 143331.23 | T64: 94337815.83 | U64: 59668489.05
A65: 2021 | B65: WESTARIO POWER INC. | F65: 84128710 | G65: 145219 | H65: 245123109 | I65: 14955 | J65: 105985900 | K65: 268099 | L65: 1921209 | M65: 4601 | N65: 86104847 | O65: 198081 | P65: 353030218 | Q65: 287655 | R65: 437158928 | S65: 432874 | T65: 435237719 | U65: 190114610

Sheet RRR_2021 (hidden)
A1: 2.1.5 TotalConsumptionData_Dist_Ret_Total_Combined_Without RateClass_2020_v2
T3: H + F + J | U3: F + J
A4: Filing_Year | B4: Company_Name | F4: Ret_Metered_consumption_in_kWhs | G4: Ret_Metered_consumption_in_kWs | H4: Dist_RPPMeterCustkWh | I4: Dist_RPPMeterCustkW | J4: Dist_NonRPPMeterCustkWh | K4: Dist_NonRPPMeterCustkW | L4: IESOMeterCustkWh | M4: IESOMeterCustKW | N4: Class_A_Consumption_kWhs | O4: Class_A_Consumption_kWs | P4: TotConsmptionforDistCustkWh | Q4: TotConsmptionforDistCustkW | R4: Calculated_TOTAL_KWH | S4: Calculated_TOTAL_KW | T4: Total Metered Excluding WMP | U4: Non RPP
A5: 2022 | B5: Alectra Utilities Corporation | F5: 2504699608 | G5: 5149307 | H5: 11507309301 | I5: 3317629 | J5: 11523672933 | K5: 28600772 | L5: 865092714 | M5: 1503767 | N5: 6262667010 | O5: 12967616 | P5: 23896074948 | Q5: 33422168 | R5: 26400774556 | S5: 38571475 | T5: 25535681842 | U5: 14028372541
A6: 2022 | B6: Algoma Power Inc. | F6: 4987503.74 | G6: 1968.3 | H6: 126924113.8 | I6: 15987.67 | J6: 112402726.2 | K6: 235369.29 | N6: 93431047.61 | O6: 175025.41 | P6: 239326840.1 | Q6: 251356.96 | R6: 244314343.8 | S6: 253325.26 | T6: 244314343.8 | U6: 117390229.9
A7: 2022 | B7: Atikokan Hydro Inc. | F7: 1078512.86 | G7: 2244.16 | H7: 13737777.38 | J7: 16871074.55 | K7: 48435.38 | N7: 11678536 | O7: 33100.94 | P7: 30608851.93 | Q7: 48435.38 | R7: 31687364.79 | S7: 50679.54 | T7: 31687364.79 | U7: 17949587.41
A8: 2022 | B8: Bluewater Power Distribution Corporation | F8: 53144219 | G8: 99557 | H8: 391165750 | I8: 111591 | J8: 408364897 | K8: 846444 | L8: 105273048 | M8: 193483 | N8: 294521899 | O8: 537420 | P8: 904803695 | Q8: 1151518 | R8: 957947914 | S8: 1251075 | T8: 852674866 | U8: 461509116
A9: 2022 | B9: Brantford Power Inc. | F9: 91673797.06 | G9: 225963.58 | H9: 408882859.2 | I9: 78436.28 | J9: 455925079.8 | K9: 1415160.37 | L9: 50439935.36 | M9: 116449.67 | N9: 228008887.1 | O9: 576700.11 | P9: 915247874.3 | Q9: 1610046.32 | R9: 1006921671 | S9: 1836009.9 | T9: 956481736 | U9: 547598876.8
A10: 2022 | B10: Burlington Hydro Inc. | F10: 142881954 | G10: 315320 | H10: 804208250 | I10: 336132 | J10: 566753301 | K10: 1524316 | N10: 210380851 | O10: 498047 | P10: 1370961551 | Q10: 1860448 | R10: 1513843505 | S10: 2175768 | T10: 1513843505 | U10: 709635255
A11: 2022 | B11: Canadian Niagara Power Inc. | F11: 23172136.62 | G11: 43243.88 | H11: 290858786 | I11: 50460.5 | J11: 154827130.3 | K11: 487718.76 | N11: 73900656.15 | O11: 240048.38 | P11: 445685916.2 | Q11: 538179.26 | R11: 468858052.9 | S11: 581423.14 | T11: 468858052.9 | U11: 177999266.9
A12: 2022 | B12: Centre Wellington Hydro Ltd. | F12: 17619674 | G12: 34069.91 | H12: 70819271 | I12: 4868.82 | J12: 55191660.25 | K12: 147828.01 | L12: 2711389.61 | M12: 4997.83 | N12: 21350193.4 | O12: 51795.48 | P12: 128722320.9 | Q12: 157694.66 | R12: 146341994.9 | S12: 191764.57 | T12: 143630605.2 | U12: 72811334.25
A13: 2022 | B13: Chapleau Public Utilities Corporation | F13: 1020196 | G13: 1642.88 | H13: 17466568 | I13: 613 | J13: 4230779 | K13: 11803 | N13: 0 | O13: 0 | P13: 21697347 | Q13: 12416 | R13: 22717543 | S13: 14058.88 | T13: 22717543 | U13: 5250975
A14: 2022 | B14: Cooperative Hydro Embrun Inc. | F14: 1154776 | G14: 0 | H14: 25717148 | I14: 0 | J14: 3400671 | K14: 9833 | L14: 0 | M14: 0 | N14: 0 | O14: 0 | P14: 29117819 | Q14: 9833 | R14: 30272595 | S14: 9833 | T14: 30272595 | U14: 4555447
A15: 2022 | B15: Cornwall Street Railway Light and Power Company Limited | T15: 0 | U15: 0
A16: 2022 | B16: E.L.K. Energy Inc. | F16: 25782470 | G16: 3399 | H16: 165764366 | I16: 231007 | J16: 51245355 | K16: 115955 | L16: 0 | M16: 0 | N16: 19769610 | O16: 64438.92 | P16: 217009721 | Q16: 346962 | R16: 242792191 | S16: 350361 | T16: 242792191 | U16: 77027825
A17: 2022 | B17: ENWIN Utilities Ltd. | F17: 137092051.4 | G17: 260369.38 | H17: 977417207.8 | I17: 369399.72 | J17: 790163016.8 | K17: 2042138.39 | L17: 179564730.9 | M17: 322621.63 | N17: 413053203.8 | O17: 1019198 | P17: 1947144955 | Q17: 2734159.74 | R17: 2084237007 | S17: 2994529.12 | T17: 1904672276 | U17: 927255068.2
A18: 2022 | B18: EPCOR Electricity Distribution Ontario Inc. | F18: 28072501.46 | G18: 44035.02 | H18: 186704180.9 | I18: 41896.28 | J18: 87559491.81 | K18: 210091.01 | L18: 2389303.7 | M18: 4662.94 | N18: 50868804.44 | O18: 113630.99 | P18: 276652976.4 | Q18: 256650.23 | R18: 304725477.9 | S18: 300685.25 | T18: 302336174.2 | U18: 115631993.3
A19: 2022 | B19: ERTH Power Corporation | F19: 74751027 | G19: 126497 | H19: 231283596 | I19: 36359 | J19: 259683899 | K19: 580328 | L19: 74563562 | M19: 187051 | N19: 205760585 | O19: 422337 | P19: 565531057 | Q19: 803738 | R19: 640282084 | S19: 930235 | T19: 565718522 | U19: 334434926
A20: 2022 | B20: Elexicon Energy Inc. | F20: 263044329 | G20: 459341 | H20: 1864235387 | I20: 374002 | J20: 1350093797 | K20: 3023939 | L20: 38286829 | M20: 66184 | N20: 760889887 | O20: 1467361 | P20: 3252616013 | Q20: 3464125 | R20: 3515660342 | S20: 3923466 | T20: 3477373513 | U20: 1613138126
A21: 2022 | B21: ENERGY+ INC. | F21: 181887561.2 | G21: 419674.62 | H21: 747794368.9 | I21: 184494.52 | J21: 709804310.6 | K21: 1945905.02 | L21: 107413039.5 | M21: 199542.86 | N21: 355125105.1 | O21: 912763.99 | P21: 1565011719 | Q21: 2329942.4 | R21: 1746899280 | S21: 2749617.02 | T21: 1639486241 | U21: 891691871.8
A22: 2022 | B22: Entegrus Powerlines Inc. | F22: 176444327 | G22: 351757 | H22: 599344016 | I22: 165435 | J22: 429607737 | K22: 1069474 | L22: 7668489 | M22: 20184 | N22: 283324894 | O22: 599672 | P22: 1036620242 | Q22: 1255093 | R22: 1213064569 | S22: 1606850 | T22: 1205396080 | U22: 606052064
A23: 2022 | B23: Espanola Regional Hydro Distribution Corporation | F23: 7127953.45 | G23: 13408.44 | H23: 40340599.37 | I23: 4174.54 | J23: 7354032 | K23: 18515.67 | P23: 47694631.37 | Q23: 22690.21 | R23: 54822584.82 | S23: 36098.65 | T23: 54822584.82 | U23: 14481985.45
A24: 2022 | B24: Essex Powerlines Corporation | F24: 64035044.87 | G24: 171816.78 | H24: 346317597.7 | I24: 66782.72 | J24: 129486284.1 | K24: 382752.15 | L24: 9552767.82 | M24: 18119.11 | N24: 40032313.23 | O24: 104775.46 | P24: 485356649.6 | Q24: 467653.98 | R24: 549391694.5 | S24: 639470.76 | T24: 539838926.6 | U24: 193521329
A25: 2022 | B25: Festival Hydro Inc. | F25: 79062078.42 | G25: 182441.1 | H25: 227169206.4 | I25: 44836.18 | J25: 291373620.8 | K25: 699436.25 | L25: 3211585.03 | M25: 28640.5 | N25: 254642117.4 | O25: 569224.81 | P25: 521754412.3 | Q25: 772912.93 | R25: 600816490.7 | S25: 955354.03 | T25: 597604905.7 | U25: 370435699.2
A26: 2022 | B26: Fort Frances Power Corporation | F26: 212315.35 | H26: 54448971 | J26: 15826684 | K26: 43020 | P26: 70275655 | Q26: 43020 | R26: 70487970.35 | T26: 70487970.35 | U26: 16038999.35
A27: 2022 | B27: Greater Sudbury Hydro Inc. | F27: 79895048.29 | G27: 139800 | H27: 530822307.8 | I27: 143335.61 | J27: 210472427.7 | K27: 498229.08 | L27: 3311424.71 | M27: 5923.56 | N27: 59690569.83 | O27: 121155.86 | P27: 744606160.2 | Q27: 647488.25 | R27: 824501208.5 | S27: 787288.25 | T27: 821189783.8 | U27: 290367476
A28: 2022 | B28: Grimsby Power Incorporated | F28: 19009883.92 | G28: 33709.39 | H28: 121938100.6 | I28: 14187.4 | J28: 122150378 | K28: 320357.82 | L28: 3223620.08 | M28: 6138.67 | N28: 13708886.44 | O28: 32163.35 | P28: 247312098.7 | Q28: 340683.89 | R28: 266321982.6 | S28: 374393.28 | T28: 263098362.5 | U28: 141160261.9
A29: 2022 | B29: Halton Hills Hydro Inc. | F29: 51699871 | G29: 101537 | H29: 266274635 | I29: 30213 | J29: 177988908 | K29: 461240 | L29: 3450785 | M29: 7008 | N29: 78785743 | O29: 168243 | P29: 447714328 | Q29: 498461 | R29: 499414199 | S29: 599998 | T29: 495963414 | U29: 229688779
A30: 2022 | B30: HEARST POWER DISTRIBUTION CO. LTD. | F30: 1952475.3 | G30: 3755.56 | H30: 33195698 | I30: 7822 | J30: 38900060 | K30: 124254 | N30: 27390320.98 | O30: 88486.16 | P30: 72095758 | Q30: 132076 | R30: 74048233.3 | S30: 135831.56 | T30: 74048233.3 | U30: 40852535.3
A31: 2022 | B31: Hydro 2000 Inc. | F31: 996925 | H31: 15877201 | J31: 3024697 | K31: 9348.6 | N31: 0 | O31: 0 | P31: 18901898 | Q31: 9348.6 | R31: 19898823 | T31: 19898823 | U31: 4021622
A32: 2022 | B32: Hydro Hawkesbury Inc. | F32: 14979858.56 | G32: 23815.4 | H32: 62344349 | I32: 129 | J32: 60953910 | K32: 154364 | L32: 0 | M32: 0 | N32: 17887986.44 | O32: 36913.73 | P32: 123298259 | Q32: 154493 | R32: 138278117.6 | S32: 178308.4 | T32: 138278117.6 | U32: 75933768.56
A33: 2022 | B33: Hydro One Networks Inc. | F33: 2336620393 | G33: 3789836.69 | H33: 1.690076332e+10 | I33: 1744033.95 | J33: 8705656051 | K33: 24163167.58 | L33: 9697105664 | M33: 19327890.84 | N33: 4946699626 | O33: 11569221 | P33: 3.530352503e+10 | Q33: 45235092.37 | R33: 3.764014543e+10 | S33: 49024929.06 | T33: 2.794303976e+10 | U33: 1.104227644e+10
A34: 2022 | B34: Hydro One Remote Communities Inc. | P34: 0 | Q34: 0 | T34: 0 | U34: 0
A35: 2022 | B35: Hydro Ottawa Limited | F35: 431628977 | G35: 705489.51 | H35: 3347515401 | I35: 759978.68 | J35: 3324886562 | K35: 7531339.56 | L35: 31892249 | M35: 74266.7 | N35: 1344361497 | O35: 2439284.4 | P35: 6704294212 | Q35: 8365584.94 | R35: 7135923189 | S35: 9071074.45 | T35: 7104030940 | U35: 3756515539
A36: 2022 | B36: Innpower Corporation | F36: 11194530.33 | G36: 14147.4 | H36: 214466588.1 | I36: 16112.51 | J36: 52712013.53 | K36: 130200.96 | L36: 0 | M36: 0 | N36: 8490540.18 | O36: 20120.53 | P36: 267178601.6 | Q36: 146313.47 | R36: 278373131.9 | S36: 160460.87 | T36: 278373131.9 | U36: 63906543.86
A37: 2022 | B37: Kingston Hydro Corporation | F37: 106923017.2 | G37: 180453.43 | H37: 289743138.1 | I37: 85925.13 | J37: 260935967.3 | K37: 564111.73 | L37: 3564987.87 | M37: 6312.17 | N37: 196721873.8 | O37: 381432.58 | P37: 554244093.3 | Q37: 656349.03 | R37: 661167110.5 | S37: 836802.46 | T37: 657602122.6 | U37: 367858984.5
A38: 2022 | B38: Kitchener-Wilmot Hydro Inc. | F38: 166040952.8 | G38: 363813.87 | H38: 1039873475 | J38: 560393778.5 | K38: 1775829.87 | L38: 35786517.32 | M38: 89302.25 | N38: 264006172.7 | O38: 633655.83 | P38: 1636053771 | Q38: 1865132.12 | R38: 1802094724 | S38: 2228945.99 | T38: 1766308207 | U38: 726434731.3
A39: 2022 | B39: Lakefront Utilities Inc. | F39: 42081423.31 | G39: 92013.72 | H39: 112703386.6 | I39: 18180.26 | J39: 87098311.78 | K39: 212086.16 | N39: 62327690.92 | O39: 138682.52 | P39: 199801698.4 | Q39: 230266.42 | R39: 241883121.7 | S39: 322280.14 | T39: 241883121.7 | U39: 129179735.1
A40: 2022 | B40: Lakeland Power Distribution Ltd. | F40: 27974015.83 | G40: 41976.24 | H40: 165600101.1 | I40: 17445.85 | J40: 96711411 | K40: 229195.12 | N40: 53117180.28 | O40: 105877.82 | P40: 262311512.1 | Q40: 246640.97 | R40: 290285527.9 | S40: 288617.21 | T40: 290285527.9 | U40: 124685426.8
A41: 2022 | B41: London Hydro Inc. | F41: 208799432.9 | G41: 447349.49 | H41: 1665512323 | I41: 362668.56 | J41: 1213218610 | K41: 3271351.38 | L41: 15115032.09 | M41: 53084.9 | N41: 548017956 | O41: 1301987.32 | P41: 2893845965 | Q41: 3687104.84 | R41: 3102645398 | S41: 4134454.33 | T41: 3087530366 | U41: 1422018043
A42: 2022 | B42: Milton Hydro Distribution Inc. | F42: 46544560 | G42: 76801 | H42: 458537750 | I42: 45749 | J42: 429921911 | K42: 1005599 | L42: 4238817 | M42: 9208 | N42: 277190157 | O42: 537910 | P42: 892698478 | Q42: 1060556 | R42: 939243038 | S42: 1137357 | T42: 935004221 | U42: 476466471
A43: 2022 | B43: Newmarket-Tay Power Distribution Ltd. | F43: 87894907 | G43: 169229 | H43: 463144704 | I43: 81508 | J43: 267836045 | K43: 762043 | L43: 11967072 | M43: 54313 | N43: 97214004 | O43: 272296 | P43: 742947821 | Q43: 897864 | R43: 830842728 | S43: 1067093 | T43: 818875656 | U43: 355730952
A44: 2022 | B44: Niagara Peninsula Energy Inc. | F44: 74385098 | G44: 129850 | H44: 553577099 | I44: 588 | J44: 544081095 | K44: 1359275 | L44: 2771944 | M44: 5566 | N44: 156113158.6 | O44: 379403.82 | P44: 1100430138 | Q44: 1365429 | R44: 1174815236 | S44: 1495279 | T44: 1172043292 | U44: 618466193
A45: 2022 | B45: Niagara-on-the-Lake Hydro Inc. | F45: 19498329.26 | G45: 38583.36 | H45: 119692499.9 | I45: 10219.2 | J45: 78262830.07 | K45: 215493.14 | L45: 0 | M45: 0 | N45: 24120199.28 | O45: 80623.2 | P45: 197955330 | Q45: 225712.34 | R45: 217453659.2 | S45: 264295.7 | T45: 217453659.2 | U45: 97761159.33
A46: 2022 | B46: North Bay Hydro Distribution Limited | F46: 31959717.75 | G46: 56302.41 | H46: 271546588 | I46: 49332.59 | J46: 171658089.7 | K46: 421157.64 | L46: 0 | M46: 0 | N46: 39723141.92 | O46: 89386.64 | P46: 443204677.7 | Q46: 470490.23 | R46: 475164395.5 | S46: 526792.64 | T46: 475164395.5 | U46: 203617807.5
A47: 2022 | B47: Northern Ontario Wires Inc. | F47: 15040541 | G47: 30185 | H47: 52254401 | J47: 46894913 | K47: 127574 | N47: 25659304 | O47: 73541 | P47: 99149314 | Q47: 127574 | R47: 114189855 | S47: 157759 | T47: 114189855 | U47: 61935454
A48: 2022 | B48: Oakville Hydro Electricity Distribution Inc. | F48: 158386396.8 | G48: 332081.18 | H48: 857458117 | I48: 219321.42 | J48: 534287649.7 | K48: 1391464.98 | L48: 3912171.86 | M48: 7261.14 | N48: 196664453 | O48: 421576.36 | P48: 1395657939 | Q48: 1618047.54 | R48: 1554044335 | S48: 1950128.72 | T48: 1550132163 | U48: 692674046.4
A49: 2022 | B49: Orangeville Hydro Limited | F49: 33503938.33 | G49: 64679.6 | H49: 130750973.9 | I49: 27985.32 | J49: 92269020.25 | K49: 202909.74 | L49: 2570983.3 | M49: 5452.74 | N49: 60822724.61 | O49: 112268.36 | P49: 225590977.5 | Q49: 236347.8 | R49: 259094915.8 | S49: 301027.4 | T49: 256523932.5 | U49: 125772958.6
A50: 2022 | B50: Oshawa PUC Networks Inc. | F50: 61055229 | G50: 97117 | H50: 713841483 | I50: 269622 | J50: 272718041 | K50: 675789 | L50: 6438736 | M50: 12276 | N50: 82987741 | O50: 184841 | P50: 992998260 | Q50: 957687 | R50: 1054053489 | S50: 1054804 | T50: 1047614753 | U50: 333773270
A51: 2022 | B51: Ottawa River Power Corporation | F51: 21216269 | G51: 44026.8 | H51: 119675708 | I51: 26400.32 | J51: 41220519 | K51: 120959.48 | N51: 3244175.52 | O51: 9970.56 | P51: 160896227 | Q51: 147359.8 | R51: 182112496 | S51: 191386.6 | T51: 182112496 | U51: 62436788
A52: 2022 | B52: PUC Distribution Inc. | F52: 50379913.5 | G52: 70064.92 | H52: 405718161.6 | I52: 119269.69 | J52: 148220437.1 | K52: 355170.67 | N52: 37810243.02 | O52: 88766.09 | P52: 553938598.7 | Q52: 474440.36 | R52: 604318512.2 | S52: 544505.28 | T52: 604318512.2 | U52: 198600350.6
A53: 2022 | B53: Renfrew Hydro Inc. | F53: 8873512 | G53: 14188 | H53: 43380703 | J53: 31636641 | K53: 86776 | N53: 13224412.58 | O53: 25027.64 | P53: 75017344 | Q53: 86776 | R53: 83890856 | S53: 100964 | T53: 83890856 | U53: 40510153
A54: 2022 | B54: Rideau St. Lawrence Distribution Inc. | F54: 7317771 | G54: 13995.18 | H54: 61177902 | I54: 6651 | J54: 31976753 | K54: 92179 | N54: 10169065 | O54: 29658 | P54: 93154655 | Q54: 98830 | R54: 100472426 | S54: 112825.18 | T54: 100472426 | U54: 39294524
A55: 2022 | B55: Sioux Lookout Hydro Inc. | F55: 2058580.37 | G55: 2777.06 | H55: 51886465.88 | I55: 7741.9 | J55: 24275737.31 | K55: 57124.71 | P55: 76162203.19 | Q55: 64866.61 | R55: 78220783.56 | S55: 67643.67 | T55: 78220783.56 | U55: 26334317.68
A56: 2022 | B56: Synergy North Corporation | F56: 65210580 | G56: 102890 | H56: 521249917 | I56: 38755 | J56: 356925183 | K56: 1002148 | N56: 125260228 | O56: 349355 | P56: 878175100 | Q56: 1040903 | R56: 943385680 | S56: 1143793 | T56: 943385680 | U56: 422135763
A57: 2022 | B57: Tillsonburg Hydro Inc. | F57: 13706539.82 | G57: 26058.08 | H57: 82967337.76 | I57: 28536.86 | J57: 79097414.93 | K57: 222304.19 | N57: 39469349.64 | O57: 112194.84 | P57: 162064752.7 | Q57: 250841.05 | R57: 175771292.5 | S57: 276899.13 | T57: 175771292.5 | U57: 92803954.75
A58: 2022 | B58: Toronto Hydro-Electric System Limited | F58: 2021333153 | G58: 4018098.3 | H58: 1.029102205e+10 | I58: 7232056.22 | J58: 1.045859259e+10 | K58: 24934860.63 | L58: 288751889.6 | M58: 541980.01 | N58: 5275228843 | O58: 11176854 | P58: 2.103836653e+10 | Q58: 32708896.86 | R58: 2.305969968e+10 | S58: 36726995.16 | T58: 2.277094779e+10 | U58: 1.247992574e+10
A59: 2022 | B59: Wasaga Distribution Inc. | F59: 4680042 | H59: 121197574 | I59: 1347.7 | J59: 14486591 | K59: 35686.1 | L59: 2738840 | M59: 5291.6 | P59: 138423005 | Q59: 42325.4 | R59: 143103047 | T59: 140364207 | U59: 19166633
A60: 2022 | B60: Waterloo North Hydro Inc. | F60: 127669024 | H60: 686178939 | I60: 269242 | J60: 596519060 | K60: 1679783 | L60: 7808857 | M60: 15944 | N60: 269139765 | P60: 1290506856 | Q60: 1964969 | R60: 1418175880 | T60: 1410367023 | U60: 724188084
A61: 2022 | B61: Welland Hydro-Electric System Corp. | F61: 32329443 | G61: 49336 | H61: 226991972 | I61: 2536 | J61: 106416938 | K61: 297639 | L61: 2744430 | M61: 4975 | N61: 32820395 | O61: 102607 | P61: 336153340 | Q61: 305150 | R61: 368482783 | S61: 354486 | T61: 365738353 | U61: 138746381
A62: 2022 | B62: Wellington North Power Inc. | F62: 31279600.61 | G62: 58877.05 | H62: 35509142.63 | I62: 53.06 | J62: 32073161.56 | K62: 101191.39 | N62: 45094739.79 | O62: 101140.4 | P62: 67582304.19 | Q62: 101244.45 | R62: 98861904.8 | S62: 160121.5 | T62: 98861904.8 | U62: 63352762.17
A63: 2022 | B63: Westario Power Inc. | F63: 82560544 | G63: 143940 | H63: 247458698 | I63: 14176 | J63: 109115372 | K63: 274287 | L63: 1194366 | M63: 3265 | N63: 76428202 | O63: 195578 | P63: 357768436 | Q63: 291728 | R63: 440328980 | S63: 435668 | T63: 439134614 | U63: 191675916

Sheet RRR_2022 (hidden)
A1: 2.1.5 TotalConsumptionData_Dist_Ret_Total_Combined_Without RateClass_2022_v2
A4: Filing Year | B4: Company Name | F4: Total kWhs | G4: Total kWs | H4: Metered Consumption on RPP - Kwh | I4: Metered Consumption on RPP - Kw | J4: Metered Consumption on Non-RPP - Kwh | K4: Metered Consumption on Non-RPP - Kw | L4: Billed by IESO For Commodity - Kwh | M4: Billed by IESO For Commodity - Kw | N4: Table 5, Class A - Consumption kWhs | O4: Table 5, Class A - Consumption kWs | P4: Total Consumption - Kwh | Q4: Total Consumption - Kw | R4: Calc Total KWH | S4: Calc Total KW | T4: Total Metered Excluding WMP | U4: Non RPP
A5: 2023 | B5: Alectra Utilities Corporation | F5: 2422962294 | G5: 5048266 | H5: 11882095225 | I5: 3748482 | J5: 11805342125 | K5: 29358417 | L5: 870016492 | M5: 1443533 | N5: 6600724183 | O5: 13602825.02 | P5: 24557453842 | Q5: 34550432 | R5: 26980416136 | S5: 39598698 | T5: 26110399644 | U5: 14228304419
A6: 2023 | B6: Algoma Power Inc. | F6: 5099874.76 | G6: 1584.93 | H6: 136363156.8 | I6: 15973.73 | J6: 114824548.5 | K6: 244973.34 | N6: 95465853.61 | O6: 187012.96 | P6: 251187705.3 | Q6: 260947.07 | R6: 256287580.1 | S6: 262532 | T6: 256287580.1 | U6: 119924423.3
A7: 2023 | B7: Atikokan Hydro Inc. | F7: 1167131.19 | G7: 2270.88 | H7: 13865204.16 | J7: 14948855.71 | K7: 45471.57 | N7: 9315383.32 | O7: 31695.72 | P7: 28814059.87 | Q7: 45471.57 | R7: 29981191.06 | S7: 47742.45 | T7: 29981191.06 | U7: 16115986.9
A8: 2023 | B8: Bluewater Power Distribution Corporation | F8: 55483330 | G8: 107477 | H8: 393004281 | I8: 108145 | J8: 397874117 | K8: 831532 | L8: 117555881 | M8: 190249 | N8: 283132238 | O8: 519235 | P8: 908434279 | Q8: 1129926 | R8: 963917609 | S8: 1237403 | T8: 846361728 | U8: 453357447
A9: 2023 | B9: Burlington Hydro Inc. | F9: 155957525 | G9: 368831 | H9: 807858618 | I9: 356800 | J9: 567882107 | K9: 1469861 | N9: 222035575 | O9: 524608 | P9: 1375740725 | Q9: 1826661 | R9: 1531698250 | S9: 2195492 | T9: 1531698250 | U9: 723839632
A10: 2023 | B10: Canadian Niagara Power Inc. | F10: 23931957.61 | G10: 40596.86 | H10: 300908188.6 | I10: 58333.71 | J10: 158132836.8 | K10: 492442.06 | N10: 78217369.68 | O10: 247535.89 | P10: 459041025.4 | Q10: 550775.77 | R10: 482972983 | S10: 591372.63 | T10: 482972983 | U10: 182064794.4
A11: 2023 | B11: Centre Wellington Hydro Ltd. | F11: 18648325 | G11: 37257.26 | H11: 72828903 | I11: 7478.08 | J11: 52926984.93 | K11: 147170.62 | L11: 2632776.43 | M11: 4940.94 | N11: 23136324.2 | O11: 58882.43 | P11: 128388664.4 | Q11: 159589.64 | R11: 147036989.4 | S11: 196846.9 | T11: 144404212.9 | U11: 71575309.93
A12: 2023 | B12: Chapleau Public Utilities Corporation | F12: 1353432 | G12: 2472.5 | H12: 18728372 | I12: 511 | J12: 3252804 | K12: 11807 | N12: 0 | O12: 0 | P12: 21981176 | Q12: 12318 | R12: 23334608 | S12: 14790.5 | T12: 23334608 | U12: 4606236
A13: 2023 | B13: Cooperative Hydro Embrun Inc. | F13: 1225231 | G13: 0 | H13: 26383103 | I13: 0 | J13: 3086769 | K13: 10846 | L13: 0 | M13: 0 | N13: 0 | O13: 0 | P13: 29469872 | Q13: 10846 | R13: 30695103 | S13: 10846 | T13: 30695103 | U13: 4312000
A14: 2023 | B14: Cornwall Street Railway Light and Power Company Limited | T14: 0 | U14: 0
A15: 2023 | B15: E.L.K. Energy Inc. | F15: 21489373 | H15: 128528198 | I15: 5859 | J15: 85251983 | K15: 273893 | L15: 2671090.56 | M15: 4636.07 | N15: 17805574.92 | O15: 61694.64 | P15: 216451271.6 | Q15: 284388.07 | R15: 237940644.6 | T15: 235269554 | U15: 106741356
A16: 2023 | B16: ENWIN Utilities Ltd. | F16: 131511185.9 | G16: 227124.14 | H16: 997578696.3 | I16: 337326.7 | J16: 807300794 | K16: 2031133.97 | L16: 185092215.2 | M16: 324494.12 | N16: 438771305.8 | O16: 1037029.45 | P16: 1989971706 | Q16: 2692954.79 | R16: 2121482891 | S16: 2920078.93 | T16: 1936390676 | U16: 938811979.9
A17: 2023 | B17: EPCOR Electricity Distribution Ontario Inc. | F17: 28094135.18 | G17: 42825.83 | H17: 191715706 | I17: 49573.87 | J17: 91908874.6 | K17: 218676.89 | L17: 2302949.07 | M17: 4656.49 | N17: 52743390.71 | O17: 114084.1 | P17: 285927529.6 | Q17: 272907.25 | R17: 314021664.8 | S17: 315733.08 | T17: 311718715.8 | U17: 120003009.8
A18: 2023 | B18: ERTH Power Corporation | F18: 64154998 | G18: 125947 | H18: 244437114 | I18: 37749 | J18: 255717118 | K18: 565189 | L18: 73438997 | M18: 179185 | N18: 203961568 | O18: 406676 | P18: 573593229 | Q18: 782123 | R18: 637748227 | S18: 908070 | T18: 564309230 | U18: 319872116
A19: 2023 | B19: Elexicon Energy Inc. | F19: 285032592 | G19: 499755 | H19: 1867405690 | I19: 363370 | J19: 1387854488 | K19: 3020774 | L19: 37944359 | M19: 67594 | N19: 781879969 | O19: 1514366 | P19: 3293204537 | Q19: 3451738 | R19: 3578237129 | S19: 3951493 | T19: 3540292770 | U19: 1672887080
A20: 2023 | B20: Enova Power Corp. | F20: 275960611.8 | G20: 600545.39 | H20: 1768434014 | I20: 234300.61 | J20: 1214035491 | K20: 3375324.85 | L20: 42636803.61 | M20: 93777.81 | N20: 556380628.6 | O20: 1283281.613 | P20: 3025106309 | Q20: 3703403.27 | R20: 3301066920 | S20: 4303948.66 | T20: 3258430117 | U20: 1489996103
A21: 2023 | B21: Entegrus Powerlines Inc. | F21: 162223553 | G21: 335803 | H21: 607576081 | I21: 164917 | J21: 472274538 | K21: 1159554.01 | L21: 6572810 | M21: 12836 | N21: 303166016 | O21: 653642 | P21: 1086423429 | Q21: 1337307.01 | R21: 1248646982 | S21: 1673110.01 | T21: 1242074172 | U21: 634498091
A22: 2023 | B22: Essex Powerlines Corporation | F22: 60980507.53 | G22: 156447.34 | H22: 350927798.9 | I22: 78096.22 | J22: 134501628.7 | K22: 384675.51 | L22: 9394709.12 | M22: 17894.02 | N22: 22077597.25 | O22: 54555.93 | P22: 494824136.7 | Q22: 480665.75 | R22: 555804644.2 | S22: 637113.09 | T22: 546409935.1 | U22: 195482136.2
A23: 2023 | B23: Festival Hydro Inc. | F23: 84602805.61 | G23: 199755.62 | H23: 219311563.7 | I23: 51690.72 | J23: 307776013.7 | K23: 680446.23 | L23: 3263932.02 | M23: 10174.8 | N23: 258025299.3 | O23: 565856.17 | P23: 530351509.4 | Q23: 742311.75 | R23: 614954315 | S23: 942067.37 | T23: 611690383 | U23: 392378819.3
A24: 2023 | B24: Fort Frances Power Corporation | F24: 253713.82 | H24: 56180979 | J24: 16685108 | K24: 49535 | P24: 72866087 | Q24: 49535 | R24: 73119800.82 | T24: 73119800.82 | U24: 16938821.82
A25: 2023 | B25: GrandBridge Energy Inc. | F25: 303376651.7 | G25: 696340.01 | H25: 1175625059 | I25: 241027.82 | J25: 1182732044 | K25: 3142988.39 | L25: 138893419.8 | M25: 272898.33 | N25: 612319732.5 | O25: 1398852.05 | P25: 2497250523 | Q25: 3656914.54 | R25: 2800627175 | S25: 4353254.55 | T25: 2661733755 | U25: 1486108696
A26: 2023 | B26: Greater Sudbury Hydro Inc. | F26: 82851767.27 | G26: 134734.45 | H26: 543796206.9 | I26: 177000.95 | J26: 220354007.8 | K26: 482889.29 | L26: 3328282.83 | M26: 6061.51 | N26: 58388640.76 | O26: 110637.26 | P26: 767478497.5 | Q26: 665951.75 | R26: 850330264.8 | S26: 800686.2 | T26: 847001981.9 | U26: 303205775.1
A27: 2023 | B27: Grimsby Power Incorporated | F27: 25367243.67 | G27: 64636.89 | H27: 120934350.5 | I27: 14645.25 | J27: 109243386 | K27: 351587.88 | L27: 3275831.51 | M27: 6367.26 | N27: 13419172.88 | O27: 41480.36 | P27: 233453568.1 | Q27: 372600.39 | R27: 258820811.7 | S27: 437237.28 | T27: 255544980.2 | U27: 134610629.7
A28: 2023 | B28: Halton Hills Hydro Inc. | F28: 45595620 | G28: 90704 | H28: 268246656 | I28: 33248 | J28: 183533196 | K28: 499860 | L28: 3500134 | M28: 7395 | N28: 84312699 | O28: 185835 | P28: 455279986 | Q28: 540503 | R28: 500875606 | S28: 631207 | T28: 497375472 | U28: 229128816
A29: 2023 | B29: Hearst Power Distribution Company Limited | F29: 2248516 | G29: 4427 | H29: 34590935 | I29: 9771 | J29: 38931182 | K29: 116602 | N29: 27523 | O29: 86250 | P29: 73522117 | Q29: 126373 | R29: 75770633 | S29: 130800 | T29: 75770633 | U29: 41179698
A30: 2023 | B30: Hydro 2000 Inc. | F30: 981819 | H30: 15974912 | J30: 3179140 | K30: 9178.8 | N30: 0 | O30: 0 | P30: 19154052 | Q30: 9178.8 | R30: 20135871 | T30: 20135871 | U30: 4160959
A31: 2023 | B31: Hydro Hawkesbury Inc. | F31: 15134281.7 | G31: 32373.58 | H31: 63755915.92 | I31: 117.36 | J31: 62280276.36 | K31: 158015.6 | L31: 0 | M31: 0 | N31: 16645866.07 | O31: 36835.61 | P31: 126036192.3 | Q31: 158132.96 | R31: 141170474 | S31: 190506.54 | T31: 141170474 | U31: 77414558.06
A32: 2023 | B32: Hydro One Networks Inc. | F32: 2372015882 | G32: 3745688.08 | H32: 1.724178266e+10 | I32: 1231922.14 | J32: 8598056675 | K32: 24879861.06 | L32: 9269841956 | M32: 18802407.54 | N32: 5089912715 | O32: 11923831 | P32: 3.510968129e+10 | Q32: 44914190.74 | R32: 3.748169717e+10 | S32: 48659878.82 | T32: 2.821185522e+10 | U32: 1.097007256e+10
A33: 2023 | B33: Hydro One Remote Communities Inc. | P33: 0 | Q33: 0 | T33: 0 | U33: 0
A34: 2023 | B34: Hydro Ottawa Limited | F34: 460086452 | G34: 744870 | H34: 3369996951 | I34: 735199 | J34: 3370787772 | K34: 7572774 | L34: 30473699 | M34: 58268 | N34: 1373999970 | O34: 2705866 | P34: 6771258422 | Q34: 8366241 | R34: 7231344874 | S34: 9111111 | T34: 7200871175 | U34: 3830874224
A35: 2023 | B35: InnPower Corporation | F35: 10424837.74 | G35: 15129.72 | H35: 221856675.9 | I35: 13412.57 | J35: 51250822.02 | K35: 131559.91 | N35: 9029763.18 | O35: 19681.78 | P35: 273107497.9 | Q35: 144972.48 | R35: 283532335.7 | S35: 160102.2 | T35: 283532335.7 | U35: 61675659.76
A36: 2023 | B36: Kingston Hydro Corporation | F36: 106954464.8 | G36: 182101.52 | H36: 297390367.2 | I36: 85979.14 | J36: 277027008.4 | K36: 637229.55 | L36: 3540245.55 | M36: 6347.58 | N36: 203822684.1 | O36: 404660.21 | P36: 577957621.2 | Q36: 729556.27 | R36: 684912086 | S36: 911657.79 | T36: 681371840.4 | U36: 383981473.2
A37: 2023 | B37: Lakefront Utilities Inc. | F37: 40172300.63 | G37: 85837.66 | H37: 112982817.8 | I37: 14481.69 | J37: 93342096.16 | K37: 223621.14 | N37: 60679596.99 | O37: 130547.85 | P37: 206324914 | Q37: 238102.83 | R37: 246497214.6 | S37: 323940.49 | T37: 246497214.6 | U37: 133514396.8
A38: 2023 | B38: Lakeland Power Distribution Ltd. | F38: 28360289.39 | G38: 44678.12 | H38: 173218546.1 | I38: 17246.75 | J38: 101500008.5 | K38: 249495.3 | N38: 56894697.48 | O38: 118918.85 | P38: 274718554.6 | Q38: 266742.05 | R38: 303078844 | S38: 311420.17 | T38: 303078844 | U38: 129860297.9
A39: 2023 | B39: London Hydro Inc. | F39: 230006396.6 | G39: 391083.54 | H39: 1685467032 | I39: 336163.83 | J39: 1262403299 | K39: 3349923.26 | L39: 15394925.02 | M39: 57753.17 | N39: 576960855.4 | O39: 1405780.7 | P39: 2963265256 | Q39: 3743840.26 | R39: 3193271653 | S39: 4134923.8 | T39: 3177876728 | U39: 1492409696
A40: 2023 | B40: Milton Hydro Distribution Inc. | F40: 46477820 | G40: 74178 | H40: 470616608 | I40: 47868 | J40: 436384304 | K40: 1049189 | L40: 4161956 | M40: 8156 | N40: 275705238 | O40: 544288 | P40: 911162868 | Q40: 1105213 | R40: 957640688 | S40: 1179391 | T40: 953478732 | U40: 482862124
A41: 2023 | B41: Newmarket-Tay Power Distribution Ltd. | F41: 73051669 | G41: 121474 | H41: 457934213 | I41: 108275 | J41: 292857664 | K41: 717771 | L41: 11375210 | M41: 51740 | N41: 121171097 | O41: 269098 | P41: 762167087 | Q41: 877786 | R41: 835218756 | S41: 999260 | T41: 823843546 | U41: 365909333
A42: 2023 | B42: Niagara Peninsula Energy Inc. | F42: 81954514 | G42: 146553.42 | H42: 561892258 | I42: 581.65 | J42: 594180108 | K42: 1453820.1 | L42: 2953784 | M42: 5728.7 | N42: 208200122.5 | O42: 493992.85 | P42: 1159026150 | Q42: 1460130.45 | R42: 1240980664 | S42: 1606683.87 | T42: 1238026880 | U42: 676134622
A43: 2023 | B43: Niagara-on-the-Lake Hydro Inc. | F43: 18295789.79 | G43: 34924.71 | H43: 121354620.1 | I43: 10185.8 | J43: 71260552.45 | K43: 199046.39 | L43: 0 | M43: 0 | N43: 8945376.92 | O43: 28987 | P43: 192615172.6 | Q43: 209232.19 | R43: 210910962.4 | S43: 244156.9 | T43: 210910962.4 | U43: 89556342.24
A44: 2023 | B44: North Bay Hydro Distribution Limited | F44: 52697105.66 | G44: 98371.39 | H44: 323662729.6 | I44: 58241.89 | J44: 174200739.4 | K44: 436848.26 | N44: 43203032.11 | O44: 94318.11 | P44: 497863469 | Q44: 495090.15 | R44: 550560574.6 | S44: 593461.54 | T44: 550560574.6 | U44: 226897845
A45: 2023 | B45: Northern Ontario Wires Inc. | F45: 26221395 | G45: 63125 | H45: 53425143 | J45: 35384979 | K45: 94241 | N45: 26858911 | O45: 77629 | P45: 88810122 | Q45: 94241 | R45: 115031517 | S45: 157366 | T45: 115031517 | U45: 61606374
A46: 2023 | B46: Oakville Hydro Electricity Distribution Inc. | F46: 156943154.8 | G46: 338161.25 | H46: 864871406.6 | I46: 233772.09 | J46: 586612571 | K46: 1500197.29 | L46: 4007714.78 | M46: 7312.45 | N46: 202659681.2 | O46: 452530.35 | P46: 1455491692 | Q46: 1741281.83 | R46: 1612434847 | S46: 2079443.08 | T46: 1608427132 | U46: 743555725.7
A47: 2023 | B47: Orangeville Hydro Limited | F47: 29210293.47 | G47: 58201.5 | H47: 135816956.2 | I47: 37710.18 | J47: 100553523.7 | K47: 218948.91 | L47: 2536172.29 | M47: 5533.15 | N47: 66370348.91 | O47: 127034.69 | P47: 238906652.2 | Q47: 262192.24 | R47: 268116945.7 | S47: 320393.74 | T47: 265580773.4 | U47: 129763817.2
A48: 2023 | B48: Oshawa PUC Networks Inc. | F48: 62049243 | G48: 100688 | H48: 716941659 | I48: 290905 | J48: 297079748 | K48: 728442 | L48: 6436207 | M48: 11967 | N48: 84336643 | O48: 191816 | P48: 1020457614 | Q48: 1031314 | R48: 1082506857 | S48: 1132002 | T48: 1076070650 | U48: 359128991
A49: 2023 | B49: Ottawa River Power Corporation | F49: 22736814 | G49: 43579.71 | H49: 116483978 | I49: 20768.97 | J49: 44339988 | K49: 130132.42 | N49: 3112822.11 | O49: 8734.08 | P49: 160823966 | Q49: 150901.39 | R49: 183560780 | S49: 194481.1 | T49: 183560780 | U49: 67076802
A50: 2023 | B50: PUC Distribution Inc. | F50: 55936990.04 | G50: 79970.24 | H50: 416846109.2 | I50: 121808.62 | J50: 142208200.1 | K50: 343502.7 | N50: 38022530.42 | O50: 87074.98 | P50: 559054309.3 | Q50: 465311.32 | R50: 614991299.3 | S50: 545281.56 | T50: 614991299.3 | U50: 198145190.2
A51: 2023 | B51: Renfrew Hydro Inc. | F51: 12404936 | G51: 21578.89 | H51: 43757943 | I51: 0 | J51: 29953835 | K51: 81589 | L51: 0 | M51: 0 | N51: 13397355.08 | O51: 25314.53 | P51: 73711778 | Q51: 81589 | R51: 86116714 | S51: 103167.89 | T51: 86116714 | U51: 42358771
A52: 2023 | B52: Rideau St. Lawrence Distribution Inc. | F52: 7586886 | G52: 15293.66 | H52: 61793921 | I52: 6820.27 | J52: 33789167 | K52: 96506.71 | N52: 10629083 | O52: 28940.9 | P52: 95583088 | Q52: 103326.98 | R52: 103169974 | S52: 118620.64 | T52: 103169974 | U52: 41376053
A53: 2023 | B53: Sioux Lookout Hydro Inc. | F53: 1632425.28 | G53: 2670.41 | H53: 58228827.16 | I53: 7825.38 | J53: 23728245.3 | K53: 55690.47 | P53: 81957072.46 | Q53: 63515.85 | R53: 83589497.74 | S53: 66186.26 | T53: 83589497.74 | U53: 25360670.58
A54: 2023 | B54: Synergy North Corporation | F54: 59108553.03 | G54: 88470.03 | H54: 553168693 | I54: 89360 | J54: 358802055 | K54: 981010 | N54: 132105628 | O54: 378791 | P54: 911970748 | Q54: 1070370 | R54: 971079301 | S54: 1158840.03 | T54: 971079301 | U54: 417910608
A55: 2023 | B55: Tillsonburg Hydro Inc. | F55: 21999246.32 | G55: 59129.6 | H55: 86765882.59 | I55: 28561.28 | J55: 73704459.97 | K55: 194286.46 | L55: 0 | M55: 0 | N55: 49472475.03 | O55: 134865.72 | P55: 160470342.6 | Q55: 222847.74 | R55: 182469588.9 | S55: 281977.34 | T55: 182469588.9 | U55: 95703706.29
A56: 2023 | B56: Toronto Hydro-Electric System Limited | F56: 2008699771 | G56: 3994613.94 | H56: 1.046647102e+10 | I56: 7528550.18 | J56: 1.087929749e+10 | K56: 25903202.47 | L56: 286136797.6 | M56: 552035.5 | N56: 5633827540 | O56: 12006264.87 | P56: 2.16319053e+10 | Q56: 33983788.15 | R56: 2.364060507e+10 | S56: 37978402.09 | T56: 2.335446828e+10 | U56: 1.288799726e+10
A57: 2023 | B57: Wasaga Distribution Inc. | F57: 4006667 | H57: 123144537 | I57: 1207 | J57: 15904511 | K57: 46185.1 | L57: 2821873 | M57: 5657.5 | N57: 0 | O57: 0 | P57: 141870921 | Q57: 53049.6 | R57: 145877588 | T57: 143055715 | U57: 19911178
A58: 2023 | B58: Welland Hydro-Electric System Corp. | F58: 23149050 | G58: 38348 | H58: 227857345 | I58: 2240 | J58: 123459078 | K58: 317013 | L58: 2665199 | M58: 4730 | N58: 39512055 | O58: 109689 | P58: 353981622 | Q58: 323983 | R58: 377130672 | S58: 362331 | T58: 374465473 | U58: 146608128
A59: 2023 | B59: Wellington North Power Inc. | F59: 33810297.07 | G59: 68321.63 | H59: 36402614.14 | I59: 46.32 | J59: 35052141.31 | K59: 106400.97 | L59: 0 | M59: 0 | N59: 49151738.54 | O59: 112359.2 | P59: 71454755.45 | Q59: 106447.29 | R59: 105265052.5 | S59: 174768.92 | T59: 105265052.5 | U59: 68862438.38
A60: 2023 | B60: Westario Power Inc. | F60: 79039286 | G60: 131279 | H60: 253289943 | I60: 12556 | J60: 112123565 | K60: 288816 | L60: 659219 | M60: 2663 | N60: 74356737 | O60: 190564 | P60: 366072727 | Q60: 304035 | R60: 445112013 | S60: 435314 | T60: 444452794 | U60: 191162851
